,Service Area Categorisation,Service Division Categorisation,Responsible Unit,Expenses Types,Detailed Expenses Type,Expense Code,Narrative,Payment Date,Transaction Number,Order ID,Amount,Capital/Revenue,Supplier Name,Supplier ID,Customer ID
Resources,Support Services,Children & Young People,Assistance to Pupils,Supplies & Services,Grants and Subscriptions,Grants Payable,,04/08/2022,11036990,0,225,R,Pupil Development Grant,990016,
Resources,Support Services,Children & Young People,Assistance to Pupils,Supplies & Services,Grants and Subscriptions,Grants Payable,,04/08/2022,11037012,0,225,R,Pupil Development Grant,990016,
Resources,Support Services,Children & Young People,Assistance to Pupils,Supplies & Services,Grants and Subscriptions,Grants Payable,,04/08/2022,11037036,0,225,R,Pupil Development Grant,990016,
Resources,Support Services,Children & Young People,Assistance to Pupils,Supplies & Services,Grants and Subscriptions,Grants Payable,,04/08/2022,11037037,0,225,R,Pupil Development Grant,990016,
Resources,Support Services,Children & Young People,Assistance to Pupils,Supplies & Services,Grants and Subscriptions,Grants Payable,,04/08/2022,11036837,0,225,R,Pupil Development Grant,990016,
Resources,Support Services,Children & Young People,Assistance to Pupils,Supplies & Services,Grants and Subscriptions,Grants Payable,,04/08/2022,11036838,0,225,R,Pupil Development Grant,990016,
Resources,Support Services,Children & Young People,Assistance to Pupils,Supplies & Services,Grants and Subscriptions,Grants Payable,,04/08/2022,11036839,0,225,R,Pupil Development Grant,990016,
Resources,Support Services,Children & Young People,Assistance to Pupils,Supplies & Services,Grants and Subscriptions,Grants Payable,,04/08/2022,11036840,0,225,R,Pupil Development Grant,990016,
Resources,Support Services,Children & Young People,Assistance to Pupils,Supplies & Services,Grants and Subscriptions,Grants Payable,,04/08/2022,11037476,0,225,R,Pupil Development Grant,990016,
Resources,Support Services,Children & Young People,Assistance to Pupils,Supplies & Services,Grants and Subscriptions,Grants Payable,,04/08/2022,11037477,0,225,R,Pupil Development Grant,990016,
Resources,Support Services,Children & Young People,Assistance to Pupils,Supplies & Services,Grants and Subscriptions,Grants Payable,,04/08/2022,11037478,0,225,R,Pupil Development Grant,990016,
Resources,Support Services,Children & Young People,Assistance to Pupils,Supplies & Services,Grants and Subscriptions,Grants Payable,,04/08/2022,11036785,0,225,R,Pupil Development Grant,990016,
Resources,Support Services,Children & Young People,Assistance to Pupils,Supplies & Services,Grants and Subscriptions,Grants Payable,,04/08/2022,11036786,0,225,R,Pupil Development Grant,990016,
Resources,Support Services,Children & Young People,Assistance to Pupils,Supplies & Services,Grants and Subscriptions,Grants Payable,,04/08/2022,11037007,0,225,R,Pupil Development Grant,990016,
Resources,Support Services,Children & Young People,Assistance to Pupils,Supplies & Services,Grants and Subscriptions,Grants Payable,,04/08/2022,11037430,0,225,R,Pupil Development Grant,990016,
Resources,Support Services,Children & Young People,Assistance to Pupils,Supplies & Services,Grants and Subscriptions,Grants Payable,,04/08/2022,11036658,0,225,R,Pupil Development Grant,990016,
Resources,Support Services,Children & Young People,Assistance to Pupils,Supplies & Services,Grants and Subscriptions,Grants Payable,,04/08/2022,11036659,0,225,R,Pupil Development Grant,990016,
Resources,Support Services,Children & Young People,Assistance to Pupils,Supplies & Services,Grants and Subscriptions,Grants Payable,,04/08/2022,11037545,0,225,R,Pupil Development Grant,990016,
Resources,Support Services,Children & Young People,Assistance to Pupils,Supplies & Services,Grants and Subscriptions,Grants Payable,,04/08/2022,11037546,0,225,R,Pupil Development Grant,990016,
Resources,Support Services,Children & Young People,Assistance to Pupils,Supplies & Services,Grants and Subscriptions,Grants Payable,,04/08/2022,11037547,0,225,R,Pupil Development Grant,990016,
Resources,Support Services,Children & Young People,Assistance to Pupils,Supplies & Services,Grants and Subscriptions,Grants Payable,,04/08/2022,11037548,0,225,R,Pupil Development Grant,990016,
Resources,Support Services,Children & Young People,Assistance to Pupils,Supplies & Services,Grants and Subscriptions,Grants Payable,,04/08/2022,11037285,0,225,R,Pupil Development Grant,990016,
Resources,Support Services,Children & Young People,Assistance to Pupils,Supplies & Services,Grants and Subscriptions,Grants Payable,,04/08/2022,11037286,0,225,R,Pupil Development Grant,990016,
Resources,Support Services,Children & Young People,Assistance to Pupils,Supplies & Services,Grants and Subscriptions,Grants Payable,,04/08/2022,11037706,0,225,R,Pupil Development Grant,990016,
Resources,Support Services,Children & Young People,Assistance to Pupils,Supplies & Services,Grants and Subscriptions,Grants Payable,,04/08/2022,11037707,0,225,R,Pupil Development Grant,990016,
Resources,Support Services,Children & Young People,Assistance to Pupils,Supplies & Services,Grants and Subscriptions,Grants Payable,,04/08/2022,11036762,0,225,R,Pupil Development Grant,990016,
Resources,Support Services,Children & Young People,Assistance to Pupils,Supplies & Services,Grants and Subscriptions,Grants Payable,,04/08/2022,11036638,0,225,R,Pupil Development Grant,990016,
Resources,Support Services,Children & Young People,Assistance to Pupils,Supplies & Services,Grants and Subscriptions,Grants Payable,,04/08/2022,11036639,0,225,R,Pupil Development Grant,990016,
Resources,Support Services,Children & Young People,Assistance to Pupils,Supplies & Services,Grants and Subscriptions,Grants Payable,,04/08/2022,11037562,0,225,R,Pupil Development Grant,990016,
Resources,Support Services,Children & Young People,Assistance to Pupils,Supplies & Services,Grants and Subscriptions,Grants Payable,,23/08/2022,11037563,0,225,R,Pupil Development Grant,990016,
Resources,Support Services,Children & Young People,Assistance to Pupils,Supplies & Services,Grants and Subscriptions,Grants Payable,,04/08/2022,11037475,0,225,R,Pupil Development Grant,990016,
Resources,Support Services,Children & Young People,Assistance to Pupils,Supplies & Services,Grants and Subscriptions,Grants Payable,,04/08/2022,11036862,0,225,R,Pupil Development Grant,990016,
Resources,Support Services,Children & Young People,Assistance to Pupils,Supplies & Services,Grants and Subscriptions,Grants Payable,,04/08/2022,11036863,0,225,R,Pupil Development Grant,990016,
"Leisure, Youth & Outdoor Adventure",Leisure Services,MonLife Directorate,Abergavenny Leisure Centre,Supplies & Services,"Equipment, Furniture and Materials",Materials & Consumables.,,10/08/2022,11024810,10125282,75,R,SAFE SPACE LOCKERS LTD,2203731,
Schools Total,School Group 2 � Pupil Capacity 144-314,MCC Schools,Gilwern Primary School,Premises,Energy Costs,Electricity.,,19/08/2022,11044661,0,360.54,R,EDF Energy,212738,
Schools Total,School Group 2 � Pupil Capacity 144-314,MCC Schools,Gilwern Primary School,Premises,Energy Costs,Electricity.,,19/08/2022,11044922,0,337.37,R,EDF Energy,212738,
Neighbourhood Services,Highways,Communities & Place,Overhead - Mon Highways,Supplies & Services,Services,Sub-Contractors Fees,,30/08/2022,11047982,10125883,217.7,R,G D Environmental Services Ltd,269242,
Neighbourhood Services,Highways,Communities & Place,Resurfacing,Supplies & Services,"Equipment, Furniture and Materials",Materials & Consumables.,,30/08/2022,11047993,818909,86.7,R,Dragon Asphalt Ltd,2202522,
Neighbourhood Services,Highways,Communities & Place,Potholing,Supplies & Services,"Equipment, Furniture and Materials",Materials & Consumables.,,30/08/2022,11047979,818909,473.1,R,Dragon Asphalt Ltd,2202522,
Neighbourhood Services,Highways,Communities & Place,Potholing,Supplies & Services,"Equipment, Furniture and Materials",Materials & Consumables.,,30/08/2022,11047986,818907,86.1,R,Hanson Quarry Products Europe Ltd,233616,
Neighbourhood Services,Highways,Communities & Place,Potholing,Supplies & Services,"Equipment, Furniture and Materials",Materials & Consumables.,,30/08/2022,11047993,818909,450.3,R,Dragon Asphalt Ltd,2202522,
Neighbourhood Services,Highways,Communities & Place,Potholing,Supplies & Services,"Equipment, Furniture and Materials",Materials & Consumables.,,30/08/2022,11047993,818909,285,R,Dragon Asphalt Ltd,2202522,
Neighbourhood Services,Highways,Communities & Place,Structures Maintenance,Supplies & Services,"Equipment, Furniture and Materials",Materials & Consumables.,,30/08/2022,11047983,818906,51,R,Hanson Quarry Products Europe Ltd,233616,
Neighbourhood Services,Highways,Communities & Place,Structures Maintenance,Supplies & Services,"Equipment, Furniture and Materials",Materials & Consumables.,,30/08/2022,11047984,818906,408.24,R,Hanson Quarry Products Europe Ltd,233616,
Neighbourhood Services,Highways,Communities & Place,Structures Maintenance,Supplies & Services,"Equipment, Furniture and Materials",Materials & Consumables.,,30/08/2022,11047985,818905,1141.19,R,Hanson Quarry Products Europe Ltd,233616,
"Policy, Scrutiny & Customer Service",Ukraine,Chief Executive's Unit,Ukrainian Welcome Centre,Supplies & Services,Services,Professional And Specialist Fees,,30/08/2022,11038446,10126352,4119.19,R,Cardiff City Council,255029,
Neighbourhood Services,Highways,Communities & Place,Overhead - Mon Highways,Supplies & Services,"Equipment, Furniture and Materials",Materials & Consumables.,,30/08/2022,11048040,10125897,109.92,R,Robert Price Builders Merchants Ltd,200061,
Neighbourhood Services,Highways,Communities & Place,Overhead - Mon Highways,Supplies & Services,"Equipment, Furniture and Materials",Materials & Consumables.,,30/08/2022,11048042,10125897,57.96,R,Robert Price Builders Merchants Ltd,200061,
Children Services,Children Services Other,Social Care and Health,External Placements - CLA,Supplies & Services,Services,Professional And Specialist Fees,,30/08/2022,11047556,10123291,13237.44,R,ProHealthCare Limited,2203317,
Children Services,Children Services Other,Social Care and Health,External Placements - CLA,Supplies & Services,Services,Professional And Specialist Fees,,30/08/2022,11047673,10123290,13459.18,R,Richmond Nursing Agency Ltd,2203303,
"Policy, Scrutiny & Customer Service",Ukraine,Chief Executive's Unit,Ukrainian Welcome Centre,Supplies & Services,Services,Professional And Specialist Fees,,30/08/2022,11045290,10126353,6715.18,R,Cardiff City Council,255029,
Countryside & Culture,Countryside,MonLife Directorate,ENRAW � Resilient Greater Gwent,Supplies & Services,"Equipment, Furniture and Materials",Materials & Consumables.,,15/08/2022,11038737,10125706,32.9,R,Graff-City Ltd,291693,
"Leisure, Youth & Outdoor Adventure",Leisure Services,MonLife Directorate,Monmouth Leisure Centre,Supplies & Services,"Equipment, Furniture and Materials",Materials & Consumables.,,10/08/2022,11025983,10125346,55,R,Hightech Water Services,2200055,
"Leisure, Youth & Outdoor Adventure",Leisure Services,MonLife Directorate,Abergavenny Leisure Centre,Supplies & Services,"Equipment, Furniture and Materials",Materials & Consumables.,,10/08/2022,11036370,10123015,85.47,R,REDACTED PERSONAL DATA,295847,
Public Protection,Health & Safety,Social Care and Health,Safety Services,Supplies & Services,Services,Professional And Specialist Fees,,10/08/2022,11036276,10125544,1478.4,R,Insync Corporate Healthcare,2200831,
Children Services,Children Services Teams,Social Care and Health,Disabled Children,Supplies & Services,Services,Professional And Specialist Fees,,10/08/2022,11036265,10125166,275.64,R,Richmond Nursing Agency Ltd,2203303,
Resources,Support Services,Children & Young People,Assistance to Pupils,Supplies & Services,Grants and Subscriptions,Grants Payable,,04/08/2022,11037116,0,225,R,Pupil Development Grant,990016,
Resources,Support Services,Children & Young People,Assistance to Pupils,Supplies & Services,Grants and Subscriptions,Grants Payable,,04/08/2022,11037117,0,225,R,Pupil Development Grant,990016,
Resources,Support Services,Children & Young People,Assistance to Pupils,Supplies & Services,Grants and Subscriptions,Grants Payable,,04/08/2022,11037118,0,225,R,Pupil Development Grant,990016,
Resources,Support Services,Children & Young People,Assistance to Pupils,Supplies & Services,Grants and Subscriptions,Grants Payable,,04/08/2022,11037119,0,225,R,Pupil Development Grant,990016,
Resources,Support Services,Children & Young People,Assistance to Pupils,Supplies & Services,Grants and Subscriptions,Grants Payable,,04/08/2022,11037588,0,225,R,Pupil Development Grant,990016,
Resources,Support Services,Children & Young People,Assistance to Pupils,Supplies & Services,Grants and Subscriptions,Grants Payable,,04/08/2022,11037589,0,225,R,Pupil Development Grant,990016,
Resources,Support Services,Children & Young People,Assistance to Pupils,Supplies & Services,Grants and Subscriptions,Grants Payable,,04/08/2022,11037590,0,225,R,Pupil Development Grant,990016,
Resources,Support Services,Children & Young People,Assistance to Pupils,Supplies & Services,Grants and Subscriptions,Grants Payable,,04/08/2022,11037591,0,225,R,Pupil Development Grant,990016,
Resources,Support Services,Children & Young People,Assistance to Pupils,Supplies & Services,Grants and Subscriptions,Grants Payable,,04/08/2022,11037245,0,225,R,Pupil Development Grant,990016,
Resources,Support Services,Children & Young People,Assistance to Pupils,Supplies & Services,Grants and Subscriptions,Grants Payable,,04/08/2022,11036635,0,225,R,Pupil Development Grant,990016,
Resources,Support Services,Children & Young People,Assistance to Pupils,Supplies & Services,Grants and Subscriptions,Grants Payable,,04/08/2022,11037383,0,225,R,Pupil Development Grant,990016,
Resources,Support Services,Children & Young People,Assistance to Pupils,Supplies & Services,Grants and Subscriptions,Grants Payable,,04/08/2022,11037384,0,225,R,Pupil Development Grant,990016,
Resources,Support Services,Children & Young People,Assistance to Pupils,Supplies & Services,Grants and Subscriptions,Grants Payable,,04/08/2022,11037385,0,225,R,Pupil Development Grant,990016,
Resources,Support Services,Children & Young People,Assistance to Pupils,Supplies & Services,Grants and Subscriptions,Grants Payable,,04/08/2022,11037386,0,225,R,Pupil Development Grant,990016,
Resources,Support Services,Children & Young People,Assistance to Pupils,Supplies & Services,Grants and Subscriptions,Grants Payable,,04/08/2022,11037182,0,225,R,Pupil Development Grant,990016,
Resources,Support Services,Children & Young People,Assistance to Pupils,Supplies & Services,Grants and Subscriptions,Grants Payable,,04/08/2022,11037183,0,225,R,Pupil Development Grant,990016,
Resources,Support Services,Children & Young People,Assistance to Pupils,Supplies & Services,Grants and Subscriptions,Grants Payable,,04/08/2022,11037576,0,225,R,Pupil Development Grant,990016,
Resources,Support Services,Children & Young People,Assistance to Pupils,Supplies & Services,Grants and Subscriptions,Grants Payable,,04/08/2022,11037577,0,225,R,Pupil Development Grant,990016,
Resources,Support Services,Children & Young People,Assistance to Pupils,Supplies & Services,Grants and Subscriptions,Grants Payable,,04/08/2022,11037578,0,225,R,Pupil Development Grant,990016,
Resources,Support Services,Children & Young People,Assistance to Pupils,Supplies & Services,Grants and Subscriptions,Grants Payable,,04/08/2022,11037579,0,225,R,Pupil Development Grant,990016,
Resources,Support Services,Children & Young People,Assistance to Pupils,Supplies & Services,Grants and Subscriptions,Grants Payable,,04/08/2022,11036983,0,225,R,Pupil Development Grant,990016,
Resources,Support Services,Children & Young People,Assistance to Pupils,Supplies & Services,Grants and Subscriptions,Grants Payable,,04/08/2022,11036984,0,225,R,Pupil Development Grant,990016,
Neighbourhood Services,Highways,Communities & Place,Overhead - Mon Highways,Supplies & Services,"Equipment, Furniture and Materials",Materials & Consumables.,,10/08/2022,11038557,10124823,18.29,R,Robert Price Builders Merchants Ltd,200061,
Neighbourhood Services,Highways,Communities & Place,Overhead - Mon Highways,Supplies & Services,Services,Sub-Contractors Fees,,10/08/2022,11038492,10123615,1024.1,R,G D Environmental Services Ltd,269242,
Neighbourhood Services,Highways,Communities & Place,Overhead - Mon Highways,Supplies & Services,Services,Sub-Contractors Fees,,10/08/2022,11038558,10124809,799.07,R,G D Environmental Services Ltd,269242,
Resources,Support Services,Children & Young People,Assistance to Pupils,Supplies & Services,Grants and Subscriptions,Grants Payable,,31/08/2022,11048372,0,225,R,Pupil Development Grant,990016,
Resources,Support Services,Children & Young People,Assistance to Pupils,Supplies & Services,Grants and Subscriptions,Grants Payable,,31/08/2022,11048373,0,225,R,Pupil Development Grant,990016,
Resources,Support Services,Children & Young People,Assistance to Pupils,Supplies & Services,Grants and Subscriptions,Grants Payable,,31/08/2022,11048374,0,225,R,Pupil Development Grant,990016,
Resources,Support Services,Children & Young People,Assistance to Pupils,Supplies & Services,Grants and Subscriptions,Grants Payable,,31/08/2022,11048375,0,300,R,Pupil Development Grant,990016,
Resources,Support Services,Children & Young People,Assistance to Pupils,Supplies & Services,Grants and Subscriptions,Grants Payable,,31/08/2022,11048376,0,300,R,Pupil Development Grant,990016,
Resources,Support Services,Children & Young People,Assistance to Pupils,Supplies & Services,Grants and Subscriptions,Grants Payable,,31/08/2022,11048377,0,300,R,Pupil Development Grant,990016,
Children Services,Children Services Other,Social Care and Health,Counsel Costs,Supplies & Services,Services,Professional And Specialist Fees,,23/08/2022,11044554,10126117,451.25,R,Atkinson Lewis Limited,286998,
Neighbourhood Services,Waste and Street Services,Communities & Place,Fitting Shop Grounds,Supplies & Services,"Equipment, Furniture and Materials",Materials & Consumables.,,23/08/2022,11042192,10122739,241.36,R,Cambrian Group UK,201999,
Neighbourhood Services,Waste and Street Services,Communities & Place,Fitting Shop Grounds,Supplies & Services,"Equipment, Furniture and Materials",Materials & Consumables.,,23/08/2022,11042194,10122739,424.68,R,Cambrian Group UK,201999,
Neighbourhood Services,Waste and Street Services,Communities & Place,Fitting Shop Grounds,Supplies & Services,"Equipment, Furniture and Materials",Materials & Consumables.,,23/08/2022,11037807,10122803,861.1,R,David Evans Agricultural Ltd,281145,
Neighbourhood Services,Waste and Street Services,Communities & Place,Fitting Shop Grounds,Supplies & Services,"Equipment, Furniture and Materials",Materials & Consumables.,,23/08/2022,11037807,10122803,13.28,R,David Evans Agricultural Ltd,281145,
Neighbourhood Services,Waste and Street Services,Communities & Place,Fitting Shop Grounds,Supplies & Services,"Equipment, Furniture and Materials",Materials & Consumables.,,23/08/2022,11037807,10122803,40.62,R,David Evans Agricultural Ltd,281145,
Neighbourhood Services,Waste and Street Services,Communities & Place,Grounds,Supplies & Services,"Equipment, Furniture and Materials",Materials & Consumables.,,23/08/2022,11037776,10124159,3.51,R,Spaldings (UK) Ltd,249809,
Resources,Support Services,Children & Young People,Assistance to Pupils,Supplies & Services,Grants and Subscriptions,Grants Payable,,31/08/2022,11048355,0,225,R,Pupil Development Grant,990016,
Resources,Support Services,Children & Young People,Assistance to Pupils,Supplies & Services,Grants and Subscriptions,Grants Payable,,31/08/2022,11048356,0,225,R,Pupil Development Grant,990016,
Resources,Support Services,Children & Young People,Assistance to Pupils,Supplies & Services,Grants and Subscriptions,Grants Payable,,31/08/2022,11048357,0,225,R,Pupil Development Grant,990016,
Resources,Support Services,Children & Young People,Assistance to Pupils,Supplies & Services,Grants and Subscriptions,Grants Payable,,31/08/2022,11048358,0,225,R,Pupil Development Grant,990016,
Resources,Support Services,Children & Young People,Assistance to Pupils,Supplies & Services,Grants and Subscriptions,Grants Payable,,31/08/2022,11048359,0,225,R,Pupil Development Grant,990016,
Resources,Support Services,Children & Young People,Assistance to Pupils,Supplies & Services,Grants and Subscriptions,Grants Payable,,31/08/2022,11048360,0,225,R,Pupil Development Grant,990016,
Resources,Support Services,Children & Young People,Assistance to Pupils,Supplies & Services,Grants and Subscriptions,Grants Payable,,31/08/2022,11048361,0,225,R,Pupil Development Grant,990016,
Resources,Support Services,Children & Young People,Assistance to Pupils,Supplies & Services,Grants and Subscriptions,Grants Payable,,31/08/2022,11048362,0,225,R,Pupil Development Grant,990016,
Resources,Support Services,Children & Young People,Assistance to Pupils,Supplies & Services,Grants and Subscriptions,Grants Payable,,31/08/2022,11048363,0,225,R,Pupil Development Grant,990016,
Resources,Support Services,Children & Young People,Assistance to Pupils,Supplies & Services,Grants and Subscriptions,Grants Payable,,31/08/2022,11048364,0,225,R,Pupil Development Grant,990016,
Resources,Support Services,Children & Young People,Assistance to Pupils,Supplies & Services,Grants and Subscriptions,Grants Payable,,31/08/2022,11048365,0,225,R,Pupil Development Grant,990016,
Resources,Support Services,Children & Young People,Assistance to Pupils,Supplies & Services,Grants and Subscriptions,Grants Payable,,31/08/2022,11048366,0,225,R,Pupil Development Grant,990016,
Resources,Support Services,Children & Young People,Assistance to Pupils,Supplies & Services,Grants and Subscriptions,Grants Payable,,31/08/2022,11048367,0,225,R,Pupil Development Grant,990016,
Resources,Support Services,Children & Young People,Assistance to Pupils,Supplies & Services,Grants and Subscriptions,Grants Payable,,31/08/2022,11048368,0,225,R,Pupil Development Grant,990016,
Resources,Support Services,Children & Young People,Assistance to Pupils,Supplies & Services,Grants and Subscriptions,Grants Payable,,31/08/2022,11048369,0,225,R,Pupil Development Grant,990016,
Resources,Support Services,Children & Young People,Assistance to Pupils,Supplies & Services,Grants and Subscriptions,Grants Payable,,31/08/2022,11048370,0,225,R,Pupil Development Grant,990016,
Resources,Support Services,Children & Young People,Assistance to Pupils,Supplies & Services,Grants and Subscriptions,Grants Payable,,31/08/2022,11048371,0,225,R,Pupil Development Grant,990016,
Resources,Support Services,Children & Young People,Assistance to Pupils,Supplies & Services,Grants and Subscriptions,Grants Payable,,04/08/2022,11037008,0,225,R,Pupil Development Grant,990016,
Resources,Support Services,Children & Young People,Assistance to Pupils,Supplies & Services,Grants and Subscriptions,Grants Payable,,04/08/2022,11037207,0,225,R,Pupil Development Grant,990016,
Resources,Support Services,Children & Young People,Assistance to Pupils,Supplies & Services,Grants and Subscriptions,Grants Payable,,04/08/2022,11037208,0,225,R,Pupil Development Grant,990016,
Resources,Support Services,Children & Young People,Assistance to Pupils,Supplies & Services,Grants and Subscriptions,Grants Payable,,04/08/2022,11037209,0,225,R,Pupil Development Grant,990016,
Resources,Support Services,Children & Young People,Assistance to Pupils,Supplies & Services,Grants and Subscriptions,Grants Payable,,04/08/2022,11037210,0,225,R,Pupil Development Grant,990016,
Resources,Support Services,Children & Young People,Assistance to Pupils,Supplies & Services,Grants and Subscriptions,Grants Payable,,04/08/2022,11037557,0,225,R,Pupil Development Grant,990016,
Resources,Support Services,Children & Young People,Assistance to Pupils,Supplies & Services,Grants and Subscriptions,Grants Payable,,04/08/2022,11037469,0,225,R,Pupil Development Grant,990016,
Resources,Support Services,Children & Young People,Assistance to Pupils,Supplies & Services,Grants and Subscriptions,Grants Payable,,04/08/2022,11037470,0,225,R,Pupil Development Grant,990016,
Resources,Support Services,Children & Young People,Assistance to Pupils,Supplies & Services,Grants and Subscriptions,Grants Payable,,04/08/2022,11037471,0,225,R,Pupil Development Grant,990016,
Resources,Support Services,Children & Young People,Assistance to Pupils,Supplies & Services,Grants and Subscriptions,Grants Payable,,04/08/2022,11037472,0,225,R,Pupil Development Grant,990016,
Resources,Support Services,Children & Young People,Assistance to Pupils,Supplies & Services,Grants and Subscriptions,Grants Payable,,04/08/2022,11036874,0,225,R,Pupil Development Grant,990016,
Resources,Support Services,Children & Young People,Assistance to Pupils,Supplies & Services,Grants and Subscriptions,Grants Payable,,04/08/2022,11036875,0,225,R,Pupil Development Grant,990016,
Resources,Support Services,Children & Young People,Assistance to Pupils,Supplies & Services,Grants and Subscriptions,Grants Payable,,04/08/2022,11037632,0,225,R,Pupil Development Grant,990016,
Resources,Support Services,Children & Young People,Assistance to Pupils,Supplies & Services,Grants and Subscriptions,Grants Payable,,04/08/2022,11037633,0,225,R,Pupil Development Grant,990016,
Resources,Support Services,Children & Young People,Assistance to Pupils,Supplies & Services,Grants and Subscriptions,Grants Payable,,04/08/2022,11037634,0,225,R,Pupil Development Grant,990016,
Resources,Support Services,Children & Young People,Assistance to Pupils,Supplies & Services,Grants and Subscriptions,Grants Payable,,04/08/2022,11037635,0,225,R,Pupil Development Grant,990016,
Resources,Support Services,Children & Young People,Assistance to Pupils,Supplies & Services,Grants and Subscriptions,Grants Payable,,04/08/2022,11036932,0,225,R,Pupil Development Grant,990016,
Resources,Support Services,Children & Young People,Assistance to Pupils,Supplies & Services,Grants and Subscriptions,Grants Payable,,04/08/2022,11036933,0,225,R,Pupil Development Grant,990016,
Resources,Support Services,Children & Young People,Assistance to Pupils,Supplies & Services,Grants and Subscriptions,Grants Payable,,04/08/2022,11036934,0,225,R,Pupil Development Grant,990016,
Resources,Support Services,Children & Young People,Assistance to Pupils,Supplies & Services,Grants and Subscriptions,Grants Payable,,04/08/2022,11036935,0,225,R,Pupil Development Grant,990016,
Resources,Support Services,Children & Young People,Assistance to Pupils,Supplies & Services,Grants and Subscriptions,Grants Payable,,04/08/2022,11036936,0,225,R,Pupil Development Grant,990016,
Neighbourhood Services,Waste and Street Services,Communities & Place,Fitting Shop Grounds,Supplies & Services,"Equipment, Furniture and Materials",Materials & Consumables.,,23/08/2022,11037808,10122803,999.15,R,David Evans Agricultural Ltd,281145,
Neighbourhood Services,Waste and Street Services,Communities & Place,Fitting Shop Grounds,Supplies & Services,"Equipment, Furniture and Materials",Materials & Consumables.,,23/08/2022,11037931,10122804,4006.94,R,Frank Sutton Ltd,200136,
Neighbourhood Services,Waste and Street Services,Communities & Place,Fitting Shop Grounds,Supplies & Services,"Equipment, Furniture and Materials",Materials & Consumables.,,23/08/2022,11038103,10122799,866,R,Ted Hopkins Ltd,200495,
Neighbourhood Services,Waste and Street Services,Communities & Place,Grounds,Supplies & Services,"Equipment, Furniture and Materials",Materials & Consumables.,,23/08/2022,11037920,10122686,19.95,R,Malvern Tyres (Wholesale) Ltd,296236,
Resources,Support Services,Children & Young People,Assistance to Pupils,Supplies & Services,Grants and Subscriptions,Grants Payable,,04/08/2022,11036876,0,225,R,Pupil Development Grant,990016,
Resources,Support Services,Children & Young People,Assistance to Pupils,Supplies & Services,Grants and Subscriptions,Grants Payable,,04/08/2022,11036877,0,225,R,Pupil Development Grant,990016,
Resources,Support Services,Children & Young People,Assistance to Pupils,Supplies & Services,Grants and Subscriptions,Grants Payable,,04/08/2022,11036878,0,225,R,Pupil Development Grant,990016,
Resources,Support Services,Children & Young People,Assistance to Pupils,Supplies & Services,Grants and Subscriptions,Grants Payable,,04/08/2022,11036763,0,225,R,Pupil Development Grant,990016,
Resources,Support Services,Children & Young People,Assistance to Pupils,Supplies & Services,Grants and Subscriptions,Grants Payable,,04/08/2022,11036827,0,225,R,Pupil Development Grant,990016,
Resources,Support Services,Children & Young People,Assistance to Pupils,Supplies & Services,Grants and Subscriptions,Grants Payable,,04/08/2022,11036828,0,225,R,Pupil Development Grant,990016,
Resources,Support Services,Children & Young People,Assistance to Pupils,Supplies & Services,Grants and Subscriptions,Grants Payable,,04/08/2022,11036985,0,225,R,Pupil Development Grant,990016,
Resources,Support Services,Children & Young People,Assistance to Pupils,Supplies & Services,Grants and Subscriptions,Grants Payable,,04/08/2022,11036986,0,225,R,Pupil Development Grant,990016,
Resources,Support Services,Children & Young People,Assistance to Pupils,Supplies & Services,Grants and Subscriptions,Grants Payable,,04/08/2022,11036833,0,225,R,Pupil Development Grant,990016,
Resources,Support Services,Children & Young People,Assistance to Pupils,Supplies & Services,Grants and Subscriptions,Grants Payable,,04/08/2022,11037194,0,225,R,Pupil Development Grant,990016,
Resources,Support Services,Children & Young People,Assistance to Pupils,Supplies & Services,Grants and Subscriptions,Grants Payable,,04/08/2022,11037616,0,225,R,Pupil Development Grant,990016,
Resources,Support Services,Children & Young People,Assistance to Pupils,Supplies & Services,Grants and Subscriptions,Grants Payable,,04/08/2022,11037617,0,225,R,Pupil Development Grant,990016,
Resources,Support Services,Children & Young People,Assistance to Pupils,Supplies & Services,Grants and Subscriptions,Grants Payable,,04/08/2022,11036900,0,225,R,Pupil Development Grant,990016,
Resources,Support Services,Children & Young People,Assistance to Pupils,Supplies & Services,Grants and Subscriptions,Grants Payable,,04/08/2022,11036901,0,225,R,Pupil Development Grant,990016,
Resources,Support Services,Children & Young People,Assistance to Pupils,Supplies & Services,Grants and Subscriptions,Grants Payable,,04/08/2022,11036902,0,225,R,Pupil Development Grant,990016,
Resources,Support Services,Children & Young People,Assistance to Pupils,Supplies & Services,Grants and Subscriptions,Grants Payable,,04/08/2022,11036903,0,225,R,Pupil Development Grant,990016,
Resources,Support Services,Children & Young People,Assistance to Pupils,Supplies & Services,Grants and Subscriptions,Grants Payable,,04/08/2022,11037229,0,225,R,Pupil Development Grant,990016,
Resources,Support Services,Children & Young People,Assistance to Pupils,Supplies & Services,Grants and Subscriptions,Grants Payable,,04/08/2022,11037230,0,225,R,Pupil Development Grant,990016,
Resources,Support Services,Children & Young People,Assistance to Pupils,Supplies & Services,Grants and Subscriptions,Grants Payable,,04/08/2022,11037026,0,225,R,Pupil Development Grant,990016,
Neighbourhood Services,Highways,Communities & Place,Capital - Permanent Patching,Supplies & Services,"Equipment, Furniture and Materials",Materials & Consumables.,,15/08/2022,11041215,818780,21665.7,R,Hanson Quarry Products Europe Ltd,233616,
Neighbourhood Services,Highways,Communities & Place,Capital - Permanent Patching,Supplies & Services,"Equipment, Furniture and Materials",Materials & Consumables.,,15/08/2022,11041216,818780,1639.89,R,Hanson Quarry Products Europe Ltd,233616,
Neighbourhood Services,Highways,Communities & Place,Capital - Permanent Patching,Supplies & Services,"Equipment, Furniture and Materials",Materials & Consumables.,,15/08/2022,11041217,818780,15001.83,R,Hanson Quarry Products Europe Ltd,233616,
Neighbourhood Services,Highways,Communities & Place,Capital - Permanent Patching,Supplies & Services,"Equipment, Furniture and Materials",Materials & Consumables.,,15/08/2022,11041218,818780,25001.91,R,Hanson Quarry Products Europe Ltd,233616,
Standards,Early Years,Children & Young People,Expansion of Early Years Grant,Supplies & Services,Grants and Subscriptions,Grants Payable,,15/08/2022,11041141,10126035,2750,R,Meadowbank Day Nursery,299646,
Standards,Early Years,Children & Young People,Foundation of Training Grant,Supplies & Services,Grants and Subscriptions,Grants Payable,,15/08/2022,11041141,10126035,4897,R,Meadowbank Day Nursery,299646,
Schools Total,School Group 2 � Pupil Capacity 144-314,MCC Schools,St Mary�s RC Primary School (VA),Premises,Energy Costs,Electricity.,,19/08/2022,11044667,0,999.92,R,EDF Energy,212738,
Schools Total,School Group 2 � Pupil Capacity 144-314,MCC Schools,Trellech Primary School,Premises,Energy Costs,Electricity.,,19/08/2022,11044703,0,527.18,R,EDF Energy,212738,
Neighbourhood Services,Highways,Communities & Place,Capital - Permanent Patching,Supplies & Services,"Equipment, Furniture and Materials",Materials & Consumables.,,15/08/2022,11041219,818780,6614.28,R,Hanson Quarry Products Europe Ltd,233616,
Neighbourhood Services,Highways,Communities & Place,Capital - Permanent Patching,Supplies & Services,"Equipment, Furniture and Materials",Materials & Consumables.,,15/08/2022,11041220,818780,21701.61,R,Hanson Quarry Products Europe Ltd,233616,
Neighbourhood Services,Highways,Communities & Place,Capital - Permanent Patching,Supplies & Services,"Equipment, Furniture and Materials",Materials & Consumables.,,15/08/2022,11041221,818780,16605.81,R,Hanson Quarry Products Europe Ltd,233616,
Neighbourhood Services,Highways,Communities & Place,Capital - Permanent Patching,Supplies & Services,"Equipment, Furniture and Materials",Materials & Consumables.,,15/08/2022,11041222,818780,16142.4,R,Hanson Quarry Products Europe Ltd,233616,
Neighbourhood Services,Highways,Communities & Place,Capital - Permanent Patching,Supplies & Services,"Equipment, Furniture and Materials",Materials & Consumables.,,15/08/2022,11041223,818780,14960.79,R,Hanson Quarry Products Europe Ltd,233616,
Neighbourhood Services,Highways,Communities & Place,Capital - Permanent Patching,Supplies & Services,"Equipment, Furniture and Materials",Materials & Consumables.,,15/08/2022,11041224,818780,16687.89,R,Hanson Quarry Products Europe Ltd,233616,
Neighbourhood Services,Highways,Communities & Place,Capital - Permanent Patching,Supplies & Services,"Equipment, Furniture and Materials",Materials & Consumables.,,15/08/2022,11041225,818780,1626.21,R,Hanson Quarry Products Europe Ltd,233616,
Neighbourhood Services,Highways,Communities & Place,Capital - Permanent Patching,Supplies & Services,"Equipment, Furniture and Materials",Materials & Consumables.,,15/08/2022,11041226,818780,5000.04,R,Hanson Quarry Products Europe Ltd,233616,
Resources,Support Services,Children & Young People,Assistance to Pupils,Supplies & Services,Grants and Subscriptions,Grants Payable,,04/08/2022,11037246,0,225,R,Pupil Development Grant,990016,
Resources,Support Services,Children & Young People,Assistance to Pupils,Supplies & Services,Grants and Subscriptions,Grants Payable,,04/08/2022,11037247,0,225,R,Pupil Development Grant,990016,
Resources,Support Services,Children & Young People,Assistance to Pupils,Supplies & Services,Grants and Subscriptions,Grants Payable,,04/08/2022,11037248,0,225,R,Pupil Development Grant,990016,
Resources,Support Services,Children & Young People,Assistance to Pupils,Supplies & Services,Grants and Subscriptions,Grants Payable,,04/08/2022,11037120,0,225,R,Pupil Development Grant,990016,
Resources,Support Services,Children & Young People,Assistance to Pupils,Supplies & Services,Grants and Subscriptions,Grants Payable,,04/08/2022,11037121,0,225,R,Pupil Development Grant,990016,
Resources,Support Services,Children & Young People,Assistance to Pupils,Supplies & Services,Grants and Subscriptions,Grants Payable,,04/08/2022,11037224,0,225,R,Pupil Development Grant,990016,
Resources,Support Services,Children & Young People,Assistance to Pupils,Supplies & Services,Grants and Subscriptions,Grants Payable,,04/08/2022,11037022,0,225,R,Pupil Development Grant,990016,
Resources,Support Services,Children & Young People,Assistance to Pupils,Supplies & Services,Grants and Subscriptions,Grants Payable,,04/08/2022,11037023,0,225,R,Pupil Development Grant,990016,
Resources,Support Services,Children & Young People,Assistance to Pupils,Supplies & Services,Grants and Subscriptions,Grants Payable,,04/08/2022,11036758,0,225,R,Pupil Development Grant,990016,
Resources,Support Services,Children & Young People,Assistance to Pupils,Supplies & Services,Grants and Subscriptions,Grants Payable,,04/08/2022,11036759,0,225,R,Pupil Development Grant,990016,
Resources,Support Services,Children & Young People,Assistance to Pupils,Supplies & Services,Grants and Subscriptions,Grants Payable,,04/08/2022,11036924,0,225,R,Pupil Development Grant,990016,
Resources,Support Services,Children & Young People,Assistance to Pupils,Supplies & Services,Grants and Subscriptions,Grants Payable,,04/08/2022,11036925,0,225,R,Pupil Development Grant,990016,
Neighbourhood Services,Highways,Communities & Place,Structures Maintenance,Supplies & Services,"Equipment, Furniture and Materials",Materials & Consumables.,,10/08/2022,11038612,818309,607.75,R,Caerleon Readymix Concrete Ltd,289149,
Neighbourhood Services,Highways,Communities & Place,Structures Maintenance,Supplies & Services,"Equipment, Furniture and Materials",Materials & Consumables.,,10/08/2022,11038612,818309,187,R,Caerleon Readymix Concrete Ltd,289149,
Neighbourhood Services,Highways,Communities & Place,Structures Maintenance,Supplies & Services,"Equipment, Furniture and Materials",Materials & Consumables.,,10/08/2022,11038612,818309,555,R,Caerleon Readymix Concrete Ltd,289149,
Neighbourhood Services,Highways,Communities & Place,Drainage works,Supplies & Services,"Equipment, Furniture and Materials",Materials & Consumables.,,10/08/2022,11038612,818309,43.5,R,Caerleon Readymix Concrete Ltd,289149,
Neighbourhood Services,Highways,Communities & Place,Drainage works,Supplies & Services,"Equipment, Furniture and Materials",Materials & Consumables.,,10/08/2022,11038612,818309,43.5,R,Caerleon Readymix Concrete Ltd,289149,
Resources,Support Services,Children & Young People,Assistance to Pupils,Supplies & Services,Grants and Subscriptions,Grants Payable,,04/08/2022,11037027,0,225,R,Pupil Development Grant,990016,
Resources,Support Services,Children & Young People,Assistance to Pupils,Supplies & Services,Grants and Subscriptions,Grants Payable,,04/08/2022,11037028,0,225,R,Pupil Development Grant,990016,
Resources,Support Services,Children & Young People,Assistance to Pupils,Supplies & Services,Grants and Subscriptions,Grants Payable,,04/08/2022,11037029,0,225,R,Pupil Development Grant,990016,
Resources,Support Services,Children & Young People,Assistance to Pupils,Supplies & Services,Grants and Subscriptions,Grants Payable,,04/08/2022,11036904,0,225,R,Pupil Development Grant,990016,
Resources,Support Services,Children & Young People,Assistance to Pupils,Supplies & Services,Grants and Subscriptions,Grants Payable,,04/08/2022,11036905,0,225,R,Pupil Development Grant,990016,
Resources,Support Services,Children & Young People,Assistance to Pupils,Supplies & Services,Grants and Subscriptions,Grants Payable,,04/08/2022,11037581,0,225,R,Pupil Development Grant,990016,
Resources,Support Services,Children & Young People,Assistance to Pupils,Supplies & Services,Grants and Subscriptions,Grants Payable,,04/08/2022,11037110,0,225,R,Pupil Development Grant,990016,
Resources,Support Services,Children & Young People,Assistance to Pupils,Supplies & Services,Grants and Subscriptions,Grants Payable,,04/08/2022,11037111,0,225,R,Pupil Development Grant,990016,
Resources,Support Services,Children & Young People,Assistance to Pupils,Supplies & Services,Grants and Subscriptions,Grants Payable,,04/08/2022,11037112,0,225,R,Pupil Development Grant,990016,
Resources,Support Services,Children & Young People,Assistance to Pupils,Supplies & Services,Grants and Subscriptions,Grants Payable,,04/08/2022,11037113,0,225,R,Pupil Development Grant,990016,
"Commercial, Corporate & landlord Services",Property Services & Facilities Management,Resources,Programmed Maintenance,Premises,"Repairs, Alterations & Maintenance of Buildings",Premises Repairs And Maintenance,,08/08/2022,11037911,90063347,230,R,Enviroteq,294940,
"Commercial, Corporate & landlord Services",Property Services & Facilities Management,Resources,Programmed Maintenance,Premises,"Repairs, Alterations & Maintenance of Buildings",Premises Repairs And Maintenance,,08/08/2022,11037912,90063139,230,R,Enviroteq,294940,
Resources,Support Services,Children & Young People,Assistance to Pupils,Supplies & Services,Grants and Subscriptions,Grants Payable,,31/08/2022,11048340,0,225,R,Pupil Development Grant,990016,
Resources,Support Services,Children & Young People,Assistance to Pupils,Supplies & Services,Grants and Subscriptions,Grants Payable,,31/08/2022,11048341,0,225,R,Pupil Development Grant,990016,
Resources,Support Services,Children & Young People,Assistance to Pupils,Supplies & Services,Grants and Subscriptions,Grants Payable,,31/08/2022,11048342,0,225,R,Pupil Development Grant,990016,
Resources,Support Services,Children & Young People,Assistance to Pupils,Supplies & Services,Grants and Subscriptions,Grants Payable,,31/08/2022,11048343,0,225,R,Pupil Development Grant,990016,
Resources,Support Services,Children & Young People,Assistance to Pupils,Supplies & Services,Grants and Subscriptions,Grants Payable,,31/08/2022,11048344,0,225,R,Pupil Development Grant,990016,
Resources,Support Services,Children & Young People,Assistance to Pupils,Supplies & Services,Grants and Subscriptions,Grants Payable,,31/08/2022,11048345,0,225,R,Pupil Development Grant,990016,
Resources,Support Services,Children & Young People,Assistance to Pupils,Supplies & Services,Grants and Subscriptions,Grants Payable,,31/08/2022,11048346,0,225,R,Pupil Development Grant,990016,
Resources,Support Services,Children & Young People,Assistance to Pupils,Supplies & Services,Grants and Subscriptions,Grants Payable,,31/08/2022,11048347,0,225,R,Pupil Development Grant,990016,
Resources,Support Services,Children & Young People,Assistance to Pupils,Supplies & Services,Grants and Subscriptions,Grants Payable,,31/08/2022,11048348,0,225,R,Pupil Development Grant,990016,
Resources,Support Services,Children & Young People,Assistance to Pupils,Supplies & Services,Grants and Subscriptions,Grants Payable,,31/08/2022,11048349,0,225,R,Pupil Development Grant,990016,
Resources,Support Services,Children & Young People,Assistance to Pupils,Supplies & Services,Grants and Subscriptions,Grants Payable,,31/08/2022,11048350,0,225,R,Pupil Development Grant,990016,
Resources,Support Services,Children & Young People,Assistance to Pupils,Supplies & Services,Grants and Subscriptions,Grants Payable,,31/08/2022,11048351,0,225,R,Pupil Development Grant,990016,
Resources,Support Services,Children & Young People,Assistance to Pupils,Supplies & Services,Grants and Subscriptions,Grants Payable,,31/08/2022,11048352,0,225,R,Pupil Development Grant,990016,
Resources,Support Services,Children & Young People,Assistance to Pupils,Supplies & Services,Grants and Subscriptions,Grants Payable,,31/08/2022,11048353,0,225,R,Pupil Development Grant,990016,
Resources,Support Services,Children & Young People,Assistance to Pupils,Supplies & Services,Grants and Subscriptions,Grants Payable,,31/08/2022,11048354,0,225,R,Pupil Development Grant,990016,
Neighbourhood Services,Highways,Communities & Place,Potholing,Supplies & Services,"Equipment, Furniture and Materials",Materials & Consumables.,,23/08/2022,11045113,818901,446.5,R,Dragon Asphalt Ltd,2202522,
Neighbourhood Services,Highways,Communities & Place,Potholing,Supplies & Services,"Equipment, Furniture and Materials",Materials & Consumables.,,23/08/2022,11045113,818901,243.2,R,Dragon Asphalt Ltd,2202522,
Neighbourhood Services,Highways,Communities & Place,Resurfacing,Supplies & Services,"Equipment, Furniture and Materials",Materials & Consumables.,,23/08/2022,11045114,818876,197.6,R,Dragon Asphalt Ltd,2202522,
Neighbourhood Services,Highways,Communities & Place,Resurfacing,Supplies & Services,"Equipment, Furniture and Materials",Materials & Consumables.,,23/08/2022,11045116,818873,90.1,R,Dragon Asphalt Ltd,2202522,
Neighbourhood Services,Waste and Street Services,Communities & Place,Grounds,Supplies & Services,"Equipment, Furniture and Materials",Materials & Consumables.,,23/08/2022,11040823,10122692,35.63,R,Robert Price Builders Merchants Ltd,200061,
Resources,Support Services,Children & Young People,Assistance to Pupils,Supplies & Services,Grants and Subscriptions,Grants Payable,,04/08/2022,11037049,0,225,R,Pupil Development Grant,990016,
Resources,Support Services,Children & Young People,Assistance to Pupils,Supplies & Services,Grants and Subscriptions,Grants Payable,,04/08/2022,11037687,0,225,R,Pupil Development Grant,990016,
Resources,Support Services,Children & Young People,Assistance to Pupils,Supplies & Services,Grants and Subscriptions,Grants Payable,,04/08/2022,11037688,0,225,R,Pupil Development Grant,990016,
Resources,Support Services,Children & Young People,Assistance to Pupils,Supplies & Services,Grants and Subscriptions,Grants Payable,,04/08/2022,11037689,0,225,R,Pupil Development Grant,990016,
Resources,Support Services,Children & Young People,Assistance to Pupils,Supplies & Services,Grants and Subscriptions,Grants Payable,,04/08/2022,11037690,0,225,R,Pupil Development Grant,990016,
Resources,Support Services,Children & Young People,Assistance to Pupils,Supplies & Services,Grants and Subscriptions,Grants Payable,,04/08/2022,11037691,0,225,R,Pupil Development Grant,990016,
Resources,Support Services,Children & Young People,Assistance to Pupils,Supplies & Services,Grants and Subscriptions,Grants Payable,,04/08/2022,11037692,0,225,R,Pupil Development Grant,990016,
Resources,Support Services,Children & Young People,Assistance to Pupils,Supplies & Services,Grants and Subscriptions,Grants Payable,,04/08/2022,11036706,0,225,R,Pupil Development Grant,990016,
Resources,Support Services,Children & Young People,Assistance to Pupils,Supplies & Services,Grants and Subscriptions,Grants Payable,,04/08/2022,11036707,0,225,R,Pupil Development Grant,990016,
Resources,Support Services,Children & Young People,Assistance to Pupils,Supplies & Services,Grants and Subscriptions,Grants Payable,,04/08/2022,11036708,0,225,R,Pupil Development Grant,990016,
Resources,Support Services,Children & Young People,Assistance to Pupils,Supplies & Services,Grants and Subscriptions,Grants Payable,,04/08/2022,11036709,0,225,R,Pupil Development Grant,990016,
Resources,Support Services,Children & Young People,Assistance to Pupils,Supplies & Services,Grants and Subscriptions,Grants Payable,,04/08/2022,11037091,0,225,R,Pupil Development Grant,990016,
Resources,Support Services,Children & Young People,Assistance to Pupils,Supplies & Services,Grants and Subscriptions,Grants Payable,,04/08/2022,11036704,0,225,R,Pupil Development Grant,990016,
Resources,Support Services,Children & Young People,Assistance to Pupils,Supplies & Services,Grants and Subscriptions,Grants Payable,,04/08/2022,11037102,0,225,R,Pupil Development Grant,990016,
Resources,Support Services,Children & Young People,Assistance to Pupils,Supplies & Services,Grants and Subscriptions,Grants Payable,,04/08/2022,11037103,0,225,R,Pupil Development Grant,990016,
Resources,Support Services,Children & Young People,Assistance to Pupils,Supplies & Services,Grants and Subscriptions,Grants Payable,,04/08/2022,11037287,0,225,R,Pupil Development Grant,990016,
Resources,Support Services,Children & Young People,Assistance to Pupils,Supplies & Services,Grants and Subscriptions,Grants Payable,,04/08/2022,11037288,0,225,R,Pupil Development Grant,990016,
Resources,Support Services,Children & Young People,Assistance to Pupils,Supplies & Services,Grants and Subscriptions,Grants Payable,,04/08/2022,11037351,0,225,R,Pupil Development Grant,990016,
Resources,Support Services,Children & Young People,Assistance to Pupils,Supplies & Services,Grants and Subscriptions,Grants Payable,,04/08/2022,11037352,0,225,R,Pupil Development Grant,990016,
Resources,Support Services,Children & Young People,Assistance to Pupils,Supplies & Services,Grants and Subscriptions,Grants Payable,,04/08/2022,11037439,0,225,R,Pupil Development Grant,990016,
Resources,Support Services,Children & Young People,Assistance to Pupils,Supplies & Services,Grants and Subscriptions,Grants Payable,,04/08/2022,11037440,0,225,R,Pupil Development Grant,990016,
Resources,Support Services,Children & Young People,Assistance to Pupils,Supplies & Services,Grants and Subscriptions,Grants Payable,,04/08/2022,11037441,0,225,R,Pupil Development Grant,990016,
Resources,Support Services,Children & Young People,Assistance to Pupils,Supplies & Services,Grants and Subscriptions,Grants Payable,,04/08/2022,11037442,0,225,R,Pupil Development Grant,990016,
Resources,Support Services,Children & Young People,Assistance to Pupils,Supplies & Services,Grants and Subscriptions,Grants Payable,,04/08/2022,11037172,0,225,R,Pupil Development Grant,990016,
Resources,Support Services,Children & Young People,Assistance to Pupils,Supplies & Services,Grants and Subscriptions,Grants Payable,,04/08/2022,11037173,0,225,R,Pupil Development Grant,990016,
Resources,Support Services,Children & Young People,Assistance to Pupils,Supplies & Services,Grants and Subscriptions,Grants Payable,,04/08/2022,11037174,0,225,R,Pupil Development Grant,990016,
Resources,Support Services,Children & Young People,Assistance to Pupils,Supplies & Services,Grants and Subscriptions,Grants Payable,,04/08/2022,11037175,0,225,R,Pupil Development Grant,990016,
Resources,Support Services,Children & Young People,Assistance to Pupils,Supplies & Services,Grants and Subscriptions,Grants Payable,,04/08/2022,11037273,0,225,R,Pupil Development Grant,990016,
Resources,Support Services,Children & Young People,Assistance to Pupils,Supplies & Services,Grants and Subscriptions,Grants Payable,,04/08/2022,11037656,0,225,R,Pupil Development Grant,990016,
Resources,Support Services,Children & Young People,Assistance to Pupils,Supplies & Services,Grants and Subscriptions,Grants Payable,,04/08/2022,11036908,0,225,R,Pupil Development Grant,990016,
Resources,Support Services,Children & Young People,Assistance to Pupils,Supplies & Services,Grants and Subscriptions,Grants Payable,,04/08/2022,11036909,0,225,R,Pupil Development Grant,990016,
Resources,Support Services,Children & Young People,Assistance to Pupils,Supplies & Services,Grants and Subscriptions,Grants Payable,,04/08/2022,11036910,0,225,R,Pupil Development Grant,990016,
Resources,Support Services,Children & Young People,Assistance to Pupils,Supplies & Services,Grants and Subscriptions,Grants Payable,,04/08/2022,11036911,0,225,R,Pupil Development Grant,990016,
Resources,Support Services,Children & Young People,Assistance to Pupils,Supplies & Services,Grants and Subscriptions,Grants Payable,,04/08/2022,11037092,0,225,R,Pupil Development Grant,990016,
Resources,Support Services,Children & Young People,Assistance to Pupils,Supplies & Services,Grants and Subscriptions,Grants Payable,,04/08/2022,11037093,0,225,R,Pupil Development Grant,990016,
Resources,Support Services,Children & Young People,Assistance to Pupils,Supplies & Services,Grants and Subscriptions,Grants Payable,,04/08/2022,11037094,0,225,R,Pupil Development Grant,990016,
Resources,Support Services,Children & Young People,Assistance to Pupils,Supplies & Services,Grants and Subscriptions,Grants Payable,,04/08/2022,11037170,0,225,R,Pupil Development Grant,990016,
Resources,Support Services,Children & Young People,Assistance to Pupils,Supplies & Services,Grants and Subscriptions,Grants Payable,,04/08/2022,11037051,0,225,R,Pupil Development Grant,990016,
Resources,Support Services,Children & Young People,Assistance to Pupils,Supplies & Services,Grants and Subscriptions,Grants Payable,,04/08/2022,11037052,0,225,R,Pupil Development Grant,990016,
Resources,Support Services,Children & Young People,Assistance to Pupils,Supplies & Services,Grants and Subscriptions,Grants Payable,,04/08/2022,11037053,0,225,R,Pupil Development Grant,990016,
Resources,Support Services,Children & Young People,Assistance to Pupils,Supplies & Services,Grants and Subscriptions,Grants Payable,,04/08/2022,11037054,0,225,R,Pupil Development Grant,990016,
Resources,Support Services,Children & Young People,Assistance to Pupils,Supplies & Services,Grants and Subscriptions,Grants Payable,,04/08/2022,11037515,0,225,R,Pupil Development Grant,990016,
Resources,Support Services,Children & Young People,Assistance to Pupils,Supplies & Services,Grants and Subscriptions,Grants Payable,,04/08/2022,11037516,0,225,R,Pupil Development Grant,990016,
Resources,Support Services,Children & Young People,Assistance to Pupils,Supplies & Services,Grants and Subscriptions,Grants Payable,,04/08/2022,11037517,0,225,R,Pupil Development Grant,990016,
Resources,Support Services,Children & Young People,Assistance to Pupils,Supplies & Services,Grants and Subscriptions,Grants Payable,,04/08/2022,11037518,0,225,R,Pupil Development Grant,990016,
Resources,Support Services,Children & Young People,Assistance to Pupils,Supplies & Services,Grants and Subscriptions,Grants Payable,,04/08/2022,11037375,0,225,R,Pupil Development Grant,990016,
Resources,Support Services,Children & Young People,Assistance to Pupils,Supplies & Services,Grants and Subscriptions,Grants Payable,,04/08/2022,11037376,0,225,R,Pupil Development Grant,990016,
Resources,Support Services,Children & Young People,Assistance to Pupils,Supplies & Services,Grants and Subscriptions,Grants Payable,,04/08/2022,11037291,0,225,R,Pupil Development Grant,990016,
Resources,Support Services,Children & Young People,Assistance to Pupils,Supplies & Services,Grants and Subscriptions,Grants Payable,,04/08/2022,11037292,0,225,R,Pupil Development Grant,990016,
Resources,Support Services,Children & Young People,Assistance to Pupils,Supplies & Services,Grants and Subscriptions,Grants Payable,,04/08/2022,11036766,0,225,R,Pupil Development Grant,990016,
Resources,Support Services,Children & Young People,Assistance to Pupils,Supplies & Services,Grants and Subscriptions,Grants Payable,,04/08/2022,11036767,0,225,R,Pupil Development Grant,990016,
Resources,Support Services,Children & Young People,Assistance to Pupils,Supplies & Services,Grants and Subscriptions,Grants Payable,,04/08/2022,11036768,0,225,R,Pupil Development Grant,990016,
Resources,Support Services,Children & Young People,Assistance to Pupils,Supplies & Services,Grants and Subscriptions,Grants Payable,,04/08/2022,11036769,0,225,R,Pupil Development Grant,990016,
Resources,Support Services,Children & Young People,Assistance to Pupils,Supplies & Services,Grants and Subscriptions,Grants Payable,,04/08/2022,11036676,0,225,R,Pupil Development Grant,990016,
Resources,Support Services,Children & Young People,Assistance to Pupils,Supplies & Services,Grants and Subscriptions,Grants Payable,,04/08/2022,11036677,0,225,R,Pupil Development Grant,990016,
Resources,Support Services,Children & Young People,Assistance to Pupils,Supplies & Services,Grants and Subscriptions,Grants Payable,,04/08/2022,11036678,0,225,R,Pupil Development Grant,990016,
Resources,Support Services,Children & Young People,Assistance to Pupils,Supplies & Services,Grants and Subscriptions,Grants Payable,,04/08/2022,11036679,0,225,R,Pupil Development Grant,990016,
Resources,Support Services,Children & Young People,Assistance to Pupils,Supplies & Services,Grants and Subscriptions,Grants Payable,,04/08/2022,11037479,0,225,R,Pupil Development Grant,990016,
Resources,Support Services,Children & Young People,Assistance to Pupils,Supplies & Services,Grants and Subscriptions,Grants Payable,,04/08/2022,11037480,0,225,R,Pupil Development Grant,990016,
Resources,Support Services,Children & Young People,Assistance to Pupils,Supplies & Services,Grants and Subscriptions,Grants Payable,,04/08/2022,11036787,0,225,R,Pupil Development Grant,990016,
Resources,Support Services,Children & Young People,Assistance to Pupils,Supplies & Services,Grants and Subscriptions,Grants Payable,,04/08/2022,11036788,0,225,R,Pupil Development Grant,990016,
Resources,Support Services,Children & Young People,Assistance to Pupils,Supplies & Services,Grants and Subscriptions,Grants Payable,,04/08/2022,11036789,0,225,R,Pupil Development Grant,990016,
Resources,Support Services,Children & Young People,Assistance to Pupils,Supplies & Services,Grants and Subscriptions,Grants Payable,,04/08/2022,11036880,0,225,R,Pupil Development Grant,990016,
Resources,Support Services,Children & Young People,Assistance to Pupils,Supplies & Services,Grants and Subscriptions,Grants Payable,,04/08/2022,11036881,0,225,R,Pupil Development Grant,990016,
Resources,Support Services,Children & Young People,Assistance to Pupils,Supplies & Services,Grants and Subscriptions,Grants Payable,,04/08/2022,11037638,0,225,R,Pupil Development Grant,990016,
Resources,Support Services,Children & Young People,Assistance to Pupils,Supplies & Services,Grants and Subscriptions,Grants Payable,,04/08/2022,11037639,0,225,R,Pupil Development Grant,990016,
Resources,Support Services,Children & Young People,Assistance to Pupils,Supplies & Services,Grants and Subscriptions,Grants Payable,,04/08/2022,11037640,0,225,R,Pupil Development Grant,990016,
Resources,Support Services,Children & Young People,Assistance to Pupils,Supplies & Services,Grants and Subscriptions,Grants Payable,,04/08/2022,11037641,0,225,R,Pupil Development Grant,990016,
Resources,Support Services,Children & Young People,Assistance to Pupils,Supplies & Services,Grants and Subscriptions,Grants Payable,,04/08/2022,11036884,0,225,R,Pupil Development Grant,990016,
Resources,Support Services,Children & Young People,Assistance to Pupils,Supplies & Services,Grants and Subscriptions,Grants Payable,,04/08/2022,11036885,0,225,R,Pupil Development Grant,990016,
Resources,Support Services,Children & Young People,Assistance to Pupils,Supplies & Services,Grants and Subscriptions,Grants Payable,,04/08/2022,11037325,0,225,R,Pupil Development Grant,990016,
Resources,Support Services,Children & Young People,Assistance to Pupils,Supplies & Services,Grants and Subscriptions,Grants Payable,,04/08/2022,11036698,0,225,R,Pupil Development Grant,990016,
Resources,Support Services,Children & Young People,Assistance to Pupils,Supplies & Services,Grants and Subscriptions,Grants Payable,,04/08/2022,11036699,0,225,R,Pupil Development Grant,990016,
Resources,Support Services,Children & Young People,Assistance to Pupils,Supplies & Services,Grants and Subscriptions,Grants Payable,,04/08/2022,11037231,0,225,R,Pupil Development Grant,990016,
Resources,Support Services,Children & Young People,Assistance to Pupils,Supplies & Services,Grants and Subscriptions,Grants Payable,,04/08/2022,11037232,0,225,R,Pupil Development Grant,990016,
Resources,Support Services,Children & Young People,Assistance to Pupils,Supplies & Services,Grants and Subscriptions,Grants Payable,,04/08/2022,11037233,0,225,R,Pupil Development Grant,990016,
"Commercial, Corporate & landlord Services",Property Services & Facilities Management,Resources,Programmed Maintenance,Premises,"Repairs, Alterations & Maintenance of Buildings",Premises Repairs And Maintenance,,08/08/2022,11037913,90063140,230,R,Enviroteq,294940,
Neighbourhood Services,Highways,Communities & Place,Drainage works,Supplies & Services,"Equipment, Furniture and Materials",Materials & Consumables.,,10/08/2022,11038612,818309,43.5,R,Caerleon Readymix Concrete Ltd,289149,
Neighbourhood Services,Highways,Communities & Place,Drainage works,Supplies & Services,"Equipment, Furniture and Materials",Materials & Consumables.,,10/08/2022,11038612,818309,138.75,R,Caerleon Readymix Concrete Ltd,289149,
Neighbourhood Services,Highways,Communities & Place,Drainage works,Supplies & Services,"Equipment, Furniture and Materials",Materials & Consumables.,,10/08/2022,11038612,818309,43.5,R,Caerleon Readymix Concrete Ltd,289149,
Neighbourhood Services,Highways,Communities & Place,Structures Maintenance,Supplies & Services,"Equipment, Furniture and Materials",Materials & Consumables.,,10/08/2022,11038612,818309,46.25,R,Caerleon Readymix Concrete Ltd,289149,
Neighbourhood Services,Highways,Communities & Place,Structures Maintenance,Supplies & Services,"Equipment, Furniture and Materials",Materials & Consumables.,,10/08/2022,11038612,818309,46.25,R,Caerleon Readymix Concrete Ltd,289149,
Neighbourhood Services,Highways,Communities & Place,Structures Maintenance,Supplies & Services,"Equipment, Furniture and Materials",Materials & Consumables.,,10/08/2022,11038612,818309,46.25,R,Caerleon Readymix Concrete Ltd,289149,
Schools Total,School Group 7 � Pupil Capacity 501-1800,MCC Schools,Chepstow School,Premises,Energy Costs,Electricity.,,19/08/2022,11044714,0,31.7,R,EDF Energy,212738,
Schools Total,School Group 1 � Pupil Capacity 1-143,MCC Schools,Llanvihangel Crucorney Primary School,Premises,Energy Costs,Electricity.,,19/08/2022,11044756,0,255.44,R,EDF Energy,212738,
Schools Total,School Group 2 � Pupil Capacity 144-314,MCC Schools,Durand Primary School,Premises,Energy Costs,Electricity.,,19/08/2022,11044918,0,-419.54,R,EDF Energy,212738,
Resources,Support Services,Children & Young People,Assistance to Pupils,Supplies & Services,Grants and Subscriptions,Grants Payable,,04/08/2022,11037234,0,225,R,Pupil Development Grant,990016,
Resources,Support Services,Children & Young People,Assistance to Pupils,Supplies & Services,Grants and Subscriptions,Grants Payable,,04/08/2022,11037568,0,225,R,Pupil Development Grant,990016,
Resources,Support Services,Children & Young People,Assistance to Pupils,Supplies & Services,Grants and Subscriptions,Grants Payable,,04/08/2022,11037569,0,225,R,Pupil Development Grant,990016,
Resources,Support Services,Children & Young People,Assistance to Pupils,Supplies & Services,Grants and Subscriptions,Grants Payable,,04/08/2022,11036943,0,225,R,Pupil Development Grant,990016,
Resources,Support Services,Children & Young People,Assistance to Pupils,Supplies & Services,Grants and Subscriptions,Grants Payable,,04/08/2022,11036944,0,225,R,Pupil Development Grant,990016,
Resources,Support Services,Children & Young People,Assistance to Pupils,Supplies & Services,Grants and Subscriptions,Grants Payable,,04/08/2022,11036712,0,225,R,Pupil Development Grant,990016,
Resources,Support Services,Children & Young People,Assistance to Pupils,Supplies & Services,Grants and Subscriptions,Grants Payable,,04/08/2022,11036713,0,225,R,Pupil Development Grant,990016,
Resources,Support Services,Children & Young People,Assistance to Pupils,Supplies & Services,Grants and Subscriptions,Grants Payable,,04/08/2022,11036714,0,225,R,Pupil Development Grant,990016,
Resources,Support Services,Children & Young People,Assistance to Pupils,Supplies & Services,Grants and Subscriptions,Grants Payable,,04/08/2022,11036715,0,225,R,Pupil Development Grant,990016,
Resources,Support Services,Children & Young People,Assistance to Pupils,Supplies & Services,Grants and Subscriptions,Grants Payable,,04/08/2022,11037024,0,225,R,Pupil Development Grant,990016,
Resources,Support Services,Children & Young People,Assistance to Pupils,Supplies & Services,Grants and Subscriptions,Grants Payable,,04/08/2022,11037025,0,225,R,Pupil Development Grant,990016,
Resources,Support Services,Children & Young People,Assistance to Pupils,Supplies & Services,Grants and Subscriptions,Grants Payable,,04/08/2022,11037257,0,225,R,Pupil Development Grant,990016,
Resources,Support Services,Children & Young People,Assistance to Pupils,Supplies & Services,Grants and Subscriptions,Grants Payable,,04/08/2022,11037328,0,225,R,Pupil Development Grant,990016,
Resources,Support Services,Children & Young People,Assistance to Pupils,Supplies & Services,Grants and Subscriptions,Grants Payable,,04/08/2022,11037329,0,225,R,Pupil Development Grant,990016,
Resources,Support Services,Children & Young People,Assistance to Pupils,Supplies & Services,Grants and Subscriptions,Grants Payable,,04/08/2022,11037330,0,225,R,Pupil Development Grant,990016,
Resources,Support Services,Children & Young People,Assistance to Pupils,Supplies & Services,Grants and Subscriptions,Grants Payable,,04/08/2022,11037331,0,225,R,Pupil Development Grant,990016,
Resources,Support Services,Children & Young People,Assistance to Pupils,Supplies & Services,Grants and Subscriptions,Grants Payable,,04/08/2022,11036926,0,225,R,Pupil Development Grant,990016,
Resources,Support Services,Children & Young People,Assistance to Pupils,Supplies & Services,Grants and Subscriptions,Grants Payable,,04/08/2022,11036927,0,225,R,Pupil Development Grant,990016,
Resources,Support Services,Children & Young People,Assistance to Pupils,Supplies & Services,Grants and Subscriptions,Grants Payable,,04/08/2022,11036928,0,225,R,Pupil Development Grant,990016,
"Commercial, Corporate & landlord Services",Property Services & Facilities Management,Resources,Programmed Maintenance,Premises,"Repairs, Alterations & Maintenance of Buildings",Premises Repairs And Maintenance,,08/08/2022,11033300,90063132,140,R,Fire Safety Direct,296907,
"Commercial, Corporate & landlord Services",Property Services & Facilities Management,Resources,Programmed Maintenance,Premises,"Repairs, Alterations & Maintenance of Buildings",Premises Repairs And Maintenance,,08/08/2022,11033302,90063133,205,R,Fire Safety Direct,296907,
"Commercial, Corporate & landlord Services",Property Services & Facilities Management,Resources,Programmed Maintenance,Premises,"Repairs, Alterations & Maintenance of Buildings",Premises Repairs And Maintenance,,23/08/2022,11045285,90064136,350,R,Heightsafe Systems Ltd,2201244,
"Placemaking, Highways & Flooding",Highways Dev & Car Parks,Communities & Place,Transport Policy,Income,Customer and Client Receipts,Parking Income,,03/08/2022,11033946,0,2000,R,Traffic Enforcement Centre,2202226,
Resources,Support Services,Children & Young People,Assistance to Pupils,Supplies & Services,Grants and Subscriptions,Grants Payable,,04/08/2022,11036790,0,225,R,Pupil Development Grant,990016,
Resources,Support Services,Children & Young People,Assistance to Pupils,Supplies & Services,Grants and Subscriptions,Grants Payable,,04/08/2022,11037422,0,225,R,Pupil Development Grant,990016,
Resources,Support Services,Children & Young People,Assistance to Pupils,Supplies & Services,Grants and Subscriptions,Grants Payable,,04/08/2022,11037274,0,225,R,Pupil Development Grant,990016,
Resources,Support Services,Children & Young People,Assistance to Pupils,Supplies & Services,Grants and Subscriptions,Grants Payable,,04/08/2022,11037190,0,225,R,Pupil Development Grant,990016,
Resources,Support Services,Children & Young People,Assistance to Pupils,Supplies & Services,Grants and Subscriptions,Grants Payable,,04/08/2022,11037191,0,225,R,Pupil Development Grant,990016,
Resources,Support Services,Children & Young People,Assistance to Pupils,Supplies & Services,Grants and Subscriptions,Grants Payable,,04/08/2022,11037192,0,225,R,Pupil Development Grant,990016,
Resources,Support Services,Children & Young People,Assistance to Pupils,Supplies & Services,Grants and Subscriptions,Grants Payable,,04/08/2022,11037193,0,225,R,Pupil Development Grant,990016,
Resources,Support Services,Children & Young People,Assistance to Pupils,Supplies & Services,Grants and Subscriptions,Grants Payable,,04/08/2022,11037312,0,225,R,Pupil Development Grant,990016,
Resources,Support Services,Children & Young People,Assistance to Pupils,Supplies & Services,Grants and Subscriptions,Grants Payable,,04/08/2022,11037313,0,225,R,Pupil Development Grant,990016,
Resources,Support Services,Children & Young People,Assistance to Pupils,Supplies & Services,Grants and Subscriptions,Grants Payable,,04/08/2022,11037314,0,225,R,Pupil Development Grant,990016,
Resources,Support Services,Children & Young People,Assistance to Pupils,Supplies & Services,Grants and Subscriptions,Grants Payable,,04/08/2022,11037001,0,225,R,Pupil Development Grant,990016,
Resources,Support Services,Children & Young People,Assistance to Pupils,Supplies & Services,Grants and Subscriptions,Grants Payable,,04/08/2022,11037002,0,225,R,Pupil Development Grant,990016,
Resources,Support Services,Children & Young People,Assistance to Pupils,Supplies & Services,Grants and Subscriptions,Grants Payable,,04/08/2022,11037195,0,225,R,Pupil Development Grant,990016,
Resources,Support Services,Children & Young People,Assistance to Pupils,Supplies & Services,Grants and Subscriptions,Grants Payable,,04/08/2022,11037196,0,225,R,Pupil Development Grant,990016,
Resources,Support Services,Children & Young People,Assistance to Pupils,Supplies & Services,Grants and Subscriptions,Grants Payable,,04/08/2022,11037197,0,225,R,Pupil Development Grant,990016,
Resources,Support Services,Children & Young People,Assistance to Pupils,Supplies & Services,Grants and Subscriptions,Grants Payable,,04/08/2022,11037198,0,225,R,Pupil Development Grant,990016,
Resources,Support Services,Children & Young People,Assistance to Pupils,Supplies & Services,Grants and Subscriptions,Grants Payable,,04/08/2022,11037015,0,225,R,Pupil Development Grant,990016,
Resources,Support Services,Children & Young People,Assistance to Pupils,Supplies & Services,Grants and Subscriptions,Grants Payable,,04/08/2022,11037016,0,225,R,Pupil Development Grant,990016,
Resources,Support Services,Children & Young People,Assistance to Pupils,Supplies & Services,Grants and Subscriptions,Grants Payable,,04/08/2022,11037225,0,225,R,Pupil Development Grant,990016,
Resources,Support Services,Children & Young People,Assistance to Pupils,Supplies & Services,Grants and Subscriptions,Grants Payable,,04/08/2022,11037226,0,225,R,Pupil Development Grant,990016,
Resources,Support Services,Children & Young People,Assistance to Pupils,Supplies & Services,Grants and Subscriptions,Grants Payable,,04/08/2022,11037227,0,225,R,Pupil Development Grant,990016,
Resources,Support Services,Children & Young People,Assistance to Pupils,Supplies & Services,Grants and Subscriptions,Grants Payable,,04/08/2022,11037228,0,225,R,Pupil Development Grant,990016,
Resources,Support Services,Children & Young People,Assistance to Pupils,Supplies & Services,Grants and Subscriptions,Grants Payable,,04/08/2022,11037513,0,225,R,Pupil Development Grant,990016,
Resources,Support Services,Children & Young People,Assistance to Pupils,Supplies & Services,Grants and Subscriptions,Grants Payable,,04/08/2022,11037514,0,225,R,Pupil Development Grant,990016,
Resources,Support Services,Children & Young People,Assistance to Pupils,Supplies & Services,Grants and Subscriptions,Grants Payable,,04/08/2022,11036618,0,225,R,Pupil Development Grant,990016,
Resources,Support Services,Children & Young People,Assistance to Pupils,Supplies & Services,Grants and Subscriptions,Grants Payable,,04/08/2022,11036619,0,225,R,Pupil Development Grant,990016,
Resources,Support Services,Children & Young People,Assistance to Pupils,Supplies & Services,Grants and Subscriptions,Grants Payable,,04/08/2022,11036620,0,225,R,Pupil Development Grant,990016,
Resources,Support Services,Children & Young People,Assistance to Pupils,Supplies & Services,Grants and Subscriptions,Grants Payable,,04/08/2022,11036621,0,225,R,Pupil Development Grant,990016,
Resources,Support Services,Children & Young People,Assistance to Pupils,Supplies & Services,Grants and Subscriptions,Grants Payable,,04/08/2022,11037437,0,225,R,Pupil Development Grant,990016,
Resources,Support Services,Children & Young People,Assistance to Pupils,Supplies & Services,Grants and Subscriptions,Grants Payable,,04/08/2022,11037438,0,225,R,Pupil Development Grant,990016,
Resources,Support Services,Children & Young People,Assistance to Pupils,Supplies & Services,Grants and Subscriptions,Grants Payable,,04/08/2022,11037461,0,225,R,Pupil Development Grant,990016,
Resources,Support Services,Children & Young People,Assistance to Pupils,Supplies & Services,Grants and Subscriptions,Grants Payable,,04/08/2022,11037462,0,225,R,Pupil Development Grant,990016,
Resources,Support Services,Children & Young People,Assistance to Pupils,Supplies & Services,Grants and Subscriptions,Grants Payable,,04/08/2022,11036748,0,225,R,Pupil Development Grant,990016,
Children Services,Children Services Other,Social Care and Health,Therapeutic Service,Supplies & Services,Services,Professional And Specialist Fees,,22/08/2022,11041522,10121794,50,R,REDACTED PERSONAL DATA,2200997,
Resources,Support Services,Children & Young People,Assistance to Pupils,Supplies & Services,Grants and Subscriptions,Grants Payable,,04/08/2022,11036898,0,225,R,Pupil Development Grant,990016,
Resources,Support Services,Children & Young People,Assistance to Pupils,Supplies & Services,Grants and Subscriptions,Grants Payable,,04/08/2022,11036899,0,225,R,Pupil Development Grant,990016,
Resources,Support Services,Children & Young People,Assistance to Pupils,Supplies & Services,Grants and Subscriptions,Grants Payable,,04/08/2022,11036906,0,225,R,Pupil Development Grant,990016,
Resources,Support Services,Children & Young People,Assistance to Pupils,Supplies & Services,Grants and Subscriptions,Grants Payable,,04/08/2022,11036907,0,225,R,Pupil Development Grant,990016,
Resources,Support Services,Children & Young People,Assistance to Pupils,Supplies & Services,Grants and Subscriptions,Grants Payable,,04/08/2022,11037021,0,225,R,Pupil Development Grant,990016,
Resources,Support Services,Children & Young People,Assistance to Pupils,Supplies & Services,Grants and Subscriptions,Grants Payable,,04/08/2022,11037150,0,225,R,Pupil Development Grant,990016,
Resources,Support Services,Children & Young People,Assistance to Pupils,Supplies & Services,Grants and Subscriptions,Grants Payable,,04/08/2022,11037151,0,225,R,Pupil Development Grant,990016,
Resources,Support Services,Children & Young People,Assistance to Pupils,Supplies & Services,Grants and Subscriptions,Grants Payable,,04/08/2022,11037152,0,225,R,Pupil Development Grant,990016,
Resources,Support Services,Children & Young People,Assistance to Pupils,Supplies & Services,Grants and Subscriptions,Grants Payable,,04/08/2022,11037153,0,225,R,Pupil Development Grant,990016,
Resources,Support Services,Children & Young People,Assistance to Pupils,Supplies & Services,Grants and Subscriptions,Grants Payable,,04/08/2022,11036754,0,225,R,Pupil Development Grant,990016,
Resources,Support Services,Children & Young People,Assistance to Pupils,Supplies & Services,Grants and Subscriptions,Grants Payable,,04/08/2022,11036755,0,225,R,Pupil Development Grant,990016,
Resources,Support Services,Children & Young People,Assistance to Pupils,Supplies & Services,Grants and Subscriptions,Grants Payable,,04/08/2022,11036756,0,225,R,Pupil Development Grant,990016,
Resources,Support Services,Children & Young People,Assistance to Pupils,Supplies & Services,Grants and Subscriptions,Grants Payable,,04/08/2022,11036757,0,225,R,Pupil Development Grant,990016,
Resources,Support Services,Children & Young People,Assistance to Pupils,Supplies & Services,Grants and Subscriptions,Grants Payable,,04/08/2022,11037101,0,225,R,Pupil Development Grant,990016,
Resources,Support Services,Children & Young People,Assistance to Pupils,Supplies & Services,Grants and Subscriptions,Grants Payable,,04/08/2022,11037409,0,225,R,Pupil Development Grant,990016,
Resources,Support Services,Children & Young People,Assistance to Pupils,Supplies & Services,Grants and Subscriptions,Grants Payable,,04/08/2022,11036978,0,225,R,Pupil Development Grant,990016,
Resources,Support Services,Children & Young People,Assistance to Pupils,Supplies & Services,Grants and Subscriptions,Grants Payable,,04/08/2022,11037481,0,225,R,Pupil Development Grant,990016,
Resources,Support Services,Children & Young People,Assistance to Pupils,Supplies & Services,Grants and Subscriptions,Grants Payable,,04/08/2022,11037050,0,225,R,Pupil Development Grant,990016,
Resources,Support Services,Children & Young People,Assistance to Pupils,Supplies & Services,Grants and Subscriptions,Grants Payable,,04/08/2022,11036815,0,225,R,Pupil Development Grant,990016,
Schools Total,Schools,MCC Schools,Mounton House Special School,Premises,Energy Costs,Electricity.,,19/08/2022,11044663,0,25,R,EDF Energy,212738,
"Commercial, Corporate & landlord Services",Property Services & Facilities Management,Resources,Programmed Maintenance,Premises,"Repairs, Alterations & Maintenance of Buildings",Premises Repairs And Maintenance,,30/08/2022,11047974,90062295,269.38,R,EFS Systems (UK) Ltd,2200607,
"Policy, Scrutiny & Customer Service",Customer Relations,Chief Executive's Unit,Complaints,Supplies & Services,Services,Professional And Specialist Fees,,30/08/2022,11047933,10126029,278,R,REDACTED PERSONAL DATA,2201756,
"Facilities, Fleet & Decarbonisation",Transport Department,Communities & Place,Transport,Premises,Energy Costs,Electricity.,,19/08/2022,11044745,0,81.26,R,EDF Energy,212738,
"Enterprise, Housing & Community Animation",Borough Theatre,Communities & Place,Borough Theatre General,Supplies & Services,Services,Sub-Contractors Fees,,11/08/2022,11036381,10123422,84.21,R,REDACTED PERSONAL DATA,2203879,
"Enterprise, Housing & Community Animation",Borough Theatre,Communities & Place,Borough Theatre General,Supplies & Services,Services,Sub-Contractors Fees,,11/08/2022,11037918,10122249,3700,R,Louise Osborn,2203799,
Resources,Support Services,Children & Young People,Assistance to Pupils,Supplies & Services,Grants and Subscriptions,Grants Payable,,04/08/2022,11036816,0,225,R,Pupil Development Grant,990016,
Resources,Support Services,Children & Young People,Assistance to Pupils,Supplies & Services,Grants and Subscriptions,Grants Payable,,04/08/2022,11037405,0,225,R,Pupil Development Grant,990016,
Resources,Support Services,Children & Young People,Assistance to Pupils,Supplies & Services,Grants and Subscriptions,Grants Payable,,04/08/2022,11036653,0,225,R,Pupil Development Grant,990016,
Resources,Support Services,Children & Young People,Assistance to Pupils,Supplies & Services,Grants and Subscriptions,Grants Payable,,04/08/2022,11037401,0,225,R,Pupil Development Grant,990016,
Resources,Support Services,Children & Young People,Assistance to Pupils,Supplies & Services,Grants and Subscriptions,Grants Payable,,04/08/2022,11037402,0,225,R,Pupil Development Grant,990016,
Resources,Support Services,Children & Young People,Assistance to Pupils,Supplies & Services,Grants and Subscriptions,Grants Payable,,04/08/2022,11037403,0,225,R,Pupil Development Grant,990016,
Resources,Support Services,Children & Young People,Assistance to Pupils,Supplies & Services,Grants and Subscriptions,Grants Payable,,04/08/2022,11037542,0,225,R,Pupil Development Grant,990016,
Resources,Support Services,Children & Young People,Assistance to Pupils,Supplies & Services,Grants and Subscriptions,Grants Payable,,04/08/2022,11037574,0,225,R,Pupil Development Grant,990016,
Resources,Support Services,Children & Young People,Assistance to Pupils,Supplies & Services,Grants and Subscriptions,Grants Payable,,04/08/2022,11037575,0,225,R,Pupil Development Grant,990016,
Resources,Support Services,Children & Young People,Assistance to Pupils,Supplies & Services,Grants and Subscriptions,Grants Payable,,04/08/2022,11036929,0,225,R,Pupil Development Grant,990016,
Resources,Support Services,Children & Young People,Assistance to Pupils,Supplies & Services,Grants and Subscriptions,Grants Payable,,04/08/2022,11036930,0,225,R,Pupil Development Grant,990016,
Resources,Support Services,Children & Young People,Assistance to Pupils,Supplies & Services,Grants and Subscriptions,Grants Payable,,04/08/2022,11036931,0,225,R,Pupil Development Grant,990016,
Resources,Support Services,Children & Young People,Assistance to Pupils,Supplies & Services,Grants and Subscriptions,Grants Payable,,04/08/2022,11037657,0,225,R,Pupil Development Grant,990016,
Resources,Support Services,Children & Young People,Assistance to Pupils,Supplies & Services,Grants and Subscriptions,Grants Payable,,04/08/2022,11037658,0,225,R,Pupil Development Grant,990016,
Resources,Support Services,Children & Young People,Assistance to Pupils,Supplies & Services,Grants and Subscriptions,Grants Payable,,04/08/2022,11037659,0,225,R,Pupil Development Grant,990016,
Neighbourhood Services,Highways,Communities & Place,Internal others,Supplies & Services,"Equipment, Furniture and Materials",Materials & Consumables.,,10/08/2022,11038674,818434,197,R,Caerleon Readymix Concrete Ltd,289149,
Neighbourhood Services,Highways,Communities & Place,Drainage works,Supplies & Services,"Equipment, Furniture and Materials",Materials & Consumables.,,10/08/2022,11038674,818434,279,R,Caerleon Readymix Concrete Ltd,289149,
Neighbourhood Services,Highways,Communities & Place,Drainage works,Supplies & Services,"Equipment, Furniture and Materials",Materials & Consumables.,,10/08/2022,11038674,818434,232.5,R,Caerleon Readymix Concrete Ltd,289149,
Neighbourhood Services,Highways,Communities & Place,Drainage works,Supplies & Services,"Equipment, Furniture and Materials",Materials & Consumables.,,10/08/2022,11038674,818434,325.5,R,Caerleon Readymix Concrete Ltd,289149,
Neighbourhood Services,Highways,Communities & Place,Drainage works,Supplies & Services,"Equipment, Furniture and Materials",Materials & Consumables.,,10/08/2022,11038674,818434,93,R,Caerleon Readymix Concrete Ltd,289149,
Neighbourhood Services,Highways,Communities & Place,Structures Maintenance,Supplies & Services,"Equipment, Furniture and Materials",Materials & Consumables.,,10/08/2022,11038674,818434,197,R,Caerleon Readymix Concrete Ltd,289149,
Neighbourhood Services,Highways,Communities & Place,Structures Maintenance,Supplies & Services,"Equipment, Furniture and Materials",Materials & Consumables.,,10/08/2022,11038674,818434,49.25,R,Caerleon Readymix Concrete Ltd,289149,
Neighbourhood Services,Highways,Communities & Place,Structures Maintenance,Supplies & Services,"Equipment, Furniture and Materials",Materials & Consumables.,,10/08/2022,11038674,818434,197,R,Caerleon Readymix Concrete Ltd,289149,
Neighbourhood Services,Highways,Communities & Place,Structures Maintenance,Supplies & Services,"Equipment, Furniture and Materials",Materials & Consumables.,,10/08/2022,11038674,818434,49.25,R,Caerleon Readymix Concrete Ltd,289149,
Resources,Support Services,Children & Young People,Assistance to Pupils,Supplies & Services,Grants and Subscriptions,Grants Payable,,04/08/2022,11037660,0,225,R,Pupil Development Grant,990016,
Resources,Support Services,Children & Young People,Assistance to Pupils,Supplies & Services,Grants and Subscriptions,Grants Payable,,04/08/2022,11037693,0,225,R,Pupil Development Grant,990016,
Resources,Support Services,Children & Young People,Assistance to Pupils,Supplies & Services,Grants and Subscriptions,Grants Payable,,04/08/2022,11037694,0,225,R,Pupil Development Grant,990016,
Resources,Support Services,Children & Young People,Assistance to Pupils,Supplies & Services,Grants and Subscriptions,Grants Payable,,04/08/2022,11036940,0,225,R,Pupil Development Grant,990016,
Resources,Support Services,Children & Young People,Assistance to Pupils,Supplies & Services,Grants and Subscriptions,Grants Payable,,04/08/2022,11036941,0,225,R,Pupil Development Grant,990016,
Resources,Support Services,Children & Young People,Assistance to Pupils,Supplies & Services,Grants and Subscriptions,Grants Payable,,04/08/2022,11036942,0,225,R,Pupil Development Grant,990016,
Resources,Support Services,Children & Young People,Assistance to Pupils,Supplies & Services,Grants and Subscriptions,Grants Payable,,04/08/2022,11036737,0,225,R,Pupil Development Grant,990016,
Resources,Support Services,Children & Young People,Assistance to Pupils,Supplies & Services,Grants and Subscriptions,Grants Payable,,04/08/2022,11036738,0,225,R,Pupil Development Grant,990016,
Resources,Support Services,Children & Young People,Assistance to Pupils,Supplies & Services,Grants and Subscriptions,Grants Payable,,04/08/2022,11036739,0,225,R,Pupil Development Grant,990016,
Resources,Support Services,Children & Young People,Assistance to Pupils,Supplies & Services,Grants and Subscriptions,Grants Payable,,04/08/2022,11036686,0,225,R,Pupil Development Grant,990016,
Resources,Support Services,Children & Young People,Assistance to Pupils,Supplies & Services,Grants and Subscriptions,Grants Payable,,04/08/2022,11036687,0,225,R,Pupil Development Grant,990016,
Resources,Support Services,Children & Young People,Assistance to Pupils,Supplies & Services,Grants and Subscriptions,Grants Payable,,04/08/2022,11037463,0,225,R,Pupil Development Grant,990016,
Resources,Support Services,Children & Young People,Assistance to Pupils,Supplies & Services,Grants and Subscriptions,Grants Payable,,04/08/2022,11037464,0,225,R,Pupil Development Grant,990016,
Resources,Support Services,Children & Young People,Assistance to Pupils,Supplies & Services,Grants and Subscriptions,Grants Payable,,04/08/2022,11037465,0,225,R,Pupil Development Grant,990016,
Resources,Support Services,Children & Young People,Assistance to Pupils,Supplies & Services,Grants and Subscriptions,Grants Payable,,04/08/2022,11037466,0,225,R,Pupil Development Grant,990016,
Resources,Support Services,Children & Young People,Assistance to Pupils,Supplies & Services,Grants and Subscriptions,Grants Payable,,04/08/2022,11037108,0,225,R,Pupil Development Grant,990016,
Resources,Support Services,Children & Young People,Assistance to Pupils,Supplies & Services,Grants and Subscriptions,Grants Payable,,04/08/2022,11037109,0,225,R,Pupil Development Grant,990016,
Resources,Support Services,Children & Young People,Assistance to Pupils,Supplies & Services,Grants and Subscriptions,Grants Payable,,04/08/2022,11037293,0,225,R,Pupil Development Grant,990016,
Resources,Support Services,Children & Young People,Assistance to Pupils,Supplies & Services,Grants and Subscriptions,Grants Payable,,04/08/2022,11037294,0,225,R,Pupil Development Grant,990016,
Resources,Support Services,Children & Young People,Assistance to Pupils,Supplies & Services,Grants and Subscriptions,Grants Payable,,04/08/2022,11037295,0,225,R,Pupil Development Grant,990016,
Resources,Support Services,Children & Young People,Assistance to Pupils,Supplies & Services,Grants and Subscriptions,Grants Payable,,04/08/2022,11037431,0,225,R,Pupil Development Grant,990016,
Resources,Support Services,Children & Young People,Assistance to Pupils,Supplies & Services,Grants and Subscriptions,Grants Payable,,04/08/2022,11037525,0,225,R,Pupil Development Grant,990016,
Resources,Support Services,Children & Young People,Assistance to Pupils,Supplies & Services,Grants and Subscriptions,Grants Payable,,04/08/2022,11037526,0,225,R,Pupil Development Grant,990016,
Resources,Support Services,Children & Young People,Assistance to Pupils,Supplies & Services,Grants and Subscriptions,Grants Payable,,04/08/2022,11037445,0,225,R,Pupil Development Grant,990016,
Resources,Support Services,Children & Young People,Assistance to Pupils,Supplies & Services,Grants and Subscriptions,Grants Payable,,04/08/2022,11037446,0,225,R,Pupil Development Grant,990016,
Resources,Support Services,Children & Young People,Assistance to Pupils,Supplies & Services,Grants and Subscriptions,Grants Payable,,04/08/2022,11037447,0,225,R,Pupil Development Grant,990016,
Resources,Support Services,Children & Young People,Assistance to Pupils,Supplies & Services,Grants and Subscriptions,Grants Payable,,04/08/2022,11037448,0,225,R,Pupil Development Grant,990016,
Resources,Support Services,Children & Young People,Assistance to Pupils,Supplies & Services,Grants and Subscriptions,Grants Payable,,04/08/2022,11037399,0,225,R,Pupil Development Grant,990016,
Resources,Support Services,Children & Young People,Assistance to Pupils,Supplies & Services,Grants and Subscriptions,Grants Payable,,04/08/2022,11037400,0,225,R,Pupil Development Grant,990016,
Resources,Support Services,Children & Young People,Assistance to Pupils,Supplies & Services,Grants and Subscriptions,Grants Payable,,04/08/2022,11036682,0,225,R,Pupil Development Grant,990016,
Resources,Support Services,Children & Young People,Assistance to Pupils,Supplies & Services,Grants and Subscriptions,Grants Payable,,04/08/2022,11036683,0,225,R,Pupil Development Grant,990016,
Resources,Support Services,Children & Young People,Assistance to Pupils,Supplies & Services,Grants and Subscriptions,Grants Payable,,04/08/2022,11037017,0,225,R,Pupil Development Grant,990016,
Resources,Support Services,Children & Young People,Assistance to Pupils,Supplies & Services,Grants and Subscriptions,Grants Payable,,04/08/2022,11037018,0,225,R,Pupil Development Grant,990016,
Resources,Support Services,Children & Young People,Assistance to Pupils,Supplies & Services,Grants and Subscriptions,Grants Payable,,04/08/2022,11036918,0,225,R,Pupil Development Grant,990016,
Resources,Support Services,Children & Young People,Assistance to Pupils,Supplies & Services,Grants and Subscriptions,Grants Payable,,04/08/2022,11036919,0,225,R,Pupil Development Grant,990016,
Resources,Support Services,Children & Young People,Assistance to Pupils,Supplies & Services,Grants and Subscriptions,Grants Payable,,04/08/2022,11036971,0,225,R,Pupil Development Grant,990016,
Resources,Support Services,Children & Young People,Assistance to Pupils,Supplies & Services,Grants and Subscriptions,Grants Payable,,04/08/2022,11036749,0,225,R,Pupil Development Grant,990016,
Resources,Support Services,Children & Young People,Assistance to Pupils,Supplies & Services,Grants and Subscriptions,Grants Payable,,04/08/2022,11037423,0,225,R,Pupil Development Grant,990016,
Resources,Support Services,Children & Young People,Assistance to Pupils,Supplies & Services,Grants and Subscriptions,Grants Payable,,04/08/2022,11037424,0,225,R,Pupil Development Grant,990016,
Resources,Support Services,Children & Young People,Assistance to Pupils,Supplies & Services,Grants and Subscriptions,Grants Payable,,04/08/2022,11037425,0,225,R,Pupil Development Grant,990016,
Resources,Support Services,Children & Young People,Assistance to Pupils,Supplies & Services,Grants and Subscriptions,Grants Payable,,04/08/2022,11037426,0,225,R,Pupil Development Grant,990016,
Resources,Support Services,Children & Young People,Assistance to Pupils,Supplies & Services,Grants and Subscriptions,Grants Payable,,04/08/2022,11037427,0,225,R,Pupil Development Grant,990016,
Neighbourhood Services,Waste and Street Services,Communities & Place,Grounds,Supplies & Services,"Equipment, Furniture and Materials",Materials & Consumables.,,02/08/2022,11027274,10122692,85.72,R,Robert Price Builders Merchants Ltd,200061,
Neighbourhood Services,Waste and Street Services,Communities & Place,Grounds,Supplies & Services,"Equipment, Furniture and Materials",Materials & Consumables.,,02/08/2022,11029542,10125438,561.6,R,David Evans Agricultural Ltd,281145,
Resources,Support Services,Children & Young People,Assistance to Pupils,Supplies & Services,Grants and Subscriptions,Grants Payable,,04/08/2022,11037296,0,225,R,Pupil Development Grant,990016,
Resources,Support Services,Children & Young People,Assistance to Pupils,Supplies & Services,Grants and Subscriptions,Grants Payable,,04/08/2022,11037600,0,225,R,Pupil Development Grant,990016,
Resources,Support Services,Children & Young People,Assistance to Pupils,Supplies & Services,Grants and Subscriptions,Grants Payable,,04/08/2022,11036734,0,225,R,Pupil Development Grant,990016,
Resources,Support Services,Children & Young People,Assistance to Pupils,Supplies & Services,Grants and Subscriptions,Grants Payable,,04/08/2022,11036735,0,225,R,Pupil Development Grant,990016,
Resources,Support Services,Children & Young People,Assistance to Pupils,Supplies & Services,Grants and Subscriptions,Grants Payable,,04/08/2022,11036624,0,225,R,Pupil Development Grant,990016,
Resources,Support Services,Children & Young People,Assistance to Pupils,Supplies & Services,Grants and Subscriptions,Grants Payable,,04/08/2022,11036625,0,225,R,Pupil Development Grant,990016,
Resources,Support Services,Children & Young People,Assistance to Pupils,Supplies & Services,Grants and Subscriptions,Grants Payable,,04/08/2022,11036626,0,225,R,Pupil Development Grant,990016,
Resources,Support Services,Children & Young People,Assistance to Pupils,Supplies & Services,Grants and Subscriptions,Grants Payable,,04/08/2022,11036627,0,225,R,Pupil Development Grant,990016,
Resources,Support Services,Children & Young People,Assistance to Pupils,Supplies & Services,Grants and Subscriptions,Grants Payable,,04/08/2022,11036868,0,225,R,Pupil Development Grant,990016,
Resources,Support Services,Children & Young People,Assistance to Pupils,Supplies & Services,Grants and Subscriptions,Grants Payable,,04/08/2022,11036869,0,225,R,Pupil Development Grant,990016,
Resources,Support Services,Children & Young People,Assistance to Pupils,Supplies & Services,Grants and Subscriptions,Grants Payable,,04/08/2022,11037626,0,225,R,Pupil Development Grant,990016,
Resources,Support Services,Children & Young People,Assistance to Pupils,Supplies & Services,Grants and Subscriptions,Grants Payable,,04/08/2022,11037627,0,225,R,Pupil Development Grant,990016,
Resources,Support Services,Children & Young People,Assistance to Pupils,Supplies & Services,Grants and Subscriptions,Grants Payable,,04/08/2022,11037628,0,225,R,Pupil Development Grant,990016,
Resources,Support Services,Children & Young People,Assistance to Pupils,Supplies & Services,Grants and Subscriptions,Grants Payable,,04/08/2022,11036844,0,225,R,Pupil Development Grant,990016,
Resources,Support Services,Children & Young People,Assistance to Pupils,Supplies & Services,Grants and Subscriptions,Grants Payable,,04/08/2022,11036845,0,225,R,Pupil Development Grant,990016,
Resources,Support Services,Children & Young People,Assistance to Pupils,Supplies & Services,Grants and Subscriptions,Grants Payable,,04/08/2022,11036846,0,225,R,Pupil Development Grant,990016,
Resources,Support Services,Children & Young People,Assistance to Pupils,Supplies & Services,Grants and Subscriptions,Grants Payable,,04/08/2022,11037279,0,225,R,Pupil Development Grant,990016,
Resources,Support Services,Children & Young People,Assistance to Pupils,Supplies & Services,Grants and Subscriptions,Grants Payable,,04/08/2022,11037280,0,225,R,Pupil Development Grant,990016,
Resources,Support Services,Children & Young People,Assistance to Pupils,Supplies & Services,Grants and Subscriptions,Grants Payable,,04/08/2022,11037700,0,225,R,Pupil Development Grant,990016,
Resources,Support Services,Children & Young People,Assistance to Pupils,Supplies & Services,Grants and Subscriptions,Grants Payable,,04/08/2022,11037701,0,225,R,Pupil Development Grant,990016,
Children Services,Children Services Teams,Social Care and Health,Disabled Children,Supplies & Services,Services,Sub-Contractors Fees,,12/08/2022,11040956,10125994,36,R,Ty Price St. Thomas� Community Hall,2200883,
Resources,Support Services,Children & Young People,Assistance to Pupils,Supplies & Services,Grants and Subscriptions,Grants Payable,,04/08/2022,11036684,0,225,R,Pupil Development Grant,990016,
Resources,Support Services,Children & Young People,Assistance to Pupils,Supplies & Services,Grants and Subscriptions,Grants Payable,,04/08/2022,11036685,0,225,R,Pupil Development Grant,990016,
Resources,Support Services,Children & Young People,Assistance to Pupils,Supplies & Services,Grants and Subscriptions,Grants Payable,,04/08/2022,11036666,0,225,R,Pupil Development Grant,990016,
Resources,Support Services,Children & Young People,Assistance to Pupils,Supplies & Services,Grants and Subscriptions,Grants Payable,,04/08/2022,11036667,0,225,R,Pupil Development Grant,990016,
Resources,Support Services,Children & Young People,Assistance to Pupils,Supplies & Services,Grants and Subscriptions,Grants Payable,,04/08/2022,11036668,0,225,R,Pupil Development Grant,990016,
Resources,Support Services,Children & Young People,Assistance to Pupils,Supplies & Services,Grants and Subscriptions,Grants Payable,,04/08/2022,11037289,0,225,R,Pupil Development Grant,990016,
Resources,Support Services,Children & Young People,Assistance to Pupils,Supplies & Services,Grants and Subscriptions,Grants Payable,,04/08/2022,11037290,0,225,R,Pupil Development Grant,990016,
Resources,Support Services,Children & Young People,Assistance to Pupils,Supplies & Services,Grants and Subscriptions,Grants Payable,,04/08/2022,11037270,0,225,R,Pupil Development Grant,990016,
Resources,Support Services,Children & Young People,Assistance to Pupils,Supplies & Services,Grants and Subscriptions,Grants Payable,,04/08/2022,11037271,0,225,R,Pupil Development Grant,990016,
Children Services,Children Services Teams,Social Care and Health,Disabled Children,Supplies & Services,Services,Professional And Specialist Fees,,02/08/2022,11029663,10125166,291.69,R,Richmond Nursing Agency Ltd,2203303,
Children Services,Children Services Other,Social Care and Health,External Placements - CLA,Supplies & Services,Services,Professional And Specialist Fees,,02/08/2022,11029682,10123290,14854.67,R,Richmond Nursing Agency Ltd,2203303,
Children Services,Children Services Other,Social Care and Health,External Placements - CLA,Supplies & Services,Services,Professional And Specialist Fees,,02/08/2022,11029683,10123291,14288.94,R,ProHealthCare Limited,2203317,
Neighbourhood Services,Waste and Street Services,Communities & Place,Grounds,Supplies & Services,"Equipment, Furniture and Materials",Materials & Consumables.,,02/08/2022,11029571,10122691,77.49,R,Robert Price Builders Merchants Ltd,200061,
Resources,Support Services,Children & Young People,Assistance to Pupils,Supplies & Services,Grants and Subscriptions,Grants Payable,,04/08/2022,11037650,0,225,R,Pupil Development Grant,990016,
Resources,Support Services,Children & Young People,Assistance to Pupils,Supplies & Services,Grants and Subscriptions,Grants Payable,,04/08/2022,11037003,0,225,R,Pupil Development Grant,990016,
Resources,Support Services,Children & Young People,Assistance to Pupils,Supplies & Services,Grants and Subscriptions,Grants Payable,,04/08/2022,11037004,0,225,R,Pupil Development Grant,990016,
Resources,Support Services,Children & Young People,Assistance to Pupils,Supplies & Services,Grants and Subscriptions,Grants Payable,,04/08/2022,11037005,0,225,R,Pupil Development Grant,990016,
Resources,Support Services,Children & Young People,Assistance to Pupils,Supplies & Services,Grants and Subscriptions,Grants Payable,,04/08/2022,11037006,0,225,R,Pupil Development Grant,990016,
Resources,Support Services,Children & Young People,Assistance to Pupils,Supplies & Services,Grants and Subscriptions,Grants Payable,,04/08/2022,11036760,0,225,R,Pupil Development Grant,990016,
Resources,Support Services,Children & Young People,Assistance to Pupils,Supplies & Services,Grants and Subscriptions,Grants Payable,,04/08/2022,11036761,0,225,R,Pupil Development Grant,990016,
Resources,Support Services,Children & Young People,Assistance to Pupils,Supplies & Services,Grants and Subscriptions,Grants Payable,,04/08/2022,11037122,0,225,R,Pupil Development Grant,990016,
Resources,Support Services,Children & Young People,Assistance to Pupils,Supplies & Services,Grants and Subscriptions,Grants Payable,,04/08/2022,11037406,0,225,R,Pupil Development Grant,990016,
Resources,Support Services,Children & Young People,Assistance to Pupils,Supplies & Services,Grants and Subscriptions,Grants Payable,,04/08/2022,11037407,0,225,R,Pupil Development Grant,990016,
Finance & Business Devlopment,Learning,MonLife Directorate,Learning,Supplies & Services,"Equipment, Furniture and Materials",Materials & Consumables.,,16/08/2022,11034035,10125587,4.76,R,Hope Education Ltd,200969,
Neighbourhood Services,Highways,Communities & Place,Structures Maintenance,Supplies & Services,"Equipment, Furniture and Materials",Materials & Consumables.,,10/08/2022,11038674,818434,98.5,R,Caerleon Readymix Concrete Ltd,289149,
Neighbourhood Services,Highways,Communities & Place,Structures Maintenance,Supplies & Services,"Equipment, Furniture and Materials",Materials & Consumables.,,10/08/2022,11038674,818434,246.25,R,Caerleon Readymix Concrete Ltd,289149,
Neighbourhood Services,Highways,Communities & Place,Structures Maintenance,Supplies & Services,"Equipment, Furniture and Materials",Materials & Consumables.,,10/08/2022,11038674,818434,541.75,R,Caerleon Readymix Concrete Ltd,289149,
Neighbourhood Services,Highways,Communities & Place,Structures Maintenance,Supplies & Services,"Equipment, Furniture and Materials",Materials & Consumables.,,10/08/2022,11038674,818434,197,R,Caerleon Readymix Concrete Ltd,289149,
Neighbourhood Services,Highways,Communities & Place,Structures Maintenance,Supplies & Services,"Equipment, Furniture and Materials",Materials & Consumables.,,10/08/2022,11038674,818434,295.5,R,Caerleon Readymix Concrete Ltd,289149,
Neighbourhood Services,Highways,Communities & Place,Drainage works,Supplies & Services,"Equipment, Furniture and Materials",Materials & Consumables.,,10/08/2022,11038674,818434,47,R,Caerleon Readymix Concrete Ltd,289149,
Schools Total,School Group 2 � Pupil Capacity 144-314,MCC Schools,Cross Ash Primary School,Premises,Energy Costs,Electricity.,,19/08/2022,11044708,0,240.98,R,EDF Energy,212738,
Neighbourhood Services,Highways,Communities & Place,Overhead - Mon Highways,Supplies & Services,Services,Sub-Contractors Fees,,31/08/2022,11048114,10124809,464.1,R,G D Environmental Services Ltd,269242,
Neighbourhood Services,Highways,Communities & Place,Internal others,Supplies & Services,"Equipment, Furniture and Materials",Materials & Consumables.,,10/08/2022,11038678,818557,421.25,R,Caerleon Readymix Concrete Ltd,289149,
Neighbourhood Services,Highways,Communities & Place,Drainage works,Supplies & Services,"Equipment, Furniture and Materials",Materials & Consumables.,,10/08/2022,11038678,818557,511.5,R,Caerleon Readymix Concrete Ltd,289149,
Neighbourhood Services,Highways,Communities & Place,Drainage works,Supplies & Services,"Equipment, Furniture and Materials",Materials & Consumables.,,10/08/2022,11038678,818557,279,R,Caerleon Readymix Concrete Ltd,289149,
Neighbourhood Services,Highways,Communities & Place,Drainage works,Supplies & Services,"Equipment, Furniture and Materials",Materials & Consumables.,,10/08/2022,11038678,818557,186,R,Caerleon Readymix Concrete Ltd,289149,
Neighbourhood Services,Highways,Communities & Place,Drainage works,Supplies & Services,"Equipment, Furniture and Materials",Materials & Consumables.,,10/08/2022,11038678,818557,139.5,R,Caerleon Readymix Concrete Ltd,289149,
Neighbourhood Services,Highways,Communities & Place,Drainage works,Supplies & Services,"Equipment, Furniture and Materials",Materials & Consumables.,,10/08/2022,11038678,818557,186,R,Caerleon Readymix Concrete Ltd,289149,
Neighbourhood Services,Highways,Communities & Place,Drainage works,Supplies & Services,"Equipment, Furniture and Materials",Materials & Consumables.,,10/08/2022,11038678,818557,279,R,Caerleon Readymix Concrete Ltd,289149,
Neighbourhood Services,Highways,Communities & Place,Drainage works,Supplies & Services,"Equipment, Furniture and Materials",Materials & Consumables.,,10/08/2022,11038678,818557,325.5,R,Caerleon Readymix Concrete Ltd,289149,
Neighbourhood Services,Highways,Communities & Place,Drainage works,Supplies & Services,"Equipment, Furniture and Materials",Materials & Consumables.,,10/08/2022,11038678,818557,46.5,R,Caerleon Readymix Concrete Ltd,289149,
Neighbourhood Services,Highways,Communities & Place,Structures Maintenance,Supplies & Services,"Equipment, Furniture and Materials",Materials & Consumables.,,10/08/2022,11038678,818557,197,R,Caerleon Readymix Concrete Ltd,289149,
Neighbourhood Services,Highways,Communities & Place,Structures Maintenance,Supplies & Services,"Equipment, Furniture and Materials",Materials & Consumables.,,10/08/2022,11038678,818557,98.5,R,Caerleon Readymix Concrete Ltd,289149,
Neighbourhood Services,Highways,Communities & Place,Structures Maintenance,Supplies & Services,"Equipment, Furniture and Materials",Materials & Consumables.,,10/08/2022,11038678,818557,98.5,R,Caerleon Readymix Concrete Ltd,289149,
Neighbourhood Services,Highways,Communities & Place,Structures Maintenance,Supplies & Services,"Equipment, Furniture and Materials",Materials & Consumables.,,10/08/2022,11038678,818557,528,R,Caerleon Readymix Concrete Ltd,289149,
Neighbourhood Services,Highways,Communities & Place,Structures Maintenance,Supplies & Services,"Equipment, Furniture and Materials",Materials & Consumables.,,10/08/2022,11038678,818557,93,R,Caerleon Readymix Concrete Ltd,289149,
Schools Total,School Group 2 � Pupil Capacity 144-314,MCC Schools,Pembroke Primary School,Supplies & Services,"Equipment, Furniture and Materials",Materials & Consumables.,,02/08/2022,11029886,80086092,1026.87,R,Pearson Education LTD,236736,
Schools Total,School Group 2 � Pupil Capacity 144-314,MCC Schools,Pembroke Primary School,Supplies & Services,"Equipment, Furniture and Materials",Materials & Consumables.,,02/08/2022,11029888,80086438,22.94,R,Amazon Payments UK Limited,2200305,
Schools Total,School Group 2 � Pupil Capacity 144-314,MCC Schools,Pembroke Primary School,Supplies & Services,"Equipment, Furniture and Materials",Materials & Consumables.,,02/08/2022,11029889,80086445,1.7,R,Amazon Payments UK Limited,2200305,
Schools Total,School Group 2 � Pupil Capacity 144-314,MCC Schools,Pembroke Primary School,Supplies & Services,"Equipment, Furniture and Materials",Materials & Consumables.,,02/08/2022,11029892,80086654,30.06,R,Amazon Payments UK Limited,2200305,
Children Services,Children Services Other,Social Care and Health,External Placements - CLA,Supplies & Services,Services,Professional And Specialist Fees,,02/08/2022,11029693,10123290,67.5,R,Richmond Nursing Agency Ltd,2203303,
Resources,Support Services,Children & Young People,Assistance to Pupils,Supplies & Services,Grants and Subscriptions,Grants Payable,,04/08/2022,11037573,0,225,R,Pupil Development Grant,990016,
Resources,Support Services,Children & Young People,Assistance to Pupils,Supplies & Services,Grants and Subscriptions,Grants Payable,,04/08/2022,11037297,0,225,R,Pupil Development Grant,990016,
Resources,Support Services,Children & Young People,Assistance to Pupils,Supplies & Services,Grants and Subscriptions,Grants Payable,,04/08/2022,11037298,0,225,R,Pupil Development Grant,990016,
Resources,Support Services,Children & Young People,Assistance to Pupils,Supplies & Services,Grants and Subscriptions,Grants Payable,,04/08/2022,11036772,0,225,R,Pupil Development Grant,990016,
Resources,Support Services,Children & Young People,Assistance to Pupils,Supplies & Services,Grants and Subscriptions,Grants Payable,,04/08/2022,11037123,0,225,R,Pupil Development Grant,990016,
Resources,Support Services,Children & Young People,Assistance to Pupils,Supplies & Services,Grants and Subscriptions,Grants Payable,,04/08/2022,11037124,0,225,R,Pupil Development Grant,990016,
Resources,Support Services,Children & Young People,Assistance to Pupils,Supplies & Services,Grants and Subscriptions,Grants Payable,,04/08/2022,11037125,0,225,R,Pupil Development Grant,990016,
"Commercial, Corporate & landlord Services",Property Services & Facilities Management,Resources,Programmed Maintenance,Premises,"Repairs, Alterations & Maintenance of Buildings",Premises Repairs And Maintenance,,03/08/2022,11034339,90064161,80,R,Ambassador Fire & Security LTD,295878,
"Commercial, Corporate & landlord Services",Property Services & Facilities Management,Resources,Programmed Maintenance,Premises,"Repairs, Alterations & Maintenance of Buildings",Premises Repairs And Maintenance,,03/08/2022,11034341,90064159,80,R,Ambassador Fire & Security LTD,295878,
Resources,Support Services,Children & Young People,Assistance to Pupils,Supplies & Services,Grants and Subscriptions,Grants Payable,,04/08/2022,11037408,0,225,R,Pupil Development Grant,990016,
Resources,Support Services,Children & Young People,Assistance to Pupils,Supplies & Services,Grants and Subscriptions,Grants Payable,,04/08/2022,11036886,0,225,R,Pupil Development Grant,990016,
Resources,Support Services,Children & Young People,Assistance to Pupils,Supplies & Services,Grants and Subscriptions,Grants Payable,,04/08/2022,11036887,0,225,R,Pupil Development Grant,990016,
Resources,Support Services,Children & Young People,Assistance to Pupils,Supplies & Services,Grants and Subscriptions,Grants Payable,,04/08/2022,11037644,0,225,R,Pupil Development Grant,990016,
Resources,Support Services,Children & Young People,Assistance to Pupils,Supplies & Services,Grants and Subscriptions,Grants Payable,,04/08/2022,11037645,0,225,R,Pupil Development Grant,990016,
Resources,Support Services,Children & Young People,Assistance to Pupils,Supplies & Services,Grants and Subscriptions,Grants Payable,,04/08/2022,11036773,0,225,R,Pupil Development Grant,990016,
Resources,Support Services,Children & Young People,Assistance to Pupils,Supplies & Services,Grants and Subscriptions,Grants Payable,,04/08/2022,11036774,0,225,R,Pupil Development Grant,990016,
Resources,Support Services,Children & Young People,Assistance to Pupils,Supplies & Services,Grants and Subscriptions,Grants Payable,,04/08/2022,11036775,0,225,R,Pupil Development Grant,990016,
Resources,Support Services,Children & Young People,Assistance to Pupils,Supplies & Services,Grants and Subscriptions,Grants Payable,,04/08/2022,11037604,0,225,R,Pupil Development Grant,990016,
Resources,Support Services,Children & Young People,Assistance to Pupils,Supplies & Services,Grants and Subscriptions,Grants Payable,,04/08/2022,11037605,0,225,R,Pupil Development Grant,990016,
Resources,Support Services,Children & Young People,Assistance to Pupils,Supplies & Services,Grants and Subscriptions,Grants Payable,,04/08/2022,11036888,0,225,R,Pupil Development Grant,990016,
Resources,Support Services,Children & Young People,Assistance to Pupils,Supplies & Services,Grants and Subscriptions,Grants Payable,,04/08/2022,11036889,0,225,R,Pupil Development Grant,990016,
Resources,Support Services,Children & Young People,Assistance to Pupils,Supplies & Services,Grants and Subscriptions,Grants Payable,,04/08/2022,11037651,0,225,R,Pupil Development Grant,990016,
Resources,Support Services,Children & Young People,Assistance to Pupils,Supplies & Services,Grants and Subscriptions,Grants Payable,,04/08/2022,11037652,0,225,R,Pupil Development Grant,990016,
Resources,Support Services,Children & Young People,Assistance to Pupils,Supplies & Services,Grants and Subscriptions,Grants Payable,,04/08/2022,11037653,0,225,R,Pupil Development Grant,990016,
Resources,Support Services,Children & Young People,Assistance to Pupils,Supplies & Services,Grants and Subscriptions,Grants Payable,,04/08/2022,11037622,0,225,R,Pupil Development Grant,990016,
Resources,Support Services,Children & Young People,Assistance to Pupils,Supplies & Services,Grants and Subscriptions,Grants Payable,,04/08/2022,11037623,0,225,R,Pupil Development Grant,990016,
Resources,Support Services,Children & Young People,Assistance to Pupils,Supplies & Services,Grants and Subscriptions,Grants Payable,,04/08/2022,11037219,0,225,R,Pupil Development Grant,990016,
Resources,Support Services,Children & Young People,Assistance to Pupils,Supplies & Services,Grants and Subscriptions,Grants Payable,,04/08/2022,11037220,0,225,R,Pupil Development Grant,990016,
Schools Total,School Group 2 � Pupil Capacity 144-314,MCC Schools,Pembroke Primary School,Supplies & Services,"Equipment, Furniture and Materials",Materials & Consumables.,,02/08/2022,11030393,80087840,205,R,White Rose Maths,2202077,
Resources,Support Services,Children & Young People,Assistance to Pupils,Supplies & Services,Grants and Subscriptions,Grants Payable,,04/08/2022,11037681,0,225,R,Pupil Development Grant,990016,
Resources,Support Services,Children & Young People,Assistance to Pupils,Supplies & Services,Grants and Subscriptions,Grants Payable,,04/08/2022,11037682,0,225,R,Pupil Development Grant,990016,
Resources,Support Services,Children & Young People,Assistance to Pupils,Supplies & Services,Grants and Subscriptions,Grants Payable,,04/08/2022,11037683,0,225,R,Pupil Development Grant,990016,
Resources,Support Services,Children & Young People,Assistance to Pupils,Supplies & Services,Grants and Subscriptions,Grants Payable,,04/08/2022,11037684,0,225,R,Pupil Development Grant,990016,
Resources,Support Services,Children & Young People,Assistance to Pupils,Supplies & Services,Grants and Subscriptions,Grants Payable,,04/08/2022,11037685,0,225,R,Pupil Development Grant,990016,
Resources,Support Services,Children & Young People,Assistance to Pupils,Supplies & Services,Grants and Subscriptions,Grants Payable,,04/08/2022,11037686,0,225,R,Pupil Development Grant,990016,
Resources,Support Services,Children & Young People,Assistance to Pupils,Supplies & Services,Grants and Subscriptions,Grants Payable,,04/08/2022,11037013,0,225,R,Pupil Development Grant,990016,
Resources,Support Services,Children & Young People,Assistance to Pupils,Supplies & Services,Grants and Subscriptions,Grants Payable,,04/08/2022,11037014,0,225,R,Pupil Development Grant,990016,
Resources,Support Services,Children & Young People,Assistance to Pupils,Supplies & Services,Grants and Subscriptions,Grants Payable,,04/08/2022,11037266,0,225,R,Pupil Development Grant,990016,
Resources,Support Services,Children & Young People,Assistance to Pupils,Supplies & Services,Grants and Subscriptions,Grants Payable,,04/08/2022,11037267,0,225,R,Pupil Development Grant,990016,
Resources,Support Services,Children & Young People,Assistance to Pupils,Supplies & Services,Grants and Subscriptions,Grants Payable,,04/08/2022,11037268,0,225,R,Pupil Development Grant,990016,
Resources,Support Services,Children & Young People,Assistance to Pupils,Supplies & Services,Grants and Subscriptions,Grants Payable,,04/08/2022,11037269,0,225,R,Pupil Development Grant,990016,
Resources,Support Services,Children & Young People,Assistance to Pupils,Supplies & Services,Grants and Subscriptions,Grants Payable,,04/08/2022,11036841,0,225,R,Pupil Development Grant,990016,
Resources,Support Services,Children & Young People,Assistance to Pupils,Supplies & Services,Grants and Subscriptions,Grants Payable,,04/08/2022,11037646,0,225,R,Pupil Development Grant,990016,
Resources,Support Services,Children & Young People,Assistance to Pupils,Supplies & Services,Grants and Subscriptions,Grants Payable,,04/08/2022,11037647,0,225,R,Pupil Development Grant,990016,
Resources,Support Services,Children & Young People,Assistance to Pupils,Supplies & Services,Grants and Subscriptions,Grants Payable,,04/08/2022,11037326,0,225,R,Pupil Development Grant,990016,
Resources,Support Services,Children & Young People,Assistance to Pupils,Supplies & Services,Grants and Subscriptions,Grants Payable,,04/08/2022,11037327,0,225,R,Pupil Development Grant,990016,
Resources,Support Services,Children & Young People,Assistance to Pupils,Supplies & Services,Grants and Subscriptions,Grants Payable,,04/08/2022,11036849,0,225,R,Pupil Development Grant,990016,
Resources,Support Services,Children & Young People,Assistance to Pupils,Supplies & Services,Grants and Subscriptions,Grants Payable,,04/08/2022,11036850,0,225,R,Pupil Development Grant,990016,
Children Services,Children Services Teams,Social Care and Health,Disabled Children,Supplies & Services,Services,Professional And Specialist Fees,,17/08/2022,11041549,10125166,570.18,R,Richmond Nursing Agency Ltd,2203303,
Children Services,Children Services Other,Social Care and Health,Counsel Costs,Supplies & Services,Services,Professional And Specialist Fees,,17/08/2022,11041436,10122959,483.75,R,Cater Walsh Reporting Ltd,265930,
Children Services,Children Services Other,Social Care and Health,Counsel Costs,Supplies & Services,Services,Professional And Specialist Fees,,17/08/2022,11041446,10124614,355.8,R,Lextox,295341,
Children Services,Children Services Other,Social Care and Health,Counsel Costs,Supplies & Services,Services,Professional And Specialist Fees,,17/08/2022,11033348,10124614,443.8,R,Lextox,295341,
Children Services,Children Services Teams,Social Care and Health,Family Support and Protection Team,Supplies & Services,Services,Professional And Specialist Fees,,17/08/2022,11037780,10125456,2657.5,R,Cheka Safeguarding Services Limited,297627,
Children Services,Children Services Other,Social Care and Health,Face to Face Counselling,Supplies & Services,Services,Professional And Specialist Fees,,17/08/2022,11033245,10126022,100,R,Stepping Stones (Child Therapy Consultants) Ltd,2200074,
Neighbourhood Services,Highways,Communities & Place,Potholing,Supplies & Services,"Equipment, Furniture and Materials",Materials & Consumables.,,31/08/2022,11048211,818947,1000.08,R,Hanson Quarry Products Europe Ltd,233616,
Neighbourhood Services,Highways,Communities & Place,Potholing,Supplies & Services,"Equipment, Furniture and Materials",Materials & Consumables.,,31/08/2022,11048212,818947,84.9,R,Hanson Quarry Products Europe Ltd,233616,
Neighbourhood Services,Waste and Street Services,Communities & Place,Grounds,Supplies & Services,"Equipment, Furniture and Materials",Materials & Consumables.,,23/08/2022,11037921,10122686,95.34,R,Malvern Tyres (Wholesale) Ltd,296236,
Neighbourhood Services,Waste and Street Services,Communities & Place,Grounds,Supplies & Services,"Equipment, Furniture and Materials",Materials & Consumables.,,23/08/2022,11038097,10122690,7.13,R,Robert Price Builders Merchants Ltd,200061,
Neighbourhood Services,Waste and Street Services,Communities & Place,Grounds,Supplies & Services,"Equipment, Furniture and Materials",Materials & Consumables.,,23/08/2022,11038097,10122690,21.27,R,Robert Price Builders Merchants Ltd,200061,
Neighbourhood Services,Waste and Street Services,Communities & Place,Grounds,Supplies & Services,"Equipment, Furniture and Materials",Materials & Consumables.,,23/08/2022,11038097,10122690,51.51,R,Robert Price Builders Merchants Ltd,200061,
Neighbourhood Services,Waste and Street Services,Communities & Place,Grounds,Supplies & Services,"Equipment, Furniture and Materials",Materials & Consumables.,,23/08/2022,11038098,10122690,236.68,R,Robert Price Builders Merchants Ltd,200061,
Neighbourhood Services,Waste and Street Services,Communities & Place,Grounds,Supplies & Services,"Equipment, Furniture and Materials",Materials & Consumables.,,23/08/2022,11038099,10122690,198.58,R,Robert Price Builders Merchants Ltd,200061,
Neighbourhood Services,Waste and Street Services,Communities & Place,Fitting Shop Grounds,Supplies & Services,"Equipment, Furniture and Materials",Materials & Consumables.,,23/08/2022,11036361,10122741,23.52,R,Mon & Border Motor Factors Ltd,200544,
Neighbourhood Services,Waste and Street Services,Communities & Place,Fitting Shop Grounds,Supplies & Services,"Equipment, Furniture and Materials",Materials & Consumables.,,23/08/2022,11036362,10122741,46.17,R,Mon & Border Motor Factors Ltd,200544,
Neighbourhood Services,Highways,Communities & Place,Overhead - Mon Highways,Supplies & Services,Services,Sub-Contractors Fees,,31/08/2022,11048336,10125883,156.8,R,G D Environmental Services Ltd,269242,
Neighbourhood Services,Highways,Communities & Place,Overhead - Mon Highways,Supplies & Services,"Equipment, Furniture and Materials",Materials & Consumables.,,31/08/2022,11048213,10125897,55.67,R,Robert Price Builders Merchants Ltd,200061,
Neighbourhood Services,Highways,Communities & Place,Overhead - Mon Highways,Supplies & Services,"Equipment, Furniture and Materials",Materials & Consumables.,,31/08/2022,11048214,10125897,244.12,R,Robert Price Builders Merchants Ltd,200061,
Schools Total,School Group 2 � Pupil Capacity 144-314,MCC Schools,Castle Park Primary School,Premises,Ground Maintenance Costs,Grounds Maintenance - Direct.,,31/08/2022,11047710,80085596,345,R,Morris's Grounds Maintenance Ltd,294219,
Schools Total,School Group 2 � Pupil Capacity 144-314,MCC Schools,Usk CiW Primary School (VC),Premises,Ground Maintenance Costs,Grounds Maintenance - Direct.,,31/08/2022,11047716,80087701,308,R,Morris's Grounds Maintenance Ltd,294219,
Resources,Support Services,Children & Young People,Assistance to Pupils,Supplies & Services,Grants and Subscriptions,Grants Payable,,04/08/2022,11037221,0,225,R,Pupil Development Grant,990016,
Resources,Support Services,Children & Young People,Assistance to Pupils,Supplies & Services,Grants and Subscriptions,Grants Payable,,04/08/2022,11037222,0,225,R,Pupil Development Grant,990016,
Resources,Support Services,Children & Young People,Assistance to Pupils,Supplies & Services,Grants and Subscriptions,Grants Payable,,04/08/2022,11037667,0,225,R,Pupil Development Grant,990016,
Resources,Support Services,Children & Young People,Assistance to Pupils,Supplies & Services,Grants and Subscriptions,Grants Payable,,04/08/2022,11037668,0,225,R,Pupil Development Grant,990016,
Resources,Support Services,Children & Young People,Assistance to Pupils,Supplies & Services,Grants and Subscriptions,Grants Payable,,04/08/2022,11036890,0,225,R,Pupil Development Grant,990016,
Resources,Support Services,Children & Young People,Assistance to Pupils,Supplies & Services,Grants and Subscriptions,Grants Payable,,04/08/2022,11036891,0,225,R,Pupil Development Grant,990016,
Resources,Support Services,Children & Young People,Assistance to Pupils,Supplies & Services,Grants and Subscriptions,Grants Payable,,04/08/2022,11037255,0,225,R,Pupil Development Grant,990016,
Resources,Support Services,Children & Young People,Assistance to Pupils,Supplies & Services,Grants and Subscriptions,Grants Payable,,04/08/2022,11037256,0,225,R,Pupil Development Grant,990016,
Schools Total,School Group 7 � Pupil Capacity 501-1800,MCC Schools,Monmouth Comprehensive,Premises,Energy Costs,Electricity.,,19/08/2022,11044848,0,797.33,R,EDF Energy,212738,
Children Services,Children Services Other,Social Care and Health,Counsel Costs,Supplies & Services,Services,Professional And Specialist Fees,,15/08/2022,11038404,10125795,3024,R,REDACTED PERSONAL DATA,2204089,
Democratic Services,Legal & Land Charges,People & Governance,Legal Section,Supplies & Services,Services,Professional And Specialist Fees,,15/08/2022,11040769,10125167,35,R,Elite Paper Solutions,2201802,
Standards,Additional Learning Needs,Children & Young People,ALN Transport,Employees,Direct Employee Expenses,Travel Claims Allowance,,15/08/2022,11037824,0,64.12,R,REDACTED PERSONAL DATA,2203959,
"Commercial, Corporate & landlord Services",Property Services & Facilities Management,Resources,Programmed Maintenance,Premises,"Repairs, Alterations & Maintenance of Buildings",Premises Repairs And Maintenance,,15/08/2022,11041151,90064969,300,R,Cariad Cool Water Limited,261136,
Community Care,INTEGRATED CARE FUND,Social Care and Health,Home First,Supplies & Services,Services,Professional And Specialist Fees,,15/08/2022,11041066,10125945,62.1,R,Mental Health First Aid Wales Ltd,295363,
"Policy, Scrutiny & Customer Service",Customer Relations,Chief Executive's Unit,Complaints,Supplies & Services,Services,Professional And Specialist Fees,,15/08/2022,11041139,10126027,352,R,REDACTED PERSONAL DATA,2201756,
"Policy, Scrutiny & Customer Service",Customer Relations,Chief Executive's Unit,Complaints,Supplies & Services,Services,Professional And Specialist Fees,,15/08/2022,11041140,10126028,240,R,REDACTED PERSONAL DATA,2201756,
Children Services,Children Services Other,Social Care and Health,Counsel Costs,Supplies & Services,Services,Professional And Specialist Fees,,15/08/2022,11041202,10124053,799.37,R,Marten Walsh Cherer Ltd,2200177,
Children Services,Children Services Teams,Social Care and Health,Family Support and Protection Team,Supplies & Services,Services,Professional And Specialist Fees,,17/08/2022,11038704,10122828,200,R,DNA Legal,2201220,
Children Services,Children Services Teams,Social Care and Health,Family Support and Protection Team,Supplies & Services,Services,Sub-Contractors Fees,,17/08/2022,11038192,10125315,1017.51,R,Touchstone Support Services Ltd,2203096,
Children Services,Children Services Other,Social Care and Health,External Placements - CLA,Supplies & Services,Services,Professional And Specialist Fees,,02/08/2022,11030696,10123291,11752.06,R,ProHealthCare Limited,2203317,
Neighbourhood Services,Waste and Street Services,Communities & Place,Grounds,Supplies & Services,"Equipment, Furniture and Materials",Materials & Consumables.,,02/08/2022,11030478,10122736,17.58,R,Robert Price Builders Merchants Ltd,200061,
Neighbourhood Services,Waste and Street Services,Communities & Place,Grounds,Supplies & Services,"Equipment, Furniture and Materials",Materials & Consumables.,,02/08/2022,11030798,10124441,15.86,R,Fasteners & Engineering Suppliers Ltd,296712,
Schools Total,School Group 2 � Pupil Capacity 144-314,MCC Schools,Pembroke Primary School,Supplies & Services,"Equipment, Furniture and Materials",Materials & Consumables.,,02/08/2022,11030505,80087613,500,R,REDACTED PERSONAL DATA,2203875,
Resources,Support Services,Children & Young People,Assistance to Pupils,Supplies & Services,Grants and Subscriptions,Grants Payable,,04/08/2022,11036851,0,225,R,Pupil Development Grant,990016,
Resources,Support Services,Children & Young People,Assistance to Pupils,Supplies & Services,Grants and Subscriptions,Grants Payable,,04/08/2022,11036852,0,225,R,Pupil Development Grant,990016,
Resources,Support Services,Children & Young People,Assistance to Pupils,Supplies & Services,Grants and Subscriptions,Grants Payable,,04/08/2022,11036853,0,225,R,Pupil Development Grant,990016,
Resources,Support Services,Children & Young People,Assistance to Pupils,Supplies & Services,Grants and Subscriptions,Grants Payable,,04/08/2022,11037347,0,225,R,Pupil Development Grant,990016,
Resources,Support Services,Children & Young People,Assistance to Pupils,Supplies & Services,Grants and Subscriptions,Grants Payable,,04/08/2022,11037348,0,225,R,Pupil Development Grant,990016,
Resources,Support Services,Children & Young People,Assistance to Pupils,Supplies & Services,Grants and Subscriptions,Grants Payable,,04/08/2022,11037531,0,225,R,Pupil Development Grant,990016,
Resources,Support Services,Children & Young People,Assistance to Pupils,Supplies & Services,Grants and Subscriptions,Grants Payable,,04/08/2022,11037532,0,225,R,Pupil Development Grant,990016,
Resources,Support Services,Children & Young People,Assistance to Pupils,Supplies & Services,Grants and Subscriptions,Grants Payable,,04/08/2022,11037455,0,225,R,Pupil Development Grant,990016,
Resources,Support Services,Children & Young People,Assistance to Pupils,Supplies & Services,Grants and Subscriptions,Grants Payable,,04/08/2022,11037456,0,225,R,Pupil Development Grant,990016,
Resources,Support Services,Children & Young People,Assistance to Pupils,Supplies & Services,Grants and Subscriptions,Grants Payable,,04/08/2022,11036742,0,225,R,Pupil Development Grant,990016,
Resources,Support Services,Children & Young People,Assistance to Pupils,Supplies & Services,Grants and Subscriptions,Grants Payable,,04/08/2022,11036743,0,225,R,Pupil Development Grant,990016,
Resources,Support Services,Children & Young People,Assistance to Pupils,Supplies & Services,Grants and Subscriptions,Grants Payable,,04/08/2022,11036744,0,225,R,Pupil Development Grant,990016,
Resources,Support Services,Children & Young People,Assistance to Pupils,Supplies & Services,Grants and Subscriptions,Grants Payable,,04/08/2022,11036745,0,225,R,Pupil Development Grant,990016,
Resources,Support Services,Children & Young People,Assistance to Pupils,Supplies & Services,Grants and Subscriptions,Grants Payable,,04/08/2022,11037303,0,225,R,Pupil Development Grant,990016,
Resources,Support Services,Children & Young People,Assistance to Pupils,Supplies & Services,Grants and Subscriptions,Grants Payable,,04/08/2022,11037304,0,225,R,Pupil Development Grant,990016,
Resources,Support Services,Children & Young People,Assistance to Pupils,Supplies & Services,Grants and Subscriptions,Grants Payable,,04/08/2022,11037533,0,225,R,Pupil Development Grant,990016,
Resources,Support Services,Children & Young People,Assistance to Pupils,Supplies & Services,Grants and Subscriptions,Grants Payable,,04/08/2022,11037534,0,225,R,Pupil Development Grant,990016,
Resources,Support Services,Children & Young People,Assistance to Pupils,Supplies & Services,Grants and Subscriptions,Grants Payable,,04/08/2022,11037535,0,225,R,Pupil Development Grant,990016,
Resources,Support Services,Children & Young People,Assistance to Pupils,Supplies & Services,Grants and Subscriptions,Grants Payable,,04/08/2022,11037536,0,225,R,Pupil Development Grant,990016,
Resources,Support Services,Children & Young People,Assistance to Pupils,Supplies & Services,Grants and Subscriptions,Grants Payable,,04/08/2022,11037080,0,225,R,Pupil Development Grant,990016,
Resources,Support Services,Children & Young People,Assistance to Pupils,Supplies & Services,Grants and Subscriptions,Grants Payable,,04/08/2022,11037081,0,225,R,Pupil Development Grant,990016,
Resources,Support Services,Children & Young People,Assistance to Pupils,Supplies & Services,Grants and Subscriptions,Grants Payable,,04/08/2022,11037082,0,225,R,Pupil Development Grant,990016,
Resources,Support Services,Children & Young People,Assistance to Pupils,Supplies & Services,Grants and Subscriptions,Grants Payable,,04/08/2022,11036630,0,225,R,Pupil Development Grant,990016,
Resources,Support Services,Children & Young People,Assistance to Pupils,Supplies & Services,Grants and Subscriptions,Grants Payable,,04/08/2022,11036631,0,225,R,Pupil Development Grant,990016,
Resources,Support Services,Children & Young People,Assistance to Pupils,Supplies & Services,Grants and Subscriptions,Grants Payable,,04/08/2022,11036632,0,225,R,Pupil Development Grant,990016,
Resources,Support Services,Children & Young People,Assistance to Pupils,Supplies & Services,Grants and Subscriptions,Grants Payable,,04/08/2022,11036633,0,225,R,Pupil Development Grant,990016,
Resources,Support Services,Children & Young People,Assistance to Pupils,Supplies & Services,Grants and Subscriptions,Grants Payable,,04/08/2022,11037178,0,225,R,Pupil Development Grant,990016,
Resources,Support Services,Children & Young People,Assistance to Pupils,Supplies & Services,Grants and Subscriptions,Grants Payable,,04/08/2022,11037179,0,225,R,Pupil Development Grant,990016,
Resources,Support Services,Children & Young People,Assistance to Pupils,Supplies & Services,Grants and Subscriptions,Grants Payable,,04/08/2022,11037180,0,225,R,Pupil Development Grant,990016,
Resources,Support Services,Children & Young People,Assistance to Pupils,Supplies & Services,Grants and Subscriptions,Grants Payable,,04/08/2022,11037181,0,225,R,Pupil Development Grant,990016,
Resources,Support Services,Children & Young People,Assistance to Pupils,Supplies & Services,Grants and Subscriptions,Grants Payable,,04/08/2022,11036842,0,225,R,Pupil Development Grant,990016,
Resources,Support Services,Children & Young People,Assistance to Pupils,Supplies & Services,Grants and Subscriptions,Grants Payable,,04/08/2022,11036700,0,225,R,Pupil Development Grant,990016,
Resources,Support Services,Children & Young People,Assistance to Pupils,Supplies & Services,Grants and Subscriptions,Grants Payable,,04/08/2022,11036701,0,225,R,Pupil Development Grant,990016,
Resources,Support Services,Children & Young People,Assistance to Pupils,Supplies & Services,Grants and Subscriptions,Grants Payable,,04/08/2022,11037618,0,225,R,Pupil Development Grant,990016,
Resources,Support Services,Children & Young People,Assistance to Pupils,Supplies & Services,Grants and Subscriptions,Grants Payable,,04/08/2022,11037669,0,225,R,Pupil Development Grant,990016,
Resources,Support Services,Children & Young People,Assistance to Pupils,Supplies & Services,Grants and Subscriptions,Grants Payable,,04/08/2022,11037670,0,225,R,Pupil Development Grant,990016,
Resources,Support Services,Children & Young People,Assistance to Pupils,Supplies & Services,Grants and Subscriptions,Grants Payable,,04/08/2022,11037671,0,225,R,Pupil Development Grant,990016,
Resources,Support Services,Children & Young People,Assistance to Pupils,Supplies & Services,Grants and Subscriptions,Grants Payable,,04/08/2022,11037672,0,225,R,Pupil Development Grant,990016,
Resources,Support Services,Children & Young People,Assistance to Pupils,Supplies & Services,Grants and Subscriptions,Grants Payable,,04/08/2022,11037673,0,225,R,Pupil Development Grant,990016,
Resources,Support Services,Children & Young People,Assistance to Pupils,Supplies & Services,Grants and Subscriptions,Grants Payable,,04/08/2022,11037674,0,225,R,Pupil Development Grant,990016,
Resources,Support Services,Children & Young People,Assistance to Pupils,Supplies & Services,Grants and Subscriptions,Grants Payable,,04/08/2022,11037132,0,225,R,Pupil Development Grant,990016,
Resources,Support Services,Children & Young People,Assistance to Pupils,Supplies & Services,Grants and Subscriptions,Grants Payable,,04/08/2022,11037133,0,225,R,Pupil Development Grant,990016,
Resources,Support Services,Children & Young People,Assistance to Pupils,Supplies & Services,Grants and Subscriptions,Grants Payable,,04/08/2022,11037134,0,225,R,Pupil Development Grant,990016,
Resources,Support Services,Children & Young People,Assistance to Pupils,Supplies & Services,Grants and Subscriptions,Grants Payable,,04/08/2022,11037135,0,225,R,Pupil Development Grant,990016,
Resources,Support Services,Children & Young People,Assistance to Pupils,Supplies & Services,Grants and Subscriptions,Grants Payable,,04/08/2022,11037136,0,225,R,Pupil Development Grant,990016,
Resources,Support Services,Children & Young People,Assistance to Pupils,Supplies & Services,Grants and Subscriptions,Grants Payable,,04/08/2022,11036920,0,225,R,Pupil Development Grant,990016,
Resources,Support Services,Children & Young People,Assistance to Pupils,Supplies & Services,Grants and Subscriptions,Grants Payable,,04/08/2022,11036921,0,225,R,Pupil Development Grant,990016,
Resources,Support Services,Children & Young People,Assistance to Pupils,Supplies & Services,Grants and Subscriptions,Grants Payable,,04/08/2022,11036922,0,225,R,Pupil Development Grant,990016,
Resources,Support Services,Children & Young People,Assistance to Pupils,Supplies & Services,Grants and Subscriptions,Grants Payable,,04/08/2022,11036923,0,225,R,Pupil Development Grant,990016,
Resources,Support Services,Children & Young People,Assistance to Pupils,Supplies & Services,Grants and Subscriptions,Grants Payable,,04/08/2022,11037543,0,225,R,Pupil Development Grant,990016,
Resources,Support Services,Children & Young People,Assistance to Pupils,Supplies & Services,Grants and Subscriptions,Grants Payable,,04/08/2022,11037202,0,225,R,Pupil Development Grant,990016,
Resources,Support Services,Children & Young People,Assistance to Pupils,Supplies & Services,Grants and Subscriptions,Grants Payable,,04/08/2022,11037203,0,225,R,Pupil Development Grant,990016,
"Enterprise, Housing & Community Animation",General Fund Housing,Communities & Place,Homelessness,Premises,"Repairs, Alterations & Maintenance of Buildings",Security Of Premises.,,12/08/2022,11038606,10123260,5148,R,M J Events Support Ltd,296340,
Standards,Early Years,Children & Young People,Flying Start Grant,Supplies & Services,"Equipment, Furniture and Materials",Materials & Consumables.,,12/08/2022,11040961,10125955,3.67,R,Amazon  Payments UK Ltd (Punchout),2202048,
"Policy, Scrutiny & Customer Service",Policy And Partnerships,Chief Executive's Unit,Equalities and Welsh Language,Supplies & Services,Services,Professional And Specialist Fees,,12/08/2022,11040963,10125973,250,R,Cwmni2,299927,
"Policy, Scrutiny & Customer Service",Policy And Partnerships,Chief Executive's Unit,Equalities and Welsh Language,Supplies & Services,Services,Professional And Specialist Fees,,17/08/2022,10974028,10119048,10881.02,R,REDACTED PERSONAL DATA,295151,
"Commercial, Corporate & landlord Services",Property Services & Facilities Management,Resources,Programmed Maintenance,Premises,"Repairs, Alterations & Maintenance of Buildings",Premises Repairs And Maintenance,,17/08/2022,11041407,90064364,82.59,R,Lorne Stewart  Plc,251159,
"Commercial, Corporate & landlord Services",Property Services & Facilities Management,Resources,Programmed Maintenance,Premises,"Repairs, Alterations & Maintenance of Buildings",Premises Repairs And Maintenance,,17/08/2022,11041409,90062336,210.6,R,Lorne Stewart  Plc,251159,
People,Training,People & Governance,Kick Start Grant,Supplies & Services,Grants and Subscriptions,Grants Payable,,17/08/2022,10911028,10120330,716.39,R,Monmouthshire Housing Association Ltd,285081,
Children Services,Children Services Teams,Social Care and Health,Family Support and Protection Team,Supplies & Services,Services,Professional And Specialist Fees,,23/08/2022,11045157,10126236,83.33,R,Homemakers Community Recycling,249236,
Children Services,Children Services Teams,Social Care and Health,Disabled Children,Supplies & Services,Services,Sub-Contractors Fees,,23/08/2022,11042241,10123364,413.33,R,Orbis Education and Care,298202,
Neighbourhood Services,Waste and Street Services,Communities & Place,Fitting Shop Grounds,Supplies & Services,"Equipment, Furniture and Materials",Materials & Consumables.,,23/08/2022,11044384,10122744,2300,R,Richard Griffiths Ltd,286017,
Neighbourhood Services,Waste and Street Services,Communities & Place,Grounds,Supplies & Services,"Equipment, Furniture and Materials",Materials & Consumables.,,23/08/2022,11044380,10122690,39.51,R,Robert Price Builders Merchants Ltd,200061,
Neighbourhood Services,Waste and Street Services,Communities & Place,Grounds,Supplies & Services,"Equipment, Furniture and Materials",Materials & Consumables.,,23/08/2022,11044381,10122690,18.08,R,Robert Price Builders Merchants Ltd,200061,
Children Services,Children Services Teams,Social Care and Health,Disabled Children,Supplies & Services,Services,Professional And Specialist Fees,,31/08/2022,11047686,10125166,455.88,R,Richmond Nursing Agency Ltd,2203303,
Neighbourhood Services,Waste and Street Services,Communities & Place,Grounds,Supplies & Services,"Equipment, Furniture and Materials",Materials & Consumables.,,02/08/2022,11032881,10122736,9.47,R,Robert Price Builders Merchants Ltd,200061,
Resources,Support Services,Children & Young People,Assistance to Pupils,Supplies & Services,Grants and Subscriptions,Grants Payable,,04/08/2022,11036702,0,225,R,Pupil Development Grant,990016,
Resources,Support Services,Children & Young People,Assistance to Pupils,Supplies & Services,Grants and Subscriptions,Grants Payable,,04/08/2022,11036703,0,225,R,Pupil Development Grant,990016,
Resources,Support Services,Children & Young People,Assistance to Pupils,Supplies & Services,Grants and Subscriptions,Grants Payable,,04/08/2022,11037258,0,225,R,Pupil Development Grant,990016,
Resources,Support Services,Children & Young People,Assistance to Pupils,Supplies & Services,Grants and Subscriptions,Grants Payable,,04/08/2022,11037259,0,225,R,Pupil Development Grant,990016,
Resources,Support Services,Children & Young People,Assistance to Pupils,Supplies & Services,Grants and Subscriptions,Grants Payable,,04/08/2022,11037260,0,225,R,Pupil Development Grant,990016,
Resources,Support Services,Children & Young People,Assistance to Pupils,Supplies & Services,Grants and Subscriptions,Grants Payable,,04/08/2022,11037675,0,225,R,Pupil Development Grant,990016,
Resources,Support Services,Children & Young People,Assistance to Pupils,Supplies & Services,Grants and Subscriptions,Grants Payable,,04/08/2022,11037676,0,225,R,Pupil Development Grant,990016,
Resources,Support Services,Children & Young People,Assistance to Pupils,Supplies & Services,Grants and Subscriptions,Grants Payable,,04/08/2022,11037677,0,225,R,Pupil Development Grant,990016,
Children Services,Children Services Teams,Social Care and Health,Disabled Children,Supplies & Services,Services,Professional And Specialist Fees,,31/08/2022,11047687,10125166,1095.8,R,Richmond Nursing Agency Ltd,2203303,
Neighbourhood Services,Waste and Street Services,Communities & Place,Grounds,Supplies & Services,"Equipment, Furniture and Materials",Materials & Consumables.,,31/08/2022,11045560,10126058,150,R,Building & Property Surveys Ltd,2202486,
Neighbourhood Services,Waste and Street Services,Communities & Place,Grounds,Supplies & Services,"Equipment, Furniture and Materials",Materials & Consumables.,,31/08/2022,11045560,10126058,100,R,Building & Property Surveys Ltd,2202486,
Neighbourhood Services,Waste and Street Services,Communities & Place,Grounds,Supplies & Services,"Equipment, Furniture and Materials",Materials & Consumables.,,31/08/2022,11045560,10126058,-100,R,Building & Property Surveys Ltd,2202486,
Neighbourhood Services,Waste and Street Services,Communities & Place,Fitting Shop Grounds,Supplies & Services,"Equipment, Furniture and Materials",Materials & Consumables.,,31/08/2022,11040771,10125351,3359.08,R,Wirtgen Limited,297010,
Neighbourhood Services,Waste and Street Services,Communities & Place,Fitting Shop Grounds,Supplies & Services,"Equipment, Furniture and Materials",Materials & Consumables.,,31/08/2022,11040771,10125351,85,R,Wirtgen Limited,297010,
"Commercial, Corporate & landlord Services",Property Services & Facilities Management,Resources,Programmed Maintenance,Premises,"Repairs, Alterations & Maintenance of Buildings",Premises Repairs And Maintenance,,12/08/2022,11041090,90063305,264.18,R,Kone Plc,282383,
Standards,Early Years,Children & Young People,Early Years,Supplies & Services,Grants and Subscriptions,Grants Payable,,12/08/2022,11040971,10125946,6000,R,REDACTED PERSONAL DATA,214690,
Resources,Support Services,Children & Young People,Assistance to Pupils,Supplies & Services,Grants and Subscriptions,Grants Payable,,04/08/2022,11037204,0,225,R,Pupil Development Grant,990016,
Resources,Support Services,Children & Young People,Assistance to Pupils,Supplies & Services,Grants and Subscriptions,Grants Payable,,04/08/2022,11037261,0,225,R,Pupil Development Grant,990016,
Resources,Support Services,Children & Young People,Assistance to Pupils,Supplies & Services,Grants and Subscriptions,Grants Payable,,04/08/2022,11037262,0,225,R,Pupil Development Grant,990016,
Resources,Support Services,Children & Young People,Assistance to Pupils,Supplies & Services,Grants and Subscriptions,Grants Payable,,04/08/2022,11037624,0,225,R,Pupil Development Grant,990016,
Resources,Support Services,Children & Young People,Assistance to Pupils,Supplies & Services,Grants and Subscriptions,Grants Payable,,04/08/2022,11037625,0,225,R,Pupil Development Grant,990016,
Resources,Support Services,Children & Young People,Assistance to Pupils,Supplies & Services,Grants and Subscriptions,Grants Payable,,04/08/2022,11036690,0,225,R,Pupil Development Grant,990016,
Resources,Support Services,Children & Young People,Assistance to Pupils,Supplies & Services,Grants and Subscriptions,Grants Payable,,04/08/2022,11036691,0,225,R,Pupil Development Grant,990016,
Resources,Support Services,Children & Young People,Assistance to Pupils,Supplies & Services,Grants and Subscriptions,Grants Payable,,04/08/2022,11037237,0,225,R,Pupil Development Grant,990016,
Resources,Support Services,Children & Young People,Assistance to Pupils,Supplies & Services,Grants and Subscriptions,Grants Payable,,04/08/2022,11037238,0,225,R,Pupil Development Grant,990016,
Resources,Support Services,Children & Young People,Assistance to Pupils,Supplies & Services,Grants and Subscriptions,Grants Payable,,04/08/2022,11037335,0,225,R,Pupil Development Grant,990016,
Schools Total,School Group 1 � Pupil Capacity 1-143,MCC Schools,Llanvihangel Crucorney Primary School,Premises,Energy Costs,Electricity.,,19/08/2022,11044739,0,14.39,R,EDF Energy,212738,
Children Services,Children Services Other,Social Care and Health,Counsel Costs,Supplies & Services,Services,Professional And Specialist Fees,,17/08/2022,11032820,10124614,223.25,R,Lextox,295341,
Resources,Support Services,Children & Young People,Assistance to Pupils,Supplies & Services,Grants and Subscriptions,Grants Payable,,04/08/2022,11037678,0,225,R,Pupil Development Grant,990016,
Resources,Support Services,Children & Young People,Assistance to Pupils,Supplies & Services,Grants and Subscriptions,Grants Payable,,04/08/2022,11037679,0,225,R,Pupil Development Grant,990016,
Resources,Support Services,Children & Young People,Assistance to Pupils,Supplies & Services,Grants and Subscriptions,Grants Payable,,04/08/2022,11037680,0,225,R,Pupil Development Grant,990016,
Resources,Support Services,Children & Young People,Assistance to Pupils,Supplies & Services,Grants and Subscriptions,Grants Payable,,04/08/2022,11036716,0,225,R,Pupil Development Grant,990016,
Resources,Support Services,Children & Young People,Assistance to Pupils,Supplies & Services,Grants and Subscriptions,Grants Payable,,04/08/2022,11036717,0,225,R,Pupil Development Grant,990016,
Resources,Support Services,Children & Young People,Assistance to Pupils,Supplies & Services,Grants and Subscriptions,Grants Payable,,04/08/2022,11037359,0,225,R,Pupil Development Grant,990016,
Resources,Support Services,Children & Young People,Assistance to Pupils,Supplies & Services,Grants and Subscriptions,Grants Payable,,04/08/2022,11037360,0,225,R,Pupil Development Grant,990016,
Resources,Support Services,Children & Young People,Assistance to Pupils,Supplies & Services,Grants and Subscriptions,Grants Payable,,04/08/2022,11037361,0,225,R,Pupil Development Grant,990016,
Resources,Support Services,Children & Young People,Assistance to Pupils,Supplies & Services,Grants and Subscriptions,Grants Payable,,04/08/2022,11037362,0,225,R,Pupil Development Grant,990016,
Resources,Support Services,Children & Young People,Assistance to Pupils,Supplies & Services,Grants and Subscriptions,Grants Payable,,04/08/2022,11037556,0,225,R,Pupil Development Grant,990016,
Resources,Support Services,Children & Young People,Assistance to Pupils,Supplies & Services,Grants and Subscriptions,Grants Payable,,04/08/2022,11036821,0,225,R,Pupil Development Grant,990016,
Resources,Support Services,Children & Young People,Assistance to Pupils,Supplies & Services,Grants and Subscriptions,Grants Payable,,04/08/2022,11036822,0,225,R,Pupil Development Grant,990016,
Resources,Support Services,Children & Young People,Assistance to Pupils,Supplies & Services,Grants and Subscriptions,Grants Payable,,04/08/2022,11036979,0,225,R,Pupil Development Grant,990016,
Resources,Support Services,Children & Young People,Assistance to Pupils,Supplies & Services,Grants and Subscriptions,Grants Payable,,04/08/2022,11036980,0,225,R,Pupil Development Grant,990016,
Resources,Support Services,Children & Young People,Assistance to Pupils,Supplies & Services,Grants and Subscriptions,Grants Payable,,04/08/2022,11036981,0,225,R,Pupil Development Grant,990016,
Resources,Support Services,Children & Young People,Assistance to Pupils,Supplies & Services,Grants and Subscriptions,Grants Payable,,04/08/2022,11036770,0,225,R,Pupil Development Grant,990016,
Resources,Support Services,Children & Young People,Assistance to Pupils,Supplies & Services,Grants and Subscriptions,Grants Payable,,04/08/2022,11036771,0,225,R,Pupil Development Grant,990016,
Resources,Support Services,Children & Young People,Assistance to Pupils,Supplies & Services,Grants and Subscriptions,Grants Payable,,04/08/2022,11036991,0,225,R,Pupil Development Grant,990016,
Resources,Support Services,Children & Young People,Assistance to Pupils,Supplies & Services,Grants and Subscriptions,Grants Payable,,04/08/2022,11036992,0,225,R,Pupil Development Grant,990016,
Resources,Support Services,Children & Young People,Assistance to Pupils,Supplies & Services,Grants and Subscriptions,Grants Payable,,04/08/2022,11036993,0,225,R,Pupil Development Grant,990016,
Resources,Support Services,Children & Young People,Assistance to Pupils,Supplies & Services,Grants and Subscriptions,Grants Payable,,04/08/2022,11036994,0,225,R,Pupil Development Grant,990016,
Resources,Support Services,Children & Young People,Assistance to Pupils,Supplies & Services,Grants and Subscriptions,Grants Payable,,04/08/2022,11037176,0,225,R,Pupil Development Grant,990016,
Neighbourhood Services,Waste and Street Services,Communities & Place,Fitting Shop Grounds,Supplies & Services,"Equipment, Furniture and Materials",Materials & Consumables.,,02/08/2022,11025293,10122740,451.08,R,Highway Care Ltd,250036,
Neighbourhood Services,Waste and Street Services,Communities & Place,Fitting Shop Grounds,Supplies & Services,"Equipment, Furniture and Materials",Materials & Consumables.,,02/08/2022,11021298,10122746,389.8,R,Riverlea,2200311,
Public Protection,Health & Safety,Social Care and Health,Safety Services,Supplies & Services,Services,Professional And Specialist Fees,,02/08/2022,11034048,10125308,1027,R,Insync Corporate Healthcare,2200831,
Standards,Early Years,Children & Young People,Early Years,Supplies & Services,Grants and Subscriptions,Grants Payable,,02/08/2022,11034013,10125749,375,R,Little Tigers Playgroup,293496,
Standards,Early Years,Children & Young People,Early Years,Supplies & Services,Grants and Subscriptions,Grants Payable,,02/08/2022,11034014,10125750,375,R,Destiny's Child,283346,
Countryside & Culture,Countryside,MonLife Directorate,ENRAW � Resilient Greater Gwent,Supplies & Services,"Equipment, Furniture and Materials",Materials & Consumables.,,02/08/2022,11033378,10125654,47,R,Ideal Stencils,2201998,
Standards,Early Years,Children & Young People,Early Years,Supplies & Services,Grants and Subscriptions,Grants Payable,,02/08/2022,11033937,10125751,200,R,REDACTED PERSONAL DATA,2200191,
Standards,Early Years,Children & Young People,Early Years,Supplies & Services,Grants and Subscriptions,Grants Payable,,02/08/2022,11033938,10125752,200,R,REDACTED PERSONAL DATA,2202360,
Standards,Early Years,Children & Young People,Early Years,Supplies & Services,Grants and Subscriptions,Grants Payable,,02/08/2022,11033940,10125754,200,R,REDACTED PERSONAL DATA,2202396,
Standards,Early Years,Children & Young People,Early Years,Supplies & Services,Grants and Subscriptions,Grants Payable,,02/08/2022,11033941,10125755,160,R,REDACTED PERSONAL DATA,296011,
Neighbourhood Services,Waste and Street Services,Communities & Place,Grounds,Supplies & Services,"Equipment, Furniture and Materials",Materials & Consumables.,,02/08/2022,11033942,10125761,2820,R,HM Prison Service,265715,
Resources,Support Services,Children & Young People,Assistance to Pupils,Supplies & Services,Grants and Subscriptions,Grants Payable,,04/08/2022,11037336,0,225,R,Pupil Development Grant,990016,
Resources,Support Services,Children & Young People,Assistance to Pupils,Supplies & Services,Grants and Subscriptions,Grants Payable,,04/08/2022,11037337,0,225,R,Pupil Development Grant,990016,
Resources,Support Services,Children & Young People,Assistance to Pupils,Supplies & Services,Grants and Subscriptions,Grants Payable,,04/08/2022,11037487,0,225,R,Pupil Development Grant,990016,
Resources,Support Services,Children & Young People,Assistance to Pupils,Supplies & Services,Grants and Subscriptions,Grants Payable,,04/08/2022,11037488,0,225,R,Pupil Development Grant,990016,
Resources,Support Services,Children & Young People,Assistance to Pupils,Supplies & Services,Grants and Subscriptions,Grants Payable,,04/08/2022,11037503,0,225,R,Pupil Development Grant,990016,
Resources,Support Services,Children & Young People,Assistance to Pupils,Supplies & Services,Grants and Subscriptions,Grants Payable,,04/08/2022,11037504,0,225,R,Pupil Development Grant,990016,
Resources,Support Services,Children & Young People,Assistance to Pupils,Supplies & Services,Grants and Subscriptions,Grants Payable,,04/08/2022,11037239,0,225,R,Pupil Development Grant,990016,
Resources,Support Services,Children & Young People,Assistance to Pupils,Supplies & Services,Grants and Subscriptions,Grants Payable,,04/08/2022,11037240,0,225,R,Pupil Development Grant,990016,
Resources,Support Services,Children & Young People,Assistance to Pupils,Supplies & Services,Grants and Subscriptions,Grants Payable,,04/08/2022,11036817,0,225,R,Pupil Development Grant,990016,
Resources,Support Services,Children & Young People,Assistance to Pupils,Supplies & Services,Grants and Subscriptions,Grants Payable,,04/08/2022,11036818,0,225,R,Pupil Development Grant,990016,
Resources,Support Services,Children & Young People,Assistance to Pupils,Supplies & Services,Grants and Subscriptions,Grants Payable,,04/08/2022,11036819,0,225,R,Pupil Development Grant,990016,
Standards,Early Years,Children & Young People,Flying Start Grant,Supplies & Services,"Equipment, Furniture and Materials",Materials & Consumables.,,12/08/2022,11040972,10125955,11.32,R,Amazon  Payments UK Ltd (Punchout),2202048,
"Enterprise, Housing & Community Animation",General Fund Housing,Communities & Place,Emergency Accommodation Hostel,Premises,"Repairs, Alterations & Maintenance of Buildings",Security Of Premises.,,12/08/2022,11040793,10123259,2772,R,M J Events Support Ltd,296340,
Resources,Support Services,Children & Young People,Assistance to Pupils,Supplies & Services,Grants and Subscriptions,Grants Payable,,04/08/2022,11037177,0,225,R,Pupil Development Grant,990016,
Resources,Support Services,Children & Young People,Assistance to Pupils,Supplies & Services,Grants and Subscriptions,Grants Payable,,04/08/2022,11037698,0,225,R,Pupil Development Grant,990016,
Resources,Support Services,Children & Young People,Assistance to Pupils,Supplies & Services,Grants and Subscriptions,Grants Payable,,04/08/2022,11037699,0,225,R,Pupil Development Grant,990016,
Resources,Support Services,Children & Young People,Assistance to Pupils,Supplies & Services,Grants and Subscriptions,Grants Payable,,04/08/2022,11036864,0,225,R,Pupil Development Grant,990016,
Resources,Support Services,Children & Young People,Assistance to Pupils,Supplies & Services,Grants and Subscriptions,Grants Payable,,04/08/2022,11037695,0,225,R,Pupil Development Grant,990016,
Resources,Support Services,Children & Young People,Assistance to Pupils,Supplies & Services,Grants and Subscriptions,Grants Payable,,04/08/2022,11037696,0,225,R,Pupil Development Grant,990016,
Resources,Support Services,Children & Young People,Assistance to Pupils,Supplies & Services,Grants and Subscriptions,Grants Payable,,04/08/2022,11037697,0,225,R,Pupil Development Grant,990016,
Resources,Support Services,Children & Young People,Assistance to Pupils,Supplies & Services,Grants and Subscriptions,Grants Payable,,04/08/2022,11037482,0,225,R,Pupil Development Grant,990016,
Resources,Support Services,Children & Young People,Assistance to Pupils,Supplies & Services,Grants and Subscriptions,Grants Payable,,04/08/2022,11037073,0,225,R,Pupil Development Grant,990016,
Resources,Support Services,Children & Young People,Assistance to Pupils,Supplies & Services,Grants and Subscriptions,Grants Payable,,04/08/2022,11037074,0,225,R,Pupil Development Grant,990016,
Resources,Support Services,Children & Young People,Assistance to Pupils,Supplies & Services,Grants and Subscriptions,Grants Payable,,04/08/2022,11037075,0,225,R,Pupil Development Grant,990016,
Resources,Support Services,Children & Young People,Assistance to Pupils,Supplies & Services,Grants and Subscriptions,Grants Payable,,04/08/2022,11037076,0,225,R,Pupil Development Grant,990016,
Resources,Support Services,Children & Young People,Assistance to Pupils,Supplies & Services,Grants and Subscriptions,Grants Payable,,04/08/2022,11037443,0,225,R,Pupil Development Grant,990016,
Resources,Support Services,Children & Young People,Assistance to Pupils,Supplies & Services,Grants and Subscriptions,Grants Payable,,04/08/2022,11037444,0,225,R,Pupil Development Grant,990016,
Resources,Support Services,Children & Young People,Assistance to Pupils,Supplies & Services,Grants and Subscriptions,Grants Payable,,04/08/2022,11036730,0,225,R,Pupil Development Grant,990016,
Resources,Support Services,Children & Young People,Assistance to Pupils,Supplies & Services,Grants and Subscriptions,Grants Payable,,04/08/2022,11036731,0,225,R,Pupil Development Grant,990016,
Resources,Support Services,Children & Young People,Assistance to Pupils,Supplies & Services,Grants and Subscriptions,Grants Payable,,04/08/2022,11036732,0,225,R,Pupil Development Grant,990016,
Resources,Support Services,Children & Young People,Assistance to Pupils,Supplies & Services,Grants and Subscriptions,Grants Payable,,04/08/2022,11036733,0,225,R,Pupil Development Grant,990016,
Resources,Support Services,Children & Young People,Assistance to Pupils,Supplies & Services,Grants and Subscriptions,Grants Payable,,04/08/2022,11036947,0,225,R,Pupil Development Grant,990016,
"Commercial, Corporate & landlord Services",Property Services & Facilities Management,Resources,Programmed Maintenance,Premises,"Repairs, Alterations & Maintenance of Buildings",Premises Repairs And Maintenance,,10/08/2022,11038256,90061427,369.93,R,Circuit Compliance t/a Circuit Electrical Testing Ltd,298180,
"Commercial, Corporate & landlord Services",Property Services & Facilities Management,Resources,Programmed Maintenance,Premises,"Repairs, Alterations & Maintenance of Buildings",Premises Repairs And Maintenance,,10/08/2022,11038258,90061423,506.22,R,Circuit Compliance t/a Circuit Electrical Testing Ltd,298180,
"Commercial, Corporate & landlord Services",Property Services & Facilities Management,Resources,Programmed Maintenance,Premises,"Repairs, Alterations & Maintenance of Buildings",Premises Repairs And Maintenance,,10/08/2022,11038262,90061413,484.39,R,Circuit Compliance t/a Circuit Electrical Testing Ltd,298180,
"Commercial, Corporate & landlord Services",Property Services & Facilities Management,Resources,Programmed Maintenance,Premises,"Repairs, Alterations & Maintenance of Buildings",Premises Repairs And Maintenance,,10/08/2022,11038304,90060444,35.99,R,Circuit Compliance t/a Circuit Electrical Testing Ltd,298180,
"Commercial, Corporate & landlord Services",Property Services & Facilities Management,Resources,External Clients,Premises,"Repairs, Alterations & Maintenance of Buildings",Premises Repairs And Maintenance,,10/08/2022,11038257,90061426,10.62,R,Circuit Compliance t/a Circuit Electrical Testing Ltd,298180,
Schools Total,School Group 2 � Pupil Capacity 144-314,MCC Schools,Rogiet Primary School,Premises,Energy Costs,Electricity.,,19/08/2022,11044870,0,1486.16,R,EDF Energy,212738,
Schools Total,School Group 2 � Pupil Capacity 144-314,MCC Schools,Gilwern Primary School,Premises,Energy Costs,Electricity.,,19/08/2022,11044916,0,1109.34,R,EDF Energy,212738,
"Commercial, Corporate & landlord Services",Property Services & Facilities Management,Resources,Usk Accommodation,Premises,"Repairs, Alterations & Maintenance of Buildings",Premises Repairs And Maintenance,,11/08/2022,11040815,90064298,75,R,Industrial Door Services,220527,
"Commercial, Corporate & landlord Services",Property Services & Facilities Management,Resources,Programmed Maintenance,Premises,"Repairs, Alterations & Maintenance of Buildings",Premises Repairs And Maintenance,,11/08/2022,11040809,90059463,120,R,Industrial Door Services,220527,
"Commercial, Corporate & landlord Services",Property Services & Facilities Management,Resources,Programmed Maintenance,Premises,"Repairs, Alterations & Maintenance of Buildings",Premises Repairs And Maintenance,,11/08/2022,11040813,90064297,255,R,Industrial Door Services,220527,
"Commercial, Corporate & landlord Services",Property Services & Facilities Management,Resources,Programmed Maintenance,Premises,"Repairs, Alterations & Maintenance of Buildings",Premises Repairs And Maintenance,,11/08/2022,11040814,90064231,75,R,Industrial Door Services,220527,
Children Services,Children Services Teams,Social Care and Health,Disabled Children,Supplies & Services,Services,Professional And Specialist Fees,,11/08/2022,11036266,10125166,1822.14,R,Richmond Nursing Agency Ltd,2203303,
Standards,Early Years,Children & Young People,Expansion of Early Years Grant,Supplies & Services,Grants and Subscriptions,Grants Payable,,11/08/2022,11038738,10125714,2750,R,Abacus Day Nursery,210859,
Standards,Early Years,Children & Young People,Foundation of Training Grant,Supplies & Services,Grants and Subscriptions,Grants Payable,,11/08/2022,11038738,10125714,869,R,Abacus Day Nursery,210859,
"Commercial, Corporate & landlord Services",Property Services & Facilities Management,Resources,Programmed Maintenance,Premises,"Repairs, Alterations & Maintenance of Buildings",Premises Repairs And Maintenance,,11/08/2022,11040701,90063675,353.29,R,EFS Systems (UK) Ltd,2200607,
Standards,Early Years,Children & Young People,Foundation of Training Grant,Supplies & Services,Grants and Subscriptions,Grants Payable,,11/08/2022,11038739,10125715,4849,R,Busy Bodies at Trellech Playgroup,249353,
Standards,Early Years,Children & Young People,Foundation of Training Grant,Supplies & Services,Grants and Subscriptions,Grants Payable,,11/08/2022,11038740,10125716,2328,R,Chepstow Leisure Centre Playgroup,254020,
Standards,Early Years,Children & Young People,Expansion of Early Years Grant,Supplies & Services,Grants and Subscriptions,Grants Payable,,11/08/2022,11038739,10125715,2750,R,Busy Bodies at Trellech Playgroup,249353,
Standards,Early Years,Children & Young People,Expansion of Early Years Grant,Supplies & Services,Grants and Subscriptions,Grants Payable,,11/08/2022,11038740,10125716,2750,R,Chepstow Leisure Centre Playgroup,254020,
Standards,Early Years,Children & Young People,Expansion of Early Years Grant,Supplies & Services,Grants and Subscriptions,Grants Payable,,11/08/2022,11038741,10125717,2750,R,REDACTED PERSONAL DATA,296011,
Standards,Early Years,Children & Young People,Foundation of Training Grant,Supplies & Services,Grants and Subscriptions,Grants Payable,,11/08/2022,11038741,10125717,5930,R,REDACTED PERSONAL DATA,296011,
Standards,Early Years,Children & Young People,Foundation of Training Grant,Supplies & Services,Grants and Subscriptions,Grants Payable,,11/08/2022,11038742,10125719,3769,R,Llandogo Early Years,285885,
Standards,Early Years,Children & Young People,Foundation of Training Grant,Supplies & Services,Grants and Subscriptions,Grants Payable,,11/08/2022,11038743,10125720,3769,R,Mathern Day Nursery (Childcare Services) Ltd,202754,
Standards,Early Years,Children & Young People,Expansion of Early Years Grant,Supplies & Services,Grants and Subscriptions,Grants Payable,,11/08/2022,11038742,10125719,2750,R,Llandogo Early Years,285885,
Standards,Early Years,Children & Young People,Expansion of Early Years Grant,Supplies & Services,Grants and Subscriptions,Grants Payable,,11/08/2022,11038743,10125720,2750,R,Mathern Day Nursery (Childcare Services) Ltd,202754,
"Policy, Scrutiny & Customer Service",Policy And Partnerships,Chief Executive's Unit,C.C.T.V,Supplies & Services,Services,Professional And Specialist Fees,,11/08/2022,11040758,10125850,484,R,AVA Fire & Security Ltd,293138,
Neighbourhood Services,Waste and Street Services,Communities & Place,Refuse & Cleansing Operations,Supplies & Services,"Equipment, Furniture and Materials",Materials & Consumables.,,11/08/2022,11040750,10125927,5594.43,R,Cycle Solutions,2204178,
Standards,Early Years,Children & Young People,Expansion of Early Years Grant,Supplies & Services,Grants and Subscriptions,Grants Payable,,11/08/2022,11038747,10125740,2750,R,Sunshine Pre-School,287286,
Standards,Early Years,Children & Young People,Foundation of Training Grant,Supplies & Services,Grants and Subscriptions,Grants Payable,,11/08/2022,11038747,10125740,3024,R,Sunshine Pre-School,287286,
Standards,Early Years,Children & Young People,Foundation of Training Grant,Supplies & Services,Grants and Subscriptions,Grants Payable,,11/08/2022,11038747,10125740,656,R,Sunshine Pre-School,287286,
Standards,Early Years,Children & Young People,Foundation of Training Grant,Supplies & Services,Grants and Subscriptions,Grants Payable,,11/08/2022,11038748,10125741,1677,R,Usk Nursery,297692,
Resources,Support Services,Children & Young People,Assistance to Pupils,Supplies & Services,Grants and Subscriptions,Grants Payable,,04/08/2022,11036948,0,225,R,Pupil Development Grant,990016,
Resources,Support Services,Children & Young People,Assistance to Pupils,Supplies & Services,Grants and Subscriptions,Grants Payable,,04/08/2022,11036865,0,225,R,Pupil Development Grant,990016,
Resources,Support Services,Children & Young People,Assistance to Pupils,Supplies & Services,Grants and Subscriptions,Grants Payable,,04/08/2022,11036866,0,225,R,Pupil Development Grant,990016,
Resources,Support Services,Children & Young People,Assistance to Pupils,Supplies & Services,Grants and Subscriptions,Grants Payable,,04/08/2022,11036867,0,225,R,Pupil Development Grant,990016,
Standards,Early Years,Children & Young People,Expansion of Early Years Grant,Supplies & Services,Grants and Subscriptions,Grants Payable,,11/08/2022,11038748,10125741,2750,R,Usk Nursery,297692,
"Enterprise, Housing & Community Animation",General Fund Housing,Communities & Place,Homelessness,Premises,"Repairs, Alterations & Maintenance of Buildings",Security Of Premises.,,11/08/2022,11040794,10123260,2772,R,M J Events Support Ltd,296340,
Neighbourhood Services,Waste and Street Services,Communities & Place,Fitting Shop Grounds,Supplies & Services,"Equipment, Furniture and Materials",Materials & Consumables.,,25/08/2022,11034113,10122739,55.39,R,Cambrian Group UK,201999,
Neighbourhood Services,Waste and Street Services,Communities & Place,Fitting Shop Grounds,Supplies & Services,"Equipment, Furniture and Materials",Materials & Consumables.,,25/08/2022,11041244,10122746,1150,R,Riverlea,2200311,
Neighbourhood Services,Waste and Street Services,Communities & Place,Grounds,Supplies & Services,"Equipment, Furniture and Materials",Materials & Consumables.,,25/08/2022,11037973,10125762,97.5,R,Fleetwheel,2200166,
Neighbourhood Services,Waste and Street Services,Communities & Place,Grounds,Supplies & Services,"Equipment, Furniture and Materials",Materials & Consumables.,,25/08/2022,11037974,10125762,15.03,R,Fleetwheel,2200166,
Neighbourhood Services,Waste and Street Services,Communities & Place,Grounds,Supplies & Services,"Equipment, Furniture and Materials",Materials & Consumables.,,25/08/2022,11038619,10125435,4650,R,Zenith Print and Packaging Ltd,297963,
Resources,Support Services,Children & Young People,Assistance to Pupils,Supplies & Services,Grants and Subscriptions,Grants Payable,,04/08/2022,11037505,0,225,R,Pupil Development Grant,990016,
Resources,Support Services,Children & Young People,Assistance to Pupils,Supplies & Services,Grants and Subscriptions,Grants Payable,,04/08/2022,11037506,0,225,R,Pupil Development Grant,990016,
Resources,Support Services,Children & Young People,Assistance to Pupils,Supplies & Services,Grants and Subscriptions,Grants Payable,,04/08/2022,11037083,0,225,R,Pupil Development Grant,990016,
Resources,Support Services,Children & Young People,Assistance to Pupils,Supplies & Services,Grants and Subscriptions,Grants Payable,,04/08/2022,11037084,0,225,R,Pupil Development Grant,990016,
Resources,Support Services,Children & Young People,Assistance to Pupils,Supplies & Services,Grants and Subscriptions,Grants Payable,,04/08/2022,11037162,0,225,R,Pupil Development Grant,990016,
Resources,Support Services,Children & Young People,Assistance to Pupils,Supplies & Services,Grants and Subscriptions,Grants Payable,,04/08/2022,11037163,0,225,R,Pupil Development Grant,990016,
Resources,Support Services,Children & Young People,Assistance to Pupils,Supplies & Services,Grants and Subscriptions,Grants Payable,,04/08/2022,11037164,0,225,R,Pupil Development Grant,990016,
Resources,Support Services,Children & Young People,Assistance to Pupils,Supplies & Services,Grants and Subscriptions,Grants Payable,,04/08/2022,11037165,0,225,R,Pupil Development Grant,990016,
Resources,Support Services,Children & Young People,Assistance to Pupils,Supplies & Services,Grants and Subscriptions,Grants Payable,,04/08/2022,11036634,0,225,R,Pupil Development Grant,990016,
Children Services,Children Services Teams,Social Care and Health,Family Support and Protection Team,Supplies & Services,Services,Professional And Specialist Fees,,04/08/2022,11036274,10125455,696.66,R,Securcare Ltd,299154,
Children Services,Children Services Teams,Social Care and Health,Family Support and Protection Team,Supplies & Services,Services,Professional And Specialist Fees,,04/08/2022,11036275,10125456,2130.6,R,Cheka Safeguarding Services Limited,297627,
Finance & Business Devlopment,Attractions,MonLife Directorate,Tourist Information Centres,Supplies & Services,"Equipment, Furniture and Materials",Materials & Consumables.,,09/08/2022,11037922,10122762,73.34,R,National Express Limited,291963,
Resources,Support Services,Children & Young People,Assistance to Pupils,Supplies & Services,Grants and Subscriptions,Grants Payable,,04/08/2022,11037137,0,225,R,Pupil Development Grant,990016,
Resources,Support Services,Children & Young People,Assistance to Pupils,Supplies & Services,Grants and Subscriptions,Grants Payable,,04/08/2022,11037519,0,225,R,Pupil Development Grant,990016,
Resources,Support Services,Children & Young People,Assistance to Pupils,Supplies & Services,Grants and Subscriptions,Grants Payable,,04/08/2022,11037520,0,225,R,Pupil Development Grant,990016,
Resources,Support Services,Children & Young People,Assistance to Pupils,Supplies & Services,Grants and Subscriptions,Grants Payable,,04/08/2022,11037349,0,225,R,Pupil Development Grant,990016,
Resources,Support Services,Children & Young People,Assistance to Pupils,Supplies & Services,Grants and Subscriptions,Grants Payable,,04/08/2022,11037350,0,225,R,Pupil Development Grant,990016,
Resources,Support Services,Children & Young People,Assistance to Pupils,Supplies & Services,Grants and Subscriptions,Grants Payable,,04/08/2022,11036949,0,225,R,Pupil Development Grant,990016,
Resources,Support Services,Children & Young People,Assistance to Pupils,Supplies & Services,Grants and Subscriptions,Grants Payable,,04/08/2022,11036950,0,225,R,Pupil Development Grant,990016,
Resources,Support Services,Children & Young People,Assistance to Pupils,Supplies & Services,Grants and Subscriptions,Grants Payable,,04/08/2022,11036951,0,225,R,Pupil Development Grant,990016,
Resources,Support Services,Children & Young People,Assistance to Pupils,Supplies & Services,Grants and Subscriptions,Grants Payable,,04/08/2022,11036952,0,225,R,Pupil Development Grant,990016,
Resources,Support Services,Children & Young People,Assistance to Pupils,Supplies & Services,Grants and Subscriptions,Grants Payable,,04/08/2022,11037497,0,225,R,Pupil Development Grant,990016,
Resources,Support Services,Children & Young People,Assistance to Pupils,Supplies & Services,Grants and Subscriptions,Grants Payable,,04/08/2022,11037498,0,225,R,Pupil Development Grant,990016,
Resources,Support Services,Children & Young People,Assistance to Pupils,Supplies & Services,Grants and Subscriptions,Grants Payable,,04/08/2022,11037499,0,225,R,Pupil Development Grant,990016,
Resources,Support Services,Children & Young People,Assistance to Pupils,Supplies & Services,Grants and Subscriptions,Grants Payable,,04/08/2022,11037500,0,225,R,Pupil Development Grant,990016,
Resources,Support Services,Children & Young People,Assistance to Pupils,Supplies & Services,Grants and Subscriptions,Grants Payable,,04/08/2022,11037501,0,225,R,Pupil Development Grant,990016,
Resources,Support Services,Children & Young People,Assistance to Pupils,Supplies & Services,Grants and Subscriptions,Grants Payable,,04/08/2022,11037502,0,225,R,Pupil Development Grant,990016,
Resources,Support Services,Children & Young People,Assistance to Pupils,Supplies & Services,Grants and Subscriptions,Grants Payable,,04/08/2022,11037077,0,225,R,Pupil Development Grant,990016,
Resources,Support Services,Children & Young People,Assistance to Pupils,Supplies & Services,Grants and Subscriptions,Grants Payable,,04/08/2022,11036972,0,225,R,Pupil Development Grant,990016,
Resources,Support Services,Children & Young People,Assistance to Pupils,Supplies & Services,Grants and Subscriptions,Grants Payable,,04/08/2022,11036973,0,225,R,Pupil Development Grant,990016,
Resources,Support Services,Children & Young People,Assistance to Pupils,Supplies & Services,Grants and Subscriptions,Grants Payable,,04/08/2022,11036974,0,225,R,Pupil Development Grant,990016,
Resources,Support Services,Children & Young People,Assistance to Pupils,Supplies & Services,Grants and Subscriptions,Grants Payable,,04/08/2022,11036975,0,225,R,Pupil Development Grant,990016,
Resources,Support Services,Children & Young People,Assistance to Pupils,Supplies & Services,Grants and Subscriptions,Grants Payable,,04/08/2022,11036976,0,225,R,Pupil Development Grant,990016,
Resources,Support Services,Children & Young People,Assistance to Pupils,Supplies & Services,Grants and Subscriptions,Grants Payable,,04/08/2022,11037160,0,225,R,Pupil Development Grant,990016,
Resources,Support Services,Children & Young People,Assistance to Pupils,Supplies & Services,Grants and Subscriptions,Grants Payable,,04/08/2022,11037161,0,225,R,Pupil Development Grant,990016,
Neighbourhood Services,Highways,Communities & Place,Potholing,Supplies & Services,"Equipment, Furniture and Materials",Materials & Consumables.,,12/08/2022,11040998,818811,142.5,R,Dragon Asphalt Ltd,2202522,
Neighbourhood Services,Highways,Communities & Place,Potholing,Supplies & Services,"Equipment, Furniture and Materials",Materials & Consumables.,,12/08/2022,11041023,818838,463.6,R,Dragon Asphalt Ltd,2202522,
Neighbourhood Services,Highways,Communities & Place,Potholing,Supplies & Services,"Equipment, Furniture and Materials",Materials & Consumables.,,12/08/2022,11041023,818838,152,R,Dragon Asphalt Ltd,2202522,
Resources,Support Services,Children & Young People,Assistance to Pupils,Supplies & Services,Grants and Subscriptions,Grants Payable,,04/08/2022,11036995,0,225,R,Pupil Development Grant,990016,
Resources,Support Services,Children & Young People,Assistance to Pupils,Supplies & Services,Grants and Subscriptions,Grants Payable,,04/08/2022,11036996,0,225,R,Pupil Development Grant,990016,
Resources,Support Services,Children & Young People,Assistance to Pupils,Supplies & Services,Grants and Subscriptions,Grants Payable,,04/08/2022,11036982,0,225,R,Pupil Development Grant,990016,
Children Services,Children Services Teams,Social Care and Health,Transformation Team,Supplies & Services,"Equipment, Furniture and Materials",Marketing Materials,,10/08/2022,11025225,10125323,800,R,REDACTED PERSONAL DATA,2203170,
People,People Services,People & Governance,Payroll & System Support,Employees,Indirect Employee Expenses,Childcare Voucher Charge.,,30/08/2022,11038668,0,6.75,R,Kiddivouchers,291625,
People,People Services,People & Governance,Payroll & System Support,Employees,Indirect Employee Expenses,Childcare Voucher Charge.,,30/08/2022,11041500,0,25.71,R,Kiddivouchers,291625,
Neighbourhood Services,Highways,Communities & Place,Siding and Cleaning,Supplies & Services,"Equipment, Furniture and Materials",Display Equipment,,30/08/2022,11047994,818899,124,R,Griffiths Signs & Equipment Co.,200737,
Adult Services,Direct Care Residential,Social Care and Health,Severn View Residential,Supplies & Services,"Equipment, Furniture and Materials",Provisions.,,30/08/2022,11044612,10123221,260.03,R,Castell Howell Foods Ltd,261117,
Adult Services,Direct Care Residential,Social Care and Health,Severn View Residential,Supplies & Services,"Equipment, Furniture and Materials",Provisions.,,30/08/2022,11044612,10123221,242.55,R,Castell Howell Foods Ltd,261117,
Adult Services,Direct Care Residential,Social Care and Health,Severn View Residential,Supplies & Services,"Equipment, Furniture and Materials",Provisions.,,30/08/2022,11044612,10123221,-242.55,R,Castell Howell Foods Ltd,261117,
"Enterprise, Housing & Community Animation",General Fund Housing,Communities & Place,Strategic Services,Third Party Payments,Third Party,General Contracts,,15/08/2022,11040966,10125989,13000,R,Monmouthshire Housing Association Ltd,285081,
"Placemaking, Highways & Flooding",Highways Dev & Car Parks,Communities & Place,Floods & SUDS,Third Party Payments,Third Party,General Contracts,,15/08/2022,11041060,10125695,1725,R,IDOX Software Ltd,259248,
Children Services,Children Services Teams,Social Care and Health,Family Support and Protection Team,Third Party Payments,Third Party,Individual Needs,,15/08/2022,11041056,10124960,75,R,Monmouth Youth Project,294045,
"Placemaking, Highways & Flooding",Highways Dev & Car Parks,Communities & Place,Traffic & Road Safety,Supplies & Services,"Equipment, Furniture and Materials",Advertising,,15/08/2022,11038265,10120739,420,R,Tindle Newspapers Wales & The Borders Ltd,241905,
"Placemaking, Highways & Flooding",Highways Dev & Car Parks,Communities & Place,Traffic & Road Safety,Supplies & Services,"Equipment, Furniture and Materials",Advertising,,15/08/2022,11038687,10120739,294,R,Tindle Newspapers Wales & The Borders Ltd,241905,
Schools Total,School Group 7 � Pupil Capacity 501-1800,MCC Schools,Monmouth Comprehensive,Premises,Cleaning and Domestic Supplies,Refuse Collection,,15/08/2022,11041073,80085162,1349.19,R,Veolia Environmental Services Ltd,290296,
Capital Division,Capital Dept,Capital,Capital Programme,Third Party Payments,Third Party,General Contracts,,10/08/2022,11038388,10125046,64,C,Stannah Stairlifts Ltd,219270,
Neighbourhood Services,Highways,Communities & Place,Task Orders,Supplies & Services,"Equipment, Furniture and Materials",Display Equipment,,10/08/2022,11038550,818821,245,R,Griffiths Signs & Equipment Co.,200737,
"Enterprise, Housing & Community Animation",General Fund Housing,Communities & Place,Lodgings Scheme,Premises,Rents,Rents/Hire Of Premises.,,31/08/2022,11048234,0,354.28,R,REDACTED PERSONAL DATA,295766,
"Enterprise, Housing & Community Animation",General Fund Housing,Communities & Place,Lodgings Scheme,Premises,Rents,Rents/Hire Of Premises.,,31/08/2022,11048235,0,354.28,R,REDACTED PERSONAL DATA,295766,
"Enterprise, Housing & Community Animation",General Fund Housing,Communities & Place,Lodgings Scheme,Premises,Rents,Rents/Hire Of Premises.,,31/08/2022,11048236,0,354.28,R,REDACTED PERSONAL DATA,295766,
"Enterprise, Housing & Community Animation",General Fund Housing,Communities & Place,Lodgings Scheme,Premises,Rents,Rents/Hire Of Premises.,,31/08/2022,11048237,0,354.28,R,REDACTED PERSONAL DATA,295766,
"Enterprise, Housing & Community Animation",General Fund Housing,Communities & Place,Lodgings Scheme,Premises,Rents,Rents/Hire Of Premises.,,31/08/2022,11048238,0,442.85,R,Highmore Investments Ltd,2203559,
Children Services,Children Services Teams,Social Care and Health,MyST,Supplies & Services,"Equipment, Furniture and Materials",Display Equipment,,23/08/2022,11044417,10124756,206.7,R,Blitzmedia Limited,291714,
Adult Services,Direct Care Residential,Social Care and Health,Severn View Residential,Supplies & Services,"Equipment, Furniture and Materials",Provisions.,,23/08/2022,11045022,10123164,107.58,R,Total Produce(Cardiff),284131,
Children Services,Children Services Teams,Social Care and Health,Placement & Support Team,Supplies & Services,Communications and Computing,Postages,,10/08/2022,11038562,10125919,3,R,CORAM BAAF Adoption & Fostering,298980,
"Enterprise, Housing & Community Animation",General Fund Housing,Communities & Place,Homelessness,Supplies & Services,Services,Homelessness Bed & Breakfast Accomodation,,15/08/2022,11041132,10126018,3100,R,REDACTED PERSONAL DATA,2203913,
"Enterprise, Housing & Community Animation",General Fund Housing,Communities & Place,Homelessness,Supplies & Services,Services,Homelessness Bed & Breakfast Accomodation,,15/08/2022,11041138,10126025,693,R,DAB Clubs Ltd,2204131,
Schools Total,School Group 2 � Pupil Capacity 144-314,MCC Schools,Thornwell Primary School,Supplies & Services,"Equipment, Furniture and Materials",Provisions.,,15/08/2022,11041145,80085460,25.7,R,Total Produce(Cardiff),284131,
Schools Total,School Group 7 � Pupil Capacity 501-1800,MCC Schools,Monmouth Comprehensive,Third Party Payments,Third Party,School Meal Service,,15/08/2022,11041149,80088016,520.83,R,Litmus Partnership Ltd,245765,
Adult Services,Day Centres,Social Care and Health,My Day,Premises,Rents,Rents/Hire Of Premises.,,15/08/2022,11041206,10125341,144,R,The Melville Centre for the Arts CIC,2201535,
"Enterprise, Housing & Community Animation",General Fund Housing,Communities & Place,Homelessness,Supplies & Services,Services,Homelessness Bed & Breakfast Accomodation,,10/08/2022,11038580,10112530,1425,R,The Castle Inn,2202377,
Countryside & Culture,Countryside,MonLife Directorate,ENRAW � Gwent Green Grid Partnership,Supplies & Services,"Equipment, Furniture and Materials",Marketing General,,08/08/2022,11030342,10125210,295,R,REDACTED PERSONAL DATA,2203994,
Partnerships,Children Services Teams,Social Care and Health,Youth Offending Team,Supplies & Services,"Equipment, Furniture and Materials",Provisions.,,23/08/2022,11045126,10122788,48.57,R,Cariad Cool Water Limited,261136,
"Placemaking, Highways & Flooding",Highways Dev & Car Parks,Communities & Place,Traffic & Road Safety,Supplies & Services,"Equipment, Furniture and Materials",Advertising,,03/08/2022,11022982,10120739,420,R,Tindle Newspapers Wales & The Borders Ltd,241905,
"Placemaking, Highways & Flooding",Highways Dev & Car Parks,Communities & Place,Traffic & Road Safety,Supplies & Services,"Equipment, Furniture and Materials",Advertising,,03/08/2022,11022983,10120739,420,R,Tindle Newspapers Wales & The Borders Ltd,241905,
Resources,Support Services,Children & Young People,Assistance to Pupils,Supplies & Services,Grants and Subscriptions,Grants Payable,,04/08/2022,11037243,0,225,R,Pupil Development Grant,990016,
Resources,Support Services,Children & Young People,Assistance to Pupils,Supplies & Services,Grants and Subscriptions,Grants Payable,,04/08/2022,11037244,0,225,R,Pupil Development Grant,990016,
Resources,Support Services,Children & Young People,Assistance to Pupils,Supplies & Services,Grants and Subscriptions,Grants Payable,,04/08/2022,11037606,0,225,R,Pupil Development Grant,990016,
Resources,Support Services,Children & Young People,Assistance to Pupils,Supplies & Services,Grants and Subscriptions,Grants Payable,,04/08/2022,11037607,0,225,R,Pupil Development Grant,990016,
Resources,Support Services,Children & Young People,Assistance to Pupils,Supplies & Services,Grants and Subscriptions,Grants Payable,,04/08/2022,11037608,0,225,R,Pupil Development Grant,990016,
Resources,Support Services,Children & Young People,Assistance to Pupils,Supplies & Services,Grants and Subscriptions,Grants Payable,,04/08/2022,11037609,0,225,R,Pupil Development Grant,990016,
Resources,Support Services,Children & Young People,Assistance to Pupils,Supplies & Services,Grants and Subscriptions,Grants Payable,,04/08/2022,11036847,0,225,R,Pupil Development Grant,990016,
Resources,Support Services,Children & Young People,Assistance to Pupils,Supplies & Services,Grants and Subscriptions,Grants Payable,,04/08/2022,11036848,0,225,R,Pupil Development Grant,990016,
Resources,Support Services,Children & Young People,Assistance to Pupils,Supplies & Services,Grants and Subscriptions,Grants Payable,,04/08/2022,11037610,0,225,R,Pupil Development Grant,990016,
Resources,Support Services,Children & Young People,Assistance to Pupils,Supplies & Services,Grants and Subscriptions,Grants Payable,,04/08/2022,11037611,0,225,R,Pupil Development Grant,990016,
Schools Total,School Group 2 � Pupil Capacity 144-314,MCC Schools,Rogiet Primary School,Premises,Energy Costs,Electricity.,,19/08/2022,11044911,0,1392.55,R,EDF Energy,212738,
Schools Total,School Group 2 � Pupil Capacity 144-314,MCC Schools,Rogiet Primary School,Premises,Energy Costs,Electricity.,,19/08/2022,11044912,0,-1383.23,R,EDF Energy,212738,
Resources,Support Services,Children & Young People,Assistance to Pupils,Supplies & Services,Grants and Subscriptions,Grants Payable,,04/08/2022,11036894,0,225,R,Pupil Development Grant,990016,
Resources,Support Services,Children & Young People,Assistance to Pupils,Supplies & Services,Grants and Subscriptions,Grants Payable,,04/08/2022,11036895,0,225,R,Pupil Development Grant,990016,
Resources,Support Services,Children & Young People,Assistance to Pupils,Supplies & Services,Grants and Subscriptions,Grants Payable,,04/08/2022,11036896,0,225,R,Pupil Development Grant,990016,
Resources,Support Services,Children & Young People,Assistance to Pupils,Supplies & Services,Grants and Subscriptions,Grants Payable,,04/08/2022,11036897,0,225,R,Pupil Development Grant,990016,
Resources,Support Services,Children & Young People,Assistance to Pupils,Supplies & Services,Grants and Subscriptions,Grants Payable,,04/08/2022,11037334,0,225,R,Pupil Development Grant,990016,
Children Services,Children Services Teams,Social Care and Health,Family Support and Protection Team,Supplies & Services,Services,Sub-Contractors Fees,,01/08/2022,11029418,10125315,640.26,R,Touchstone Support Services Ltd,2203096,
"Enterprise, Housing & Community Animation",Borough Theatre,Communities & Place,Borough Theatre General,Supplies & Services,Services,Sub-Contractors Fees,,01/08/2022,11030790,10120273,3125,R,REDACTED PERSONAL DATA,2203475,
"Enterprise, Housing & Community Animation",Borough Theatre,Communities & Place,Borough Theatre General,Supplies & Services,Services,Sub-Contractors Fees,,01/08/2022,11030804,10124723,700,R,Citrus Arts Limited,297377,
"Commercial, Corporate & landlord Services",Property Services & Facilities Management,Resources,Programmed Maintenance,Premises,"Repairs, Alterations & Maintenance of Buildings",Premises Repairs And Maintenance,,01/08/2022,11033852,90061832,80,R,Ambassador Fire & Security LTD,295878,
"Commercial, Corporate & landlord Services",Property Services & Facilities Management,Resources,Programmed Maintenance,Premises,"Repairs, Alterations & Maintenance of Buildings",Premises Repairs And Maintenance,,01/08/2022,11033853,90061499,80,R,Ambassador Fire & Security LTD,295878,
"Commercial, Corporate & landlord Services",Property Services & Facilities Management,Resources,Programmed Maintenance,Premises,"Repairs, Alterations & Maintenance of Buildings",Premises Repairs And Maintenance,,01/08/2022,11033854,90060499,80,R,Ambassador Fire & Security LTD,295878,
Neighbourhood Services,Waste and Street Services,Communities & Place,Fitting Shop Grounds,Supplies & Services,"Equipment, Furniture and Materials",Materials & Consumables.,,22/08/2022,11044427,10126062,140.92,R,Keith Morgan Mowers Ltd,200928,
Neighbourhood Services,Waste and Street Services,Communities & Place,Fitting Shop Grounds,Supplies & Services,"Equipment, Furniture and Materials",Materials & Consumables.,,22/08/2022,11044560,10126062,459.41,R,Keith Morgan Mowers Ltd,200928,
Neighbourhood Services,Waste and Street Services,Communities & Place,Grounds,Supplies & Services,"Equipment, Furniture and Materials",Materials & Consumables.,,22/08/2022,11041525,10122688,180,R,P&P Pest Control,200833,
Neighbourhood Services,Waste and Street Services,Communities & Place,Grounds,Supplies & Services,"Equipment, Furniture and Materials",Materials & Consumables.,,22/08/2022,11041575,10126055,840,R,Dura Sport Ltd,293719,
Neighbourhood Services,Waste and Street Services,Communities & Place,Grounds,Supplies & Services,"Equipment, Furniture and Materials",Materials & Consumables.,,22/08/2022,11044424,10125460,9.2,R,Blitzmedia Limited,291714,
Neighbourhood Services,Waste and Street Services,Communities & Place,Grounds,Supplies & Services,"Equipment, Furniture and Materials",Materials & Consumables.,,22/08/2022,11044508,10122697,2958.4,R,Estuary Oils,298577,
Neighbourhood Services,Waste and Street Services,Communities & Place,Fitting Shop Grounds,Supplies & Services,"Equipment, Furniture and Materials",Materials & Consumables.,,22/08/2022,11038398,10125700,252,R,Holt Jcb Ltd,213867,
Neighbourhood Services,Waste and Street Services,Communities & Place,Fitting Shop Grounds,Supplies & Services,"Equipment, Furniture and Materials",Materials & Consumables.,,22/08/2022,11038399,10125701,288.4,R,Holt Jcb Ltd,213867,
Neighbourhood Services,Waste and Street Services,Communities & Place,Fitting Shop Grounds,Supplies & Services,"Equipment, Furniture and Materials",Materials & Consumables.,,22/08/2022,11038401,10125764,11073.81,R,Holt Jcb Ltd,213867,
Neighbourhood Services,Waste and Street Services,Communities & Place,Fitting Shop Grounds,Supplies & Services,"Equipment, Furniture and Materials",Materials & Consumables.,,22/08/2022,11038621,10125565,10,R,Holt Jcb Ltd,213867,
Neighbourhood Services,Waste and Street Services,Communities & Place,Fitting Shop Grounds,Supplies & Services,"Equipment, Furniture and Materials",Materials & Consumables.,,22/08/2022,11038621,10125565,26,R,Holt Jcb Ltd,213867,
Neighbourhood Services,Waste and Street Services,Communities & Place,Fitting Shop Grounds,Supplies & Services,"Equipment, Furniture and Materials",Materials & Consumables.,,22/08/2022,11038621,10125565,378,R,Holt Jcb Ltd,213867,
Neighbourhood Services,Waste and Street Services,Communities & Place,Fitting Shop Grounds,Supplies & Services,"Equipment, Furniture and Materials",Materials & Consumables.,,22/08/2022,11040797,10122798,270,R,R W Bearings Ltd,288915,
Neighbourhood Services,Waste and Street Services,Communities & Place,Fitting Shop Grounds,Supplies & Services,"Equipment, Furniture and Materials",Materials & Consumables.,,22/08/2022,11040824,10122744,619,R,Richard Griffiths Ltd,286017,
Neighbourhood Services,Waste and Street Services,Communities & Place,Fitting Shop Grounds,Supplies & Services,"Equipment, Furniture and Materials",Materials & Consumables.,,22/08/2022,11040877,10122745,558.45,R,REDACTED PERSONAL DATA,292379,
Neighbourhood Services,Waste and Street Services,Communities & Place,Grounds,Supplies & Services,"Equipment, Furniture and Materials",Materials & Consumables.,,22/08/2022,11038702,10122737,65,R,SUEZ Recycling and Recovery UK Ltd,278306,
Neighbourhood Services,Waste and Street Services,Communities & Place,Grounds,Supplies & Services,"Equipment, Furniture and Materials",Materials & Consumables.,,22/08/2022,11041161,10122685,1821.5,R,Fenland Leisure Products,297644,
Standards,Education Achievement Service,Children & Young People,Education Achievement Service,Supplies & Services,Services,Sub-Contractors Fees,,22/08/2022,11041057,10125584,2000,R,EAS (South East Wales),295881,
Neighbourhood Services,Waste and Street Services,Communities & Place,Grounds,Supplies & Services,"Equipment, Furniture and Materials",Materials & Consumables.,,22/08/2022,11036358,10122687,32.5,R,Merlin Environmental Services Ltd,273098,
Neighbourhood Services,Waste and Street Services,Communities & Place,Fitting Shop Grounds,Supplies & Services,"Equipment, Furniture and Materials",Materials & Consumables.,,22/08/2022,11036363,10122743,48,R,REDACTED PERSONAL DATA,248539,
Neighbourhood Services,Waste and Street Services,Communities & Place,Fitting Shop Grounds,Supplies & Services,"Equipment, Furniture and Materials",Materials & Consumables.,,22/08/2022,11036364,10122743,50,R,REDACTED PERSONAL DATA,248539,
Neighbourhood Services,Waste and Street Services,Communities & Place,Fitting Shop Grounds,Supplies & Services,"Equipment, Furniture and Materials",Materials & Consumables.,,22/08/2022,11036365,10122743,234,R,REDACTED PERSONAL DATA,248539,
Neighbourhood Services,Waste and Street Services,Communities & Place,Fitting Shop Grounds,Supplies & Services,"Equipment, Furniture and Materials",Materials & Consumables.,,22/08/2022,11036366,10122743,65,R,REDACTED PERSONAL DATA,248539,
Schools Total,School Group 2 � Pupil Capacity 144-314,MCC Schools,Llanfoist Fawr Primary School,Supplies & Services,"Equipment, Furniture and Materials",Materials & Consumables.,,22/08/2022,11026019,80087485,298.91,R,Hope Education Ltd,200969,
Schools Total,School Group 2 � Pupil Capacity 144-314,MCC Schools,Llanfoist Fawr Primary School,Supplies & Services,"Equipment, Furniture and Materials",Materials & Consumables.,,22/08/2022,11026019,80087485,4.39,R,Hope Education Ltd,200969,
Schools Total,School Group 2 � Pupil Capacity 144-314,MCC Schools,Llanfoist Fawr Primary School,Supplies & Services,"Equipment, Furniture and Materials",Materials & Consumables.,,22/08/2022,11026019,80087485,-4.39,R,Hope Education Ltd,200969,
"Commercial, Corporate & landlord Services",Property Services & Facilities Management,Resources,Programmed Maintenance,Premises,"Repairs, Alterations & Maintenance of Buildings",Premises Repairs And Maintenance,,18/08/2022,11041521,90064106,669.06,R,Circuit Compliance t/a Circuit Electrical Testing Ltd,298180,
Resources,Support Services,Children & Young People,Assistance to Pupils,Supplies & Services,Grants and Subscriptions,Grants Payable,,04/08/2022,11036628,0,225,R,Pupil Development Grant,990016,
Resources,Support Services,Children & Young People,Assistance to Pupils,Supplies & Services,Grants and Subscriptions,Grants Payable,,04/08/2022,11036629,0,225,R,Pupil Development Grant,990016,
Resources,Support Services,Children & Young People,Assistance to Pupils,Supplies & Services,Grants and Subscriptions,Grants Payable,,04/08/2022,11037377,0,225,R,Pupil Development Grant,990016,
Resources,Support Services,Children & Young People,Assistance to Pupils,Supplies & Services,Grants and Subscriptions,Grants Payable,,04/08/2022,11037378,0,225,R,Pupil Development Grant,990016,
Resources,Support Services,Children & Young People,Assistance to Pupils,Supplies & Services,Grants and Subscriptions,Grants Payable,,04/08/2022,11037379,0,225,R,Pupil Development Grant,990016,
Resources,Support Services,Children & Young People,Assistance to Pupils,Supplies & Services,Grants and Subscriptions,Grants Payable,,04/08/2022,11037380,0,225,R,Pupil Development Grant,990016,
Resources,Support Services,Children & Young People,Assistance to Pupils,Supplies & Services,Grants and Subscriptions,Grants Payable,,04/08/2022,11037521,0,225,R,Pupil Development Grant,990016,
Resources,Support Services,Children & Young People,Assistance to Pupils,Supplies & Services,Grants and Subscriptions,Grants Payable,,04/08/2022,11037522,0,225,R,Pupil Development Grant,990016,
Resources,Support Services,Children & Young People,Assistance to Pupils,Supplies & Services,Grants and Subscriptions,Grants Payable,,04/08/2022,11037523,0,225,R,Pupil Development Grant,990016,
Resources,Support Services,Children & Young People,Assistance to Pupils,Supplies & Services,Grants and Subscriptions,Grants Payable,,04/08/2022,11037078,0,225,R,Pupil Development Grant,990016,
Resources,Support Services,Children & Young People,Assistance to Pupils,Supplies & Services,Grants and Subscriptions,Grants Payable,,04/08/2022,11037156,0,225,R,Pupil Development Grant,990016,
Resources,Support Services,Children & Young People,Assistance to Pupils,Supplies & Services,Grants and Subscriptions,Grants Payable,,04/08/2022,11037157,0,225,R,Pupil Development Grant,990016,
Resources,Support Services,Children & Young People,Assistance to Pupils,Supplies & Services,Grants and Subscriptions,Grants Payable,,04/08/2022,11037158,0,225,R,Pupil Development Grant,990016,
Resources,Support Services,Children & Young People,Assistance to Pupils,Supplies & Services,Grants and Subscriptions,Grants Payable,,04/08/2022,11037159,0,225,R,Pupil Development Grant,990016,
Resources,Support Services,Children & Young People,Assistance to Pupils,Supplies & Services,Grants and Subscriptions,Grants Payable,,04/08/2022,11036937,0,225,R,Pupil Development Grant,990016,
Resources,Support Services,Children & Young People,Assistance to Pupils,Supplies & Services,Grants and Subscriptions,Grants Payable,,04/08/2022,11037363,0,225,R,Pupil Development Grant,990016,
Resources,Support Services,Children & Young People,Assistance to Pupils,Supplies & Services,Grants and Subscriptions,Grants Payable,,04/08/2022,11037364,0,225,R,Pupil Development Grant,990016,
Resources,Support Services,Children & Young People,Assistance to Pupils,Supplies & Services,Grants and Subscriptions,Grants Payable,,04/08/2022,11037473,0,225,R,Pupil Development Grant,990016,
Resources,Support Services,Children & Young People,Assistance to Pupils,Supplies & Services,Grants and Subscriptions,Grants Payable,,04/08/2022,11037474,0,225,R,Pupil Development Grant,990016,
"Commercial, Corporate & landlord Services",Property Services & Facilities Management,Resources,External Clients,Premises,"Repairs, Alterations & Maintenance of Buildings",Premises Repairs And Maintenance,,09/08/2022,11038259,90061424,7.67,R,Circuit Compliance t/a Circuit Electrical Testing Ltd,298180,
Control Division,Control Dept,Control,Payroll Monthly 2 (Schools),Current Liabilities,Short Term Creditors,Resource Link Payments,,30/08/2022,11036337,0,40,R,Torfaen County Borough Council,202702,
Control Division,Control Dept,Control,Payroll Monthly 2 (Schools),Current Liabilities,Short Term Creditors,Resource Link Payments,,30/08/2022,11037814,0,1599.5,R,Unison,217012,
Control Division,Control Dept,Control,Payroll Monthly General,Current Liabilities,Short Term Creditors,Resource Link Payments,,30/08/2022,11037814,0,4774.11,R,Unison,217012,
Control Division,Control Dept,Control,Payroll MCCL3,Current Liabilities,Short Term Creditors,Resource Link Payments,,30/08/2022,11037814,0,281.85,R,Unison,217012,
Control Division,Control Dept,Control,Payroll Monthly 2 (Schools),Current Liabilities,Short Term Creditors,Resource Link Payments,,30/08/2022,11041500,0,2571,R,Kiddivouchers,291625,
Control Division,Control Dept,Control,Payroll Monthly General,Current Liabilities,Short Term Creditors,Resource Link Payments,,30/08/2022,11038668,0,675,R,Kiddivouchers,291625,
Children Services,Children Services Other,Social Care and Health,External Placements - CLA,Third Party Payments,Third Party,Residential.,,30/08/2022,11041394,10123813,13985.71,R,Orchard House Family Assessement & Intervention Centre,297939,
